Workbook

Sheet __snloffice (hidden)
A1: 允䅁䭁䅣䅁䍁䅁䅁䅁婁䅁䅁䅄䅁䍁䅍䅕䙂䕁䄴䅒䅁䕁䅯䅁慂䅁䅁睊扂䑁䅅䅍祁䑁䅙䅏杁䕁䅅杣灂䡁䅯睢畂䝁䅅䅉兂䙁䅍睑畁䡁䅧䅢穂䝁䄰兘呂䕁䄴䅔杁䕁䅑兙あ䝁䅅䅉潁䙁䅣䅕灁䍁䅣光歁䕁䅅䅊硁䅁䅁䅌䅁䝁䅙䅁湁䙁䅳免睁䑁䅉李㑁䍁䅁兑祂䝁䅫来療䝁䄴兙杁䙁䅁睕䑂䍁䄴䅥獂䡁䅍兢摂䙁䅍杔䵂䍁䅁䅒桂䡁䅑兙杁䍁䅧睖兂䍁䅫睊桁䍁䅑兑歁䑁䅙杏歁䕁䅅䅊ㅁ䑁䅁䅁瑁䅁䅁杗䅁䍁䅣睗硁䑁䅁杍㉁䑁䅧䅉䉂䡁䅉兡㙂䝁䄸杢桂䍁䅁䅕呂䕁䅍杌㑂䝁䅷督瑂䙁䄰睕佂䕁䅷䅉䕂䝁䅅䅤桂䍁䅁䅋塂䙁䅁克湁䍁䅅䅊䍂䍁䅑免䅁䍁䄴䅁浂䅁䅁睊扂䑁䅅䅍祁䑁䅙䅏杁䕁䅅杣灂䡁䅯睢畂䝁䅅䅉兂䙁䅍睑畁䡁䅧䅢穂䝁䄰兘呂䕁䄴䅔杁䕁䅑兙あ䝁䅅䅉潁䙁䅣䅕灁䍁䅣光歁䕁䅍䅊㉁䑁䅯䅊䑂䍁䅑李ㅁ䅁䅁睌䅁䝁䅑䅁湁䙁䅳免睁䑁䅉李㑁䍁䅁兑祂䝁䅫来療䝁䄴兙杁䙁䅁睕䑂䍁䄴䅥獂䡁䅍兢摂䙁䅍杔䵂䍁䅁䅒桂䡁䅑兙杁䍁䅧睖兂䍁䅫睊桁䍁䅑䅒歁䑁䅍杏歁䕁䅙䅊穁䅁䅁䅍䅁䕁䅉䅁湁䙁䅳杍㑁䑁䅉杍㑁䑁䅉杌㑂䝁䅷督瑂䙁䄰睑療䝁䄰䅣桂䝁䄴入杁䕁䅷兡穂䡁䅑睊桁䍁䅑村歁䑁䅑䅁杁䅁䅁䅔䅁䍁䅣睗祁䑁䅧杍祁䑁䅧杍畁䡁䅧䅢穂䝁䄰兘䑂䝁䄸兢睂䝁䅅杢㕂䍁䅁䅔灂䡁䅍䅤湁䍁䅅䅊䕂䍁䅑李㙁䍁䅑兓歁䑁䅙䅁桁䅁䅁䅒䅁䍁䅣睗祁䑁䅧杍祁䑁䅧杍畁䡁䅧䅢穂䝁䄰兘呂䕁䄴䅔杁䕁䅑兙あ䝁䅅䅉潁䙁䅣䅕灁䍁䅣光歁䕁䅅䅊硁䅁䅁允䅁䙁䅁䅁湁䙁䅳杍㑁䑁䅉杍㑁䑁䅉杌㑂䝁䅷督瑂䙁䄰睕佂䕁䅷䅉䕂䝁䅅䅤桂䍁䅁䅋塂䙁䅁克湁䍁䅅䅊䉂䍁䅑李㙁䍁䅑兑歁䑁䅕䅍䅁䉁䅍䅁兂䅁䅁睊扂䑁䅉䅏祁䑁䅉䅏祁䍁䄴䅥獂䡁䅍兢摂䙁䅍杔䵂䍁䅁䅒桂䡁䅑兙杁䍁䅧睖兂䍁䅫睊桁䍁䅑兑歁䑁䅙杏歁䕁䅅䅊ㅁ䑁䅣䅁䍁䅁䅁䅒䅁䍁䅣睗祁䑁䅧杍祁䑁䅧杍畁䡁䅧䅢穂䝁䄰兘呂䕁䄴䅔杁䕁䅑兙あ䝁䅅䅉潁䙁䅣䅕灁䍁䅣光歁䕁䅉䅊硁䅁䅁䅂䅁䙁䅁䅁湁䙁䅳杍㑁䑁䅉杍㑁䑁䅉杌㑂䝁䅷督瑂䙁䄰睕佂䕁䅷䅉䕂䝁䅅䅤桂䍁䅁䅋塂䙁䅁克湁䍁䅅䅊䑂䍁䅑李㙁䍁䅑睑歁䑁䅙䅍䅁䅁䅕䅁兂䅁䅁睊扂䑁䅉䅏祁䑁䅉䅏祁䍁䄴䅥獂䡁䅍兢摂䙁䅍杔䵂䍁䅁䅒桂䡁䅑兙杁䍁䅧睖兂䍁䅫睊桁䍁䅑睑歁䑁䅙杏歁䕁䅍䅊㉁䑁䅕䅁啁䅁䅁杔䅁䍁䅣睗祁䑁䅧杍祁䑁䅧杍畁䡁䅧䅢穂䝁䄰兘呂䕁䄴䅔杁䕁䅑兙あ䝁䅅䅉潁䙁䅣䅕灁䍁䅣光歁䕁䅑䅊穁䑁䅯䅊䝂䍁䅑睍䅁䅁䅙䅁䕂䅁䅁睊扂䑁䅍免ㅁ䑁䅧杍穁䍁䄴䅥獂䡁䅍兢摂䙁䅍杔䵂䍁䅁䅒桂䡁䅑兙杁䍁䅧睖兂䍁䅫睊桁䍁䅑兑歁䑁䅅䅁⭁䅁䅁䅕䅁䍁䅣睗穁䑁䅅兎㑁䑁䅉睍畁䡁䅧䅢穂䝁䄰兘呂䕁䄴䅔杁䕁䅑兙あ䝁䅅䅉潁䙁䅣䅕灁䍁䅣光歁䕁䅅䅊㉁䑁䅯䅊䉂䍁䅑兎睁䅁䅁睐䅁䕁䅑䅁湁䙁䅳睍硁䑁䅕䅏祁䑁䅍杌㑂䝁䅷督瑂䙁䄰睕佂䕁䅷䅉䕂䝁䅅䅤桂䍁䅁䅋塂䙁䅁克湁䍁䅅䅊䍂䍁䅑免䅁䕁䅁䅁兂䅁䅁睊扂䑁䅍免ㅁ䑁䅧杍穁䍁䄴䅥獂䡁䅍兢摂䙁䅍杔䵂䍁䅁䅒桂䡁䅑兙杁䍁䅧睖兂䍁䅫睊桁䍁䅑睑歁䑁䅙杏歁䕁䅍䅊㉁䑁䅕䅁䉂䅁䅁杔䅁䍁䅣睗穁䑁䅅兎㑁䑁䅉睍畁䡁䅧䅢穂䝁䄰兘呂䕁䄴䅔杁䕁䅑兙あ䝁䅅䅉潁䙁䅣䅕灁䍁䅣光歁䕁䅑䅊穁䑁䅯䅊䝂䍁䅑睍䅁䕁䅉䅁䝂䅁䅁睊扂䑁䅍䅎硁䑁䅉兎祁䙁䄸免畁䡁䅧䅢穂䝁䄰兘乂䕁䅫䅉䕂䝁䅅䅤桂䍁䅁䅋塂䙁䅁克湁䍁䅅䅊䉂䍁䅑免䅁䕁䅍䅁卂䅁䅁睊扂䑁䅍䅎硁䑁䅉兎祁䙁䄸免畁䡁䅧䅢穂䝁䄰兘乂䕁䅫䅉䕂䝁䅅䅤桂䍁䅁䅋塂䙁䅁克湁䍁䅅䅊䉂䍁䅑李㙁䍁䅑兑歁䑁䅕䅍䅁䕁䅑䅁䝂䅁䅁睊扂䑁䅍䅎硁䑁䅉兎祁䙁䄸免畁䡁䅧䅢穂䝁䄰兘乂䕁䅫䅉䕂䝁䅅䅤桂䍁䅁䅋塂䙁䅁克湁䍁䅅䅊䍂䍁䅑免䅁䕁䅕䅁卂䅁䅁睊扂䑁䅍䅎硁䑁䅉兎祁䙁䄸免畁䡁䅧䅢穂䝁䄰兘乂䕁䅫䅉䕂䝁䅅䅤桂䍁䅁䅋塂䙁䅁克湁䍁䅅䅊䑂䍁䅑李㙁䍁䅑睑歁䑁䅙兎䅁䕁䅙䅁兂䅁䅁睊扂䑁䅍䅎硁䑁䅉兎祁䙁䄸免畁䡁䅧䅢穂䝁䄰兘乂䕁䅫䅉䕂䝁䅅䅤桂䍁䅁䅋塂䙁䅁克湁䍁䅅䅊䕂䍁䅑睍㙁䍁䅑杒歁䑁䅍䅁䡂䅁䅁村䅁䍁䅣睗穁䑁䅣䅏ㅁ䑁䅑杍畁䡁䅧䅢穂䝁䄰兘乂䕁䅫䅉䕂䝁䅅䅤桂䍁䅁䅋塂䙁䅁克湁䍁䅅䅊䉂䍁䅑免䅁䝁䅅䅁佂䅁䅁睊扂䑁䅍睎㑁䑁䅕䅎祁䍁䄴䅥獂䡁䅍兢摂䕁䄰兓杁䕁䅑兙あ䝁䅅䅉潁䙁䅣䅕灁䍁䅣光歁䕁䅅䅊㉁䑁䅯䅊䉂䍁䅑兎睁䅁䅁杙䅁䕁䅉䅁湁䙁䅳睍㍁䑁䅧兎ぁ䑁䅉杌㑂䝁䅷督瑂䙁䄰兔䩂䍁䅁䅒桂䡁䅑兙杁䍁䅧睖兂䍁䅫睊桁䍁䅑村歁䑁䅅䅁橂䅁䅁杔䅁䍁䅣睗穁䑁䅣䅏ㅁ䑁䅑杍畁䡁䅧䅢穂䝁䄰兘乂䕁䅫䅉䕂䝁䅅䅤桂䍁䅁䅋塂䙁䅁克湁䍁䅅䅊䑂䍁䅑李㙁䍁䅑睑歁䑁䅙兎䅁䝁䅑䅁䵂䅁䅁睊扂䑁䅍睎㑁䑁䅕䅎祁䍁䄴䅥獂䡁䅍兢摂䕁䄰兓杁䕁䅑兙あ䝁䅅䅉潁䙁䅣䅕灁䍁䅣光歁䕁䅑䅊穁䑁䅯䅊䝂䍁䅑睍䅁䝁䅕䅁䍂䅁䅁睊扂䑁䅑䅍㑁䑁䅁睍ㅁ䍁䄴䅥獂䡁䅍䅥摂䕁䄰兓杁䕁䅑兙あ䝁䅅䅉潁䙁䅣䅕灁䍁䅣光歁䕁䅉䅊硁䅁䅁䅥䅁䕁䄴䅁湁䙁䅳䅎睁䑁䅧䅍穁䑁䅕杌㑂䝁䅷督㑂䙁䄰兔䩂䍁䅁䅒桂䡁䅑兙杁䍁䅧睖兂䍁䅫睊桁䍁䅑睑歁䑁䅙杏歁䕁䅍䅊㉁䑁䅕䅁㕂䅁䅁䅔䅁䍁䅣睗ぁ䑁䅁䅏睁䑁䅍兎畁䡁䅧䅢穂䡁䅧兘乂䕁䅫䅉䕂䝁䅅䅤桂䍁䅁䅋塂䙁䅁克湁䍁䅅䅊䕂䍁䅑睍㙁䍁䅑杒歁䑁䅍䅁㙂䅁䅁村䅁䍁䅣睗ぁ䑁䅅兎㑁䑁䅫睍畁䡁䅧䅢穂䝁䄰兘乂䕁䅫䅉䕂䝁䅅䅤桂䍁䅁䅋塂䙁䅁克湁䍁䅅䅊䉂䍁䅑免䅁䥁䅁䅁佂䅁䅁睊扂䑁䅑免ㅁ䑁䅧兏穁䍁䄴䅥獂䡁䅍兢摂䕁䄰兓杁䕁䅑兙あ䝁䅅䅉潁䙁䅣䅕灁䍁䅣光歁䕁䅅䅊㉁䑁䅯䅊䉂䍁䅑睎ぁ䅁䅁內䅁䕁䅉䅁湁䙁䅳䅎硁䑁䅕䅏㕁䑁䅍杌㑂䝁䅷督瑂䙁䄰兔䩂䍁䅁䅒桂䡁䅑兙杁䍁䅧睖兂䍁䅫睊桁䍁䅑村歁䑁䅅䅁䍃䅁䅁杔䅁䍁䅣睗ぁ䑁䅅兎㑁䑁䅫睍畁䡁䅧䅢穂䝁䄰兘乂䕁䅫䅉䕂䝁䅅䅤桂䍁䅁䅋塂䙁䅁克湁䍁䅅䅊䑂䍁䅑李㙁䍁䅑睑歁䑁䅧兏䅁䥁䅍䅁䵂䅁䅁睊扂䑁䅑免ㅁ䑁䅧兏穁䍁䄴䅥獂䡁䅍兢摂䕁䄰兓杁䕁䅑兙あ䝁䅅䅉潁䙁䅣䅕灁䍁䅣光歁䕁䅑䅊穁䑁䅯䅊䝂䍁䅑睍䅁䥁䅑䅁䍂䅁䅁睊扂䑁䅑杍穁䑁䅫李祁䍁䄴䅥獂䡁䅍兢摂䕁䄰兓杁䕁䅑兙あ䝁䅅䅉潁䙁䅣䅕灁䍁䅣光歁䕁䅉䅊硁䅁䅁杬䅁䕁䄴䅁湁䙁䅳䅎祁䑁䅍兏㉁䑁䅉杌㑂䝁䅷督瑂䙁䄰兔䩂䍁䅁䅒桂䡁䅑兙杁䍁䅧睖兂䍁䅫睊桁䍁䅑睑歁䑁䅙杏歁䕁䅍䅊㑁䑁䅫䅁塃䅁䅁䅔䅁䍁䅣睗ぁ䑁䅉睍㕁䑁䅙杍畁䡁䅧䅢穂䝁䄰兘乂䕁䅫䅉䕂䝁䅅䅤桂䍁䅁䅋塂䙁䅁克湁䍁䅅䅊䕂䍁䅑睍㙁䍁䅑杒歁䑁䅍䅁奃䅁䅁村䅁䍁䅣睗ぁ䑁䅉䅎睁䑁䅫睎畁䡁䅧䅢穂䝁䄰兘乂䕁䅫䅉䕂䝁䅅䅤桂䍁䅁䅋塂䙁䅁克湁䍁䅅䅊䉂䍁䅑免䅁䩁䅫䅁佂䅁䅁睊扂䑁䅑杍ぁ䑁䅁兏㍁䍁䄴䅥獂䡁䅍兢摂䕁䄰兓杁䕁䅑兙あ䝁䅅䅉潁䙁䅣䅕灁䍁䅣光歁䕁䅅䅊㉁䑁䅯䅊䉂䍁䅑睎ぁ䅁䅁杭䅁䕁䅉䅁湁䙁䅳䅎祁䑁䅑䅍㕁䑁䅣杌㑂䝁䅷督瑂䙁䄰兔䩂䍁䅁䅒桂䡁䅑兙杁䍁䅧睖兂䍁䅫睊桁䍁䅑村歁䑁䅅䅁扃䅁䅁杔䅁䍁䅣睗ぁ䑁䅉䅎睁䑁䅫睎畁䡁䅧䅢穂䝁䄰兘乂䕁䅫䅉䕂䝁䅅䅤桂䍁䅁䅋塂䙁䅁克湁䍁䅅䅊䑂䍁䅑李㙁䍁䅑睑歁䑁䅧兏䅁䩁䅷䅁䵂䅁䅁睊扂䑁䅑杍ぁ䑁䅁兏㍁䍁䄴䅥獂䡁䅍兢摂䕁䄰兓杁䕁䅑兙あ䝁䅅䅉潁䙁䅣䅕灁䍁䅣光歁䕁䅑䅊穁䑁䅯䅊䝂䍁䅑睍䅁䩁䄰䅁坂䅁䅁睊扂䕁䅅兢求䡁䅉党畂䍁䅁杕求䝁䅉兤あ䡁䅑兙獂䍁䄴䅥獂䡁䅍兢摂䙁䅍杔䵂䍁䅁䅒桂䡁䅑兙杁䍁䅧睖兂䍁䅫睊桁䍁䅑兑歁䑁䅅䅁ぁ䅁䅁杙䅁䍁䅣睗䉂䝁䄰党祂䝁䅕杢杁䙁䅉党楂䡁䅕䅤あ䝁䅅䅢畁䡁䅧䅢穂䝁䄰兘呂䕁䄴䅔杁䕁䅑兙あ䝁䅅䅉潁䙁䅣䅕灁䍁䅣光歁䕁䅅䅊㉁䑁䅯䅊䉂䍁䅑兎睁䅁䅁兎䅁䙁䅙䅁湁䙁䅳兑瑂䝁䅕杣求䝁䄴䅉卂䝁䅕杙ㅂ䡁䅑䅤桂䝁䅷杌㑂䝁䅷督瑂䙁䄰睕佂䕁䅷䅉䕂䝁䅅䅤桂䍁䅁䅋塂䙁䅁克湁䍁䅅䅊䍂䍁䅑免䅁䑁䅙䅁楂䅁䅁睊扂䕁䅅兢求䡁䅉党畂䍁䅁杕求䝁䅉兤あ䡁䅑兙獂䍁䄴䅥獂䡁䅍兢摂䙁䅍杔䵂䍁䅁䅒桂䡁䅑兙杁䍁䅧睖兂䍁䅫睊桁䍁䅑睑歁䑁䅙杏歁䕁䅍䅊㉁䑁䅕䅁㍁䅁䅁䅙䅁䍁䅣睗䉂䝁䄰党祂䝁䅕杢杁䙁䅉党楂䡁䅕䅤あ䝁䅅䅢畁䡁䅧䅢穂䝁䄰兘呂䕁䄴䅔杁䕁䅑兙あ䝁䅅䅉潁䙁䅣䅕灁䍁䅣光歁䕁䅑䅊穁䑁䅯䅊䝂䍁䅑睍䅁䑁䅧䅁䭃䅁䅁睊扂䕁䅅䅤あ䝁䅅睙潂䝁䄰党畂䡁䅑督杁䕁䄰䅕䡂䍁䄰䅎杁䍁䄰䅉乂䙁䅁睒瑁䑁䅅免獁䍁䅁兔兂䕁䅣兌硁䑁䅣兌杁䑁䅅䅏獁䍁䅁杍硁䍁䄴䅥獂䡁䅍兢摂䕁䄰兓杁䕁䅑兙あ䝁䅅䅉潁䙁䅣䅕灁䍁䅣光歁䕁䅅䅊硁䅁䅁督䅁䩁䅙䅁湁䙁䅳兑あ䡁䅑兙橂䝁䅧兢求䝁䄴䅤穂䍁䅁兔兂䕁䅣兌ぁ䍁䅁兌杁䕁䄰䅕䡂䍁䄰免硁䍁䅷䅉乂䙁䅁睒瑁䑁䅅睎瑁䍁䅁免㑁䍁䅷䅉祁䑁䅅杌㑂䝁䅷督瑂䙁䄰兔䩂䍁䅁䅒桂䡁䅑兙杁䍁䅧睖兂䍁䅫睊桁䍁䅑兑歁䑁䅙杏歁䕁䅅䅊ㅁ䑁䅁䅁あ䅁䅁杩䅁䍁䅣睗䉂䡁䅑䅤桂䝁䅍䅡瑂䝁䅕杢あ䡁䅍䅉乂䙁䅁睒瑁䑁䅑䅉瑁䍁䅁兔兂䕁䅣兌硁䑁䅅䅌杁䕁䄰䅕䡂䍁䄰免㍁䍁䄰䅉硁䑁䅧䅌杁䑁䅉免畁䡁䅧䅢穂䝁䄰兘乂䕁䅫䅉䕂䝁䅅䅤桂䍁䅁䅋塂䙁䅁克湁䍁䅅䅊䍂䍁䅑免䅁䡁䅕䅁坃䅁䅁睊扂䕁䅅䅤あ䝁䅅睙潂䝁䄰党畂䡁䅑督杁䕁䄰䅕䡂䍁䄰䅎杁䍁䄰䅉乂䙁䅁睒瑁䑁䅅免獁䍁䅁兔兂䕁䅣兌硁䑁䅣兌杁䑁䅅䅏獁䍁䅁杍硁䍁䄴䅥獂䡁䅍兢摂䕁䄰兓杁䕁䅑兙あ䝁䅅䅉潁䙁䅣䅕灁䍁䅣光歁䕁䅍䅊㉁䑁䅯䅊䑂䍁䅑李ㅁ䅁䅁杤䅁䩁䅑䅁湁䙁䅳兑あ䡁䅑兙橂䝁䅧兢求䝁䄴䅤穂䍁䅁兔兂䕁䅣兌ぁ䍁䅁兌杁䕁䄰䅕䡂䍁䄰免硁䍁䅷䅉乂䙁䅁睒瑁䑁䅅睎瑁䍁䅁免㑁䍁䅷䅉祁䑁䅅杌㑂䝁䅷督瑂䙁䄰兔䩂䍁䅁䅒桂䡁䅑兙杁䍁䅧睖兂䍁䅫睊桁䍁䅑䅒歁䑁䅍杏歁䕁䅙䅊穁䅁䅁睤䅁䝁䅉䅁湁䙁䅳村桂䝁䅷䅤灂䝁䄰睢祂䝁䅕䅉䡂䍁䅙兒杁䕁䅑睑䝂䍁䅁睑䉂䙁䅁兔畁䡁䅧䅢穂䝁䄰兘乂䕁䅫䅉䕂䝁䅅䅤桂䍁䅁䅋塂䙁䅁克湁䍁䅅䅊䉂䍁䅑免䅁䙁䅉䅁畂䅁䅁睊扂䕁䅉兙獂䡁䅑兡瑂䝁䄸杣求䍁䅁睒流䕁䅕䅉䕂䕁䅍杒杁䕁䅍兑兂䕁䄰杌㑂䝁䅷督瑂䙁䄰兔䩂䍁䅁䅒桂䡁䅑兙杁䍁䅧睖兂䍁䅫睊桁䍁䅑兑歁䑁䅙杏歁䕁䅅䅊ㅁ䑁䅁䅁呂䅁䅁杙䅁䍁䅣睗䍂䝁䅅䅢あ䝁䅫兢療䡁䅉党杁䕁䅣杊䙂䍁䅁䅒䑂䕁䅙䅉䑂䕁䅅䅕乂䍁䄴䅥獂䡁䅍兢摂䕁䄰兓杁䕁䅑兙あ䝁䅅䅉潁䙁䅣䅕灁䍁䅣光歁䕁䅉䅊硁䅁䅁䅖䅁䝁䄴䅁湁䙁䅳村桂䝁䅷䅤灂䝁䄰睢祂䝁䅕䅉䡂䍁䅙兒杁䕁䅑睑䝂䍁䅁睑䉂䙁䅁兔畁䡁䅧䅢穂䝁䄰兘乂䕁䅫䅉䕂䝁䅅䅤桂䍁䅁䅋塂䙁䅁克湁䍁䅅䅊䑂䍁䅑李㙁䍁䅑睑歁䑁䅙兎䅁䙁䅕䅁獂䅁䅁睊扂䕁䅉兙獂䡁䅑兡瑂䝁䄸杣求䍁䅁睒流䕁䅕䅉䕂䕁䅍杒杁䕁䅍兑兂䕁䄰杌㑂䝁䅷督瑂䙁䄰兔䩂䍁䅁䅒桂䡁䅑兙杁䍁䅧睖兂䍁䅫睊桁䍁䅑䅒歁䑁䅍杏歁䕁䅙䅊穁䅁䅁杖䅁䩁䅉䅁湁䙁䅳睑䑂䙁䅣䅉兂䡁䅕杙獂䝁䅫睙杁䙁䅍党祂䡁䅙兡橂䝁䅕䅉䑂䝁䄸兢睂䝁䅅杢㕂䍁䅁睑療䝁䅷睢祂䝁䅅䅚療䍁䅁䅒䑂䕁䅙䅉流䍁䅁睑䉂䙁䅁兔畁䡁䅧䅢穂䝁䄰兘乂䕁䅫䅉䕂䝁䅅䅤桂䍁䅁䅋塂䙁䅁克湁䍁䅅䅊䉂䍁䅑免䅁䩁䅅䅁敃䅁䅁睊扂䕁䅍睑塂䍁䅁䅕ㅂ䝁䅉䅢灂䝁䅍䅉呂䝁䅕杣㉂䝁䅫睙求䍁䅁睑療䝁䄰䅣桂䝁䄴入杁䕁䅍睢獂䝁䄸杣桂䝁䅑睢杁䕁䅑睑䝂䍁䅁杊杁䕁䅍兑兂䕁䄰杌㑂䝁䅷督瑂䙁䄰兔䩂䍁䅁䅒桂䡁䅑兙杁䍁䅧睖兂䍁䅫睊桁䍁䅑兑歁䑁䅙杏歁䕁䅅䅊㍁䑁䅑䅁千䅁䅁杫䅁䍁䅣睗䑂䕁䅍睖杁䙁䅁兤楂䝁䅷兡橂䍁䅁睕求䡁䅉杤灂䝁䅍党杁䕁䅍睢瑂䡁䅁兙畂䡁䅫䅉䑂䝁䄸䅢療䡁䅉兙歂䝁䄸䅉䕂䕁䅍杒杁䍁䅙䅉䑂䕁䅅䅕乂䍁䄴䅥獂䡁䅍兢摂䕁䄰兓杁䕁䅑兙あ䝁䅅䅉潁䙁䅣䅕灁䍁䅣光歁䕁䅉䅊硁䅁䅁睫䅁䩁䄴䅁湁䙁䅳睑䑂䙁䅣䅉兂䡁䅕杙獂䝁䅫睙杁䙁䅍党祂䡁䅙兡橂䝁䅕䅉䑂䝁䄸兢睂䝁䅅杢㕂䍁䅁睑療䝁䅷睢祂䝁䅅䅚療䍁䅁䅒䑂䕁䅙䅉流䍁䅁睑䉂䙁䅁兔畁䡁䅧䅢穂䝁䄰兘乂䕁䅫䅉䕂䝁䅅䅤桂䍁䅁䅋塂䙁䅁克湁䍁䅅䅊䑂䍁䅑李㙁䍁䅑睑歁䑁䅧兏䅁䩁䅑䅁捃䅁䅁睊扂䕁䅍睑塂䍁䅁䅕ㅂ䝁䅉䅢灂䝁䅍䅉呂䝁䅕杣㉂䝁䅫睙求䍁䅁睑療䝁䄰䅣桂䝁䄴入杁䕁䅍睢獂䝁䄸杣桂䝁䅑睢杁䕁䅑睑䝂䍁䅁杊杁䕁䅍兑兂䕁䄰杌㑂䝁䅷督瑂䙁䄰兔䩂䍁䅁䅒桂䡁䅑兙杁䍁䅧睖兂䍁䅫睊桁䍁䅑䅒歁䑁䅍杏歁䕁䅙䅊穁䅁䅁公䅁䝁䄴䅁湁䙁䅳睑療䡁䅁入杁䝁䄸杚杁䑁䅑免㉁䑁䅑免㍁䍁䅁䅋瑂䝁䄰睙杁䝁䅍䅡求䝁䅍睡求䝁䅑克畁䡁䅧䅢穂䝁䄰兘乂䕁䅫䅉䕂䝁䅅䅤桂䍁䅁䅋塂䙁䅁克湁䍁䅅䅊䉂䍁䅑免䅁䥁䅣䅁㙂䅁䅁睊扂䕁䅍睢睂䡁䅫䅉療䝁䅙䅉ぁ䑁䅅李ぁ䑁䅅睎杁䍁䅧兢瑂䝁䅍䅉橂䝁䅧党橂䝁䅳党歂䍁䅫杌㑂䝁䅷督瑂䙁䄰兔䩂䍁䅁䅒桂䡁䅑兙杁䍁䅧睖兂䍁䅫睊桁䍁䅑兑歁䑁䅙杏歁䕁䅅䅊㍁䑁䅑䅁䥃䅁䅁杢䅁䍁䅣睗䑂䝁䄸䅣㕂䍁䅁睢浂䍁䅁䅎硁䑁䅙䅎硁䑁䅣䅉潁䝁䄰兢橂䍁䅁睙潂䝁䅕睙牂䝁䅕䅚灁䍁䄴䅥獂䡁䅍兢摂䕁䄰兓杁䕁䅑兙あ䝁䅅䅉潁䙁䅣䅕灁䍁䅣光歁䕁䅉䅊硁䅁䅁兩䅁䡁䅯䅁湁䙁䅳睑療䡁䅁入杁䝁䄸杚杁䑁䅑免㉁䑁䅑免㍁䍁䅁䅋瑂䝁䄰睙杁䝁䅍䅡求䝁䅍睡求䝁䅑克畁䡁䅧䅢穂䝁䄰兘乂䕁䅫䅉䕂䝁䅅䅤桂䍁䅁䅋塂䙁䅁克湁䍁䅅䅊䑂䍁䅑李㙁䍁䅑睑歁䑁䅧兏䅁䥁䅯䅁㑂䅁䅁睊扂䕁䅍睢睂䡁䅫䅉療䝁䅙䅉ぁ䑁䅅李ぁ䑁䅅睎杁䍁䅧兢瑂䝁䅍䅉橂䝁䅧党橂䝁䅳党歂䍁䅫杌㑂䝁䅷督瑂䙁䄰兔䩂䍁䅁䅒桂䡁䅑兙杁䍁䅧睖兂䍁䅫睊桁䍁䅑䅒歁䑁䅍杏歁䕁䅙䅊穁䅁䅁睩䅁䕁䅯䅁湁䙁䅳䅒䑂䕁䅙䅉流䍁䅁睑䉂䙁䅁兔畁䡁䅧䅢穂䝁䄰兘乂䕁䅫䅉䕂䝁䅅䅤桂䍁䅁䅋塂䙁䅁克湁䍁䅅䅊䉂䍁䅑免䅁䥁䅷䅁坂䅁䅁睊扂䕁䅑睑䝂䍁䅁杊杁䕁䅍兑兂䕁䄰杌㑂䝁䅷督瑂䙁䄰兔䩂䍁䅁䅒桂䡁䅑兙杁䍁䅧睖兂䍁䅫睊桁䍁䅑兑歁䑁䅙杏歁䕁䅅䅊㍁䑁䅑䅁乃䅁䅁杓䅁䍁䅣睗䕂䕁䅍杒杁䍁䅙䅉䑂䕁䅅䅕乂䍁䄴䅥獂䡁䅍兢摂䕁䄰兓杁䕁䅑兙あ䝁䅅䅉潁䙁䅣䅕灁䍁䅣光歁䕁䅉䅊硁䅁䅁杪䅁䙁䅙䅁湁䙁䅳䅒䑂䕁䅙䅉流䍁䅁睑䉂䙁䅁兔畁䡁䅧䅢穂䝁䄰兘乂䕁䅫䅉䕂䝁䅅䅤桂䍁䅁䅋塂䙁䅁克湁䍁䅅䅊䑂䍁䅑李㙁䍁䅑睑歁䑁䅧兏䅁䥁䄸䅁啂䅁䅁睊扂䕁䅑睑䝂䍁䅁杊杁䕁䅍兑兂䕁䄰杌㑂䝁䅷督瑂䙁䄰兔䩂䍁䅁䅒桂䡁䅑兙杁䍁䅧睖兂䍁䅫睊桁䍁䅑䅒歁䑁䅍杏歁䕁䅙䅊穁䅁䅁䅫䅁䙁䅉䅁湁䙁䅳䅒䑂䕁䅙䅉䑂䕁䅅䅕乂䍁䅁睕あ䡁䅕䅚㕂䍁䄴䅥獂䡁䅍兢摂䕁䄰兓杁䕁䅑兙あ䝁䅅䅉潁䙁䅣䅕灁䍁䅣光歁䕁䅅䅊硁䅁䅁䅘䅁䙁䄴䅁湁䙁䅳䅒䑂䕁䅙䅉䑂䕁䅅䅕乂䍁䅁睕あ䡁䅕䅚㕂䍁䄴䅥獂䡁䅍兢摂䕁䄰兓杁䕁䅑兙あ䝁䅅䅉潁䙁䅣䅕灁䍁䅣光歁䕁䅅䅊㉁䑁䅯䅊䉂䍁䅑兎睁䅁䅁兘䅁䙁䄴䅁湁䙁䅳䅒䑂䕁䅙䅉䑂䕁䅅䅕乂䍁䅁睕あ䡁䅕䅚㕂䍁䄴䅥獂䡁䅍兢摂䕁䄰兓杁䕁䅑兙あ䝁䅅䅉潁䙁䅣䅕灁䍁䅣光歁䕁䅅䅊㉁䑁䅯䅊䉂䍁䅑睎ぁ䅁䅁全䅁䙁䅉䅁湁䙁䅳䅒䑂䕁䅙䅉䑂䕁䅅䅕乂䍁䅁睕あ䡁䅕䅚㕂䍁䄴䅥獂䡁䅍兢摂䕁䄰兓杁䕁䅑兙あ䝁䅅䅉潁䙁䅣䅕灁䍁䅣光歁䕁䅉䅊硁䅁䅁杘䅁䙁䄴䅁湁䙁䅳䅒䑂䕁䅙䅉䑂䕁䅅䅕乂䍁䅁睕あ䡁䅕䅚㕂䍁䄴䅥獂䡁䅍兢摂䕁䄰兓杁䕁䅑兙あ䝁䅅䅉潁䙁䅣䅕灁䍁䅣光歁䕁䅍䅊㉁䑁䅯䅊䑂䍁䅑李ㅁ䅁䅁睘䅁䙁䄴䅁湁䙁䅳䅒䑂䕁䅙䅉䑂䕁䅅䅕乂䍁䅁睕あ䡁䅕䅚㕂䍁䄴䅥獂䡁䅍兢摂䕁䄰兓杁䕁䅑兙あ䝁䅅䅉潁䙁䅣䅕灁䍁䅣光歁䕁䅍䅊㉁䑁䅯䅊䑂䍁䅑䅏㕁䅁䅁杨䅁䙁䅷䅁湁䙁䅳䅒䑂䕁䅙䅉䑂䕁䅅䅕乂䍁䅁睕あ䡁䅕䅚㕂䍁䄴䅥獂䡁䅍兢摂䕁䄰兓杁䕁䅑兙あ䝁䅅䅉潁䙁䅣䅕灁䍁䅣光歁䕁䅑䅊穁䑁䅯䅊䝂䍁䅑睍䅁䝁䅁䅁佂䅁䅁睊扂䕁䅑䅕䵂䍁䅁䅒䑂䕁䅙䅉䑂䕁䅅䅕乂䍁䄴䅥獂䡁䅍兢摂䕁䄰兓杁䕁䅑兙あ䝁䅅䅉潁䙁䅣䅕灁䍁䅣光歁䕁䅅䅊硁䅁䅁睯䅁䙁䅯䅁湁䙁䅳䅒兂䕁䅷䅉䕂䕁䅍杒杁䕁䅍兑兂䕁䄰杌㑂䝁䅷督瑂䙁䄰兔䩂䍁䅁䅒桂䡁䅑兙杁䍁䅧睖兂䍁䅫睊桁䍁䅑兑歁䑁䅙杏歁䕁䅅䅊ㅁ䑁䅁䅁歃䅁䅁杔䅁䍁䅣睗䕂䙁䅁䅔杁䕁䅑睑䝂䍁䅁睑䉂䙁䅁兔畁䡁䅧䅢穂䝁䄰兘乂䕁䅫䅉䕂䝁䅅䅤桂䍁䅁䅋塂䙁䅁克湁䍁䅅䅊䍂䍁䅑免䅁䭁䅕䅁慂䅁䅁睊扂䕁䅑䅕䵂䍁䅁䅒䑂䕁䅙䅉䑂䕁䅅䅕乂䍁䄴䅥獂䡁䅍兢摂䕁䄰兓杁䕁䅑兙あ䝁䅅䅉潁䙁䅣䅕灁䍁䅣光歁䕁䅍䅊㉁䑁䅯䅊䑂䍁䅑李ㅁ䅁䅁杰䅁䙁䅧䅁湁䙁䅳䅒兂䕁䅷䅉䕂䕁䅍杒杁䕁䅍兑兂䕁䄰杌㑂䝁䅷督瑂䙁䄰兔䩂䍁䅁䅒桂䡁䅑兙杁䍁䅧睖兂䍁䅫睊桁䍁䅑䅒歁䑁䅍杏歁䕁䅙䅊穁䅁䅁睰䅁䭁䅷䅁湁䙁䅳兒㑂䝁䅧兡楂䝁䅫䅤穂䍁䅁睑䑂䙁䅣兌穁䍁䅁兌杁䕁䅍睑塂䍁䄰免睁䍁䅁兙畂䝁䅑䅉䑂䕁䅍睖瑁䑁䅅李杁䍁䄰䅉䑂䕁䅍睖瑁䑁䅅睎杁䍁䅧䅎杁䡁䅉睢求䍁䅁督あ䡁䅕䅚灂䝁䅕督灁䍁䄴䅥獂䡁䅍兢摂䕁䄰兓杁䕁䅑兙あ䝁䅅䅉潁䙁䅣䅕灁䍁䅣光歁䕁䅅䅊硁䅁䅁睥䅁䱁䅧䅁湁䙁䅳兒㑂䝁䅧兡楂䝁䅫䅤穂䍁䅁睑䑂䙁䅣兌穁䍁䅁兌杁䕁䅍睑塂䍁䄰免睁䍁䅁兙畂䝁䅑䅉䑂䕁䅍睖瑁䑁䅅李杁䍁䄰䅉䑂䕁䅍睖瑁䑁䅅睎杁䍁䅧䅎杁䡁䅉睢求䍁䅁督あ䡁䅕䅚灂䝁䅕督灁䍁䄴䅥獂䡁䅍兢摂䕁䄰兓杁䕁䅑兙あ䝁䅅䅉潁䙁䅣䅕灁䍁䅣光歁䕁䅅䅊㉁䑁䅯䅊䉂䍁䅑睎ぁ䅁䅁䅦䅁䭁䅷䅁湁䙁䅳兒㑂䝁䅧兡楂䝁䅫䅤穂䍁䅁睑䑂䙁䅣兌穁䍁䅁兌杁䕁䅍睑塂䍁䄰免睁䍁䅁兙畂䝁䅑䅉䑂䕁䅍睖瑁䑁䅅李杁䍁䄰䅉䑂䕁䅍睖瑁䑁䅅睎杁䍁䅧䅎杁䡁䅉睢求䍁䅁督あ䡁䅕䅚灂䝁䅕督灁䍁䄴䅥獂䡁䅍兢摂䕁䄰兓杁䕁䅑兙あ䝁䅅䅉潁䙁䅣䅕灁䍁䅣光歁䕁䅉䅊硁䅁䅁兦䅁䱁䅧䅁湁䙁䅳兒㑂䝁䅧兡楂䝁䅫䅤穂䍁䅁睑䑂䙁䅣兌穁䍁䅁兌杁䕁䅍睑塂䍁䄰免睁䍁䅁兙畂䝁䅑䅉䑂䕁䅍睖瑁䑁䅅李杁䍁䄰䅉䑂䕁䅍睖瑁䑁䅅睎杁䍁䅧䅎杁䡁䅉睢求䍁䅁督あ䡁䅕䅚灂䝁䅕督灁䍁䄴䅥獂䡁䅍兢摂䕁䄰兓杁䕁䅑兙あ䝁䅅䅉潁䙁䅣䅕灁䍁䅣光歁䕁䅍䅊㉁䑁䅯䅊䑂䍁䅑䅏㕁䅁䅁杦䅁䱁䅙䅁湁䙁䅳兒㑂䝁䅧兡楂䝁䅫䅤穂䍁䅁睑䑂䙁䅣兌穁䍁䅁兌杁䕁䅍睑塂䍁䄰免睁䍁䅁兙畂䝁䅑䅉䑂䕁䅍睖瑁䑁䅅李杁䍁䄰䅉䑂䕁䅍睖瑁䑁䅅睎杁䍁䅧䅎杁䡁䅉睢求䍁䅁督あ䡁䅕䅚灂䝁䅕督灁䍁䄴䅥獂䡁䅍兢摂䕁䄰兓杁䕁䅑兙あ䝁䅅䅉潁䙁䅣䅕灁䍁䅣光歁䕁䅑䅊穁䑁䅯䅊䝂䍁䅑睍䅁䡁䄸䅁煂䅁䅁睊扂䕁䅕䅥潂䝁䅫杙灂䡁䅑督杁䕁䄰䅕䡂䍁䄰杍杁䡁䅑䅡祂䡁䅕䅉乂䙁䅁睒硁䑁䅙杌㑂䝁䅷督瑂䙁䄰睕佂䕁䅷䅉䕂䝁䅅䅤桂䍁䅁䅋塂䙁䅁克湁䍁䅅䅊䉂䍁䅑免䅁䅁䄴䅁㉂䅁䅁睊扂䕁䅕䅥潂䝁䅫杙灂䡁䅑督杁䕁䄰䅕䡂䍁䄰杍杁䡁䅑䅡祂䡁䅕䅉乂䙁䅁睒硁䑁䅙杌㑂䝁䅷督瑂䙁䄰睕佂䕁䅷䅉䕂䝁䅅䅤桂䍁䅁䅋塂䙁䅁克湁䍁䅅䅊䉂䍁䅑李㙁䍁䅑兑歁䑁䅕睎䅁䅁䄸䅁煂䅁䅁睊扂䕁䅕䅥潂䝁䅫杙灂䡁䅑督杁䕁䄰䅕䡂䍁䄰杍杁䡁䅑䅡祂䡁䅕䅉乂䙁䅁睒硁䑁䅙杌㑂䝁䅷督瑂䙁䄰睕佂䕁䅷䅉䕂䝁䅅䅤桂䍁䅁䅋塂䙁䅁克湁䍁䅅䅊䍂䍁䅑免䅁䉁䅁䅁㉂䅁䅁睊扂䕁䅕䅥潂䝁䅫杙灂䡁䅑督杁䕁䄰䅕䡂䍁䄰杍杁䡁䅑䅡祂䡁䅕䅉乂䙁䅁睒硁䑁䅙杌㑂䝁䅷督瑂䙁䄰睕佂䕁䅷䅉䕂䝁䅅䅤桂䍁䅁䅋塂䙁䅁克湁䍁䅅䅊䑂䍁䅑李㙁䍁䅑睑歁䑁䅙䅍䅁䉁䅅䅁あ䅁䅁睊扂䕁䅕䅥潂䝁䅫杙灂䡁䅑督杁䕁䄰䅕䡂䍁䄰杍杁䡁䅑䅡祂䡁䅕䅉乂䙁䅁睒硁䑁䅙杌㑂䝁䅷督瑂䙁䄰睕佂䕁䅷䅉䕂䝁䅅䅤桂䍁䅁䅋塂䙁䅁克湁䍁䅅䅊䕂䍁䅑睍㙁䍁䅑杒歁䑁䅍䅁十䅁䅁杗䅁䍁䅣睗乂䙁䅁睑杁䕁䅑睑䝂䍁䅁睑䉂䙁䅁兔杁䡁䅍䅤ㅂ䝁䅑入畁䡁䅧䅢穂䝁䄰兘乂䕁䅫䅉䕂䝁䅅䅤桂䍁䅁䅋塂䙁䅁克湁䍁䅅䅊䉂䍁䅑免䅁䝁䄴䅁浂䅁䅁睊扂䕁䄰䅕䑂䍁䅁䅒䑂䕁䅙䅉䑂䕁䅅䅕乂䍁䅁督あ䡁䅕䅚㕂䍁䄴䅥獂䡁䅍兢摂䕁䄰兓杁䕁䅑兙あ䝁䅅䅉潁䙁䅣䅕灁䍁䅣光歁䕁䅅䅊㉁䑁䅯䅊䉂䍁䅑兎睁䅁䅁睢䅁䙁䅯䅁湁䙁䅳兔兂䕁䅍䅉䕂䕁䅍杒杁䕁䅍兑兂䕁䄰䅉穂䡁䅑兤歂䡁䅫杌㑂䝁䅷督瑂䙁䄰兔䩂䍁䅁䅒桂䡁䅑兙杁䍁䅧睖兂䍁䅫睊桁䍁䅑村歁䑁䅅䅁睂䅁䅁杚䅁䍁䅣睗乂䙁䅁睑杁䕁䅑睑䝂䍁䅁睑䉂䙁䅁兔杁䡁䅍䅤ㅂ䝁䅑入畁䡁䅧䅢穂䝁䄰兘乂䕁䅫䅉䕂䝁䅅䅤桂䍁䅁䅋塂䙁䅁克湁䍁䅅䅊䑂䍁䅑李㙁䍁䅑睑歁䑁䅙兎䅁䡁䅅䅁歂䅁䅁睊扂䕁䄰䅕䑂䍁䅁䅒䑂䕁䅙䅉䑂䕁䅅䅕乂䍁䅁督あ䡁䅕䅚㕂䍁䄴䅥獂䡁䅍兢摂䕁䄰兓杁䕁䅑兙あ䝁䅅䅉潁䙁䅣䅕灁䍁䅣光歁䕁䅑䅊穁䑁䅯䅊䝂䍁䅑睍䅁䡁䅉䅁兂䅁䅁睊扂䕁䄰䅕䡂䍁䅁杕偂䕁䅕䅉穂䡁䅑兤歂䡁䅫杌㑂䝁䅷督瑂䙁䄰兔䩂䍁䅁䅒桂䡁䅑兙杁䍁䅧睖兂䍁䅫睊桁䍁䅑村歁䑁䅅䅁浂䅁䅁䅘䅁䍁䅣睗乂䙁䅁睒杁䙁䅉睔䙂䍁䅁督あ䡁䅕䅚㕂䍁䄴䅥獂䡁䅍兢摂䕁䄰兓杁䕁䅑兙あ䝁䅅䅉潁䙁䅣䅕灁䍁䅣光歁䕁䅍䅊㉁䑁䅯䅊䑂䍁䅑李ㅁ䅁䅁睚䅁䙁䅯䅁湁䙁䅳兔兂䕁䅣䅉卂䕁䄸兒杁䡁䅍䅤ㅂ䝁䅑入畁䡁䅧䅢穂䝁䄰兘乂䕁䅫䅉䕂䝁䅅䅤桂䍁䅁䅋塂䙁䅁克湁䍁䅅䅊䕂䍁䅑睍㙁䍁䅑杒歁䑁䅍䅁潂䅁䅁䅕䅁䍁䅣睗偂䕁䅣杊䙂䍁䅁䅒䑂䕁䅙䅉䑂䕁䅅䅕乂䍁䄴䅥獂䡁䅍兢摂䕁䄰兓杁䕁䅑兙あ䝁䅅䅉潁䙁䅣䅕灁䍁䅣光歁䕁䅅䅊硁䅁䅁杮䅁䙁䅷䅁湁䙁䅳睔䡂䍁䅙兒杁䕁䅑睑䝂䍁䅁睑䉂䙁䅁兔畁䡁䅧䅢穂䝁䄰兘乂䕁䅫䅉䕂䝁䅅䅤桂䍁䅁䅋塂䙁䅁克湁䍁䅅䅊䉂䍁䅑李㙁䍁䅑兑歁䑁䅣䅎䅁䩁䄸䅁兂䅁䅁睊扂䕁䄸睒流䕁䅕䅉䕂䕁䅍杒杁䕁䅍兑兂䕁䄰杌㑂䝁䅷督瑂䙁䄰兔䩂䍁䅁䅒桂䡁䅑兙杁䍁䅧睖兂䍁䅫睊桁䍁䅑村歁䑁䅅䅁权䅁䅁䅘䅁䍁䅣睗偂䕁䅣杊䙂䍁䅁䅒䑂䕁䅙䅉䑂䕁䅅䅕乂䍁䄴䅥獂䡁䅍兢摂䕁䄰兓杁䕁䅑兙あ䝁䅅䅉潁䙁䅣䅕灁䍁䅣光歁䕁䅍䅊㉁䑁䅯䅊䑂䍁䅑䅏㕁䅁䅁兯䅁䙁䅯䅁湁䙁䅳睔䡂䍁䅙兒杁䕁䅑睑䝂䍁䅁睑䉂䙁䅁兔畁䡁䅧䅢穂䝁䄰兘乂䕁䅫䅉䕂䝁䅅䅤桂䍁䅁䅋塂䙁䅁克湁䍁䅅䅊䕂䍁䅑睍㙁䍁䅑杒歁䑁䅍䅁楃䅁䅁䅓䅁䍁䅣睗卂䕁䄸兒杁䙁䅍䅤ㅂ䝁䅑入畁䡁䅧䅢穂䝁䄰兘䑂䝁䄸兢睂䝁䅅杢㕂䍁䅁䅔灂䡁䅍䅤湁䍁䅅䅊䍂䍁䅑䅎䅁䕁䅳䅁卂䅁䅁睊扂䙁䅉睔䙂䍁䅁睕あ䡁䅕䅚㕂䍁䄴䅥獂䡁䅍兢摂䕁䅍睢瑂䡁䅁兙畂䡁䅫䅉䵂䝁䅫督あ䍁䅣光歁䕁䅑䅊㉁䑁䅯䅊䭂䍁䅑李䅁䕁䅷䅁䥂䅁䅁睊扂䙁䅉睔䙂䍁䅁睕あ䡁䅕䅚㕂䍁䄴䅥獂䡁䅍兢摂䕁䄰兓杁䕁䅑兙あ䝁䅅䅉潁䙁䅣䅕灁䍁䅣光歁䕁䅅䅊硁䅁䅁䅓䅁䙁䅑䅁湁䙁䅳杕偂䕁䅕䅉呂䡁䅑兤歂䡁䅫杌㑂䝁䅷督瑂䙁䄰兔䩂䍁䅁䅒桂䡁䅑兙杁䍁䅧睖兂䍁䅫睊桁䍁䅑兑歁䑁䅙杏歁䕁䅅䅊ㅁ䑁䅁䅁䩂䅁䅁䅓䅁䍁䅣睗卂䕁䄸兒杁䙁䅍䅤ㅂ䝁䅑入畁䡁䅧䅢穂䝁䄰兘乂䕁䅫䅉䕂䝁䅅䅤桂䍁䅁䅋塂䙁䅁克湁䍁䅅䅊䍂䍁䅑免䅁䕁䄴䅁啂䅁䅁睊扂䙁䅉睔䙂䍁䅁睕あ䡁䅕䅚㕂䍁䄴䅥獂䡁䅍兢摂䕁䄰兓杁䕁䅑兙あ䝁䅅䅉潁䙁䅣䅕灁䍁䅣光歁䕁䅍䅊㉁䑁䅯䅊䑂䍁䅑李ㅁ䅁䅁睔䅁䙁䅉䅁湁䙁䅳杕偂䕁䅕䅉呂䡁䅑兤歂䡁䅫杌㑂䝁䅷督瑂䙁䄰兔䩂䍁䅁䅒桂䡁䅑兙杁䍁䅧睖兂䍁䅫睊桁䍁䅑䅒歁䑁䅍杏歁䕁䅙䅊穁䅁䅁䅕䅁䕁䅯䅁湁䙁䅳杕偂䕁䅕䅉呂䡁䅑兤歂䡁䅫杌㑂䝁䅷督瑂䙁䄰睕佂䕁䅷䅉䕂䝁䅅䅤桂䍁䅁䅋塂䙁䅁克湁䍁䅅䅊䉂䍁䅑免䅁䍁䅣䅁坂䅁䅁睊扂䙁䅉睔䙂䍁䅁睕あ䡁䅕䅚㕂䍁䄴䅥獂䡁䅍兢摂䙁䅍杔䵂䍁䅁䅒桂䡁䅑兙杁䍁䅧睖兂䍁䅫睊桁䍁䅑兑歁䑁䅙杏歁䕁䅅䅊ㅁ䑁䅁䅁潁䅁䅁杓䅁䍁䅣睗卂䕁䄸兒杁䙁䅍䅤ㅂ䝁䅑入畁䡁䅧䅢穂䝁䄰兘呂䕁䄴䅔杁䕁䅑兙あ䝁䅅䅉潁䙁䅣䅕灁䍁䅣光歁䕁䅉䅊硁䅁䅁克䅁䙁䅙䅁湁䙁䅳杕偂䕁䅕䅉呂䡁䅑兤歂䡁䅫杌㑂䝁䅷督瑂䙁䄰睕佂䕁䅷䅉䕂䝁䅅䅤桂䍁䅁䅋塂䙁䅁克湁䍁䅅䅊䑂䍁䅑李㙁䍁䅑睑歁䑁䅙兎䅁䍁䅯䅁啂䅁䅁睊扂䙁䅉睔䙂䍁䅁睕あ䡁䅕䅚㕂䍁䄴䅥獂䡁䅍兢摂䙁䅍杔䵂䍁䅁䅒桂䡁䅑兙杁䍁䅧睖兂䍁䅫睊桁䍁䅑䅒歁䑁䅍杏歁䕁䅙䅊穁䅁䅁睋䅁䙁䅙䅁湁䙁䅳杕偂䕁䅕䅉穂䡁䅑兤歂䡁䅫睘㕁䍁䄰李瑁䑁䅅兏畁䡁䅧䅢穂䝁䄰兘乂䕁䅫䅉䕂䝁䅅䅤桂䍁䅁䅋塂䙁䅁克湁䍁䅅䅊䉂䍁䅑免䅁䙁䅣䅁楂䅁䅁睊扂䙁䅉睔䙂䍁䅁督あ䡁䅕䅚㕂䙁䄸兏瑁䑁䅙兌硁䑁䅫杌㑂䝁䅷督瑂䙁䄰兔䩂䍁䅁䅒桂䡁䅑兙杁䍁䅧睖兂䍁䅫睊桁䍁䅑兑歁䑁䅙杏歁䕁䅅䅊㍁䑁䅑䅁奂䅁䅁杖䅁䍁䅣睗卂䕁䄸兒杁䡁䅍䅤ㅂ䝁䅑入時䑁䅫兌㉁䍁䄰免㕁䍁䄴䅥獂䡁䅍兢摂䕁䄰兓杁䕁䅑兙あ䝁䅅䅉潁䙁䅣䅕灁䍁䅣光歁䕁䅉䅊硁䅁䅁兗䅁䝁䅉䅁湁䙁䅳杕偂䕁䅕䅉穂䡁䅑兤歂䡁䅫睘㕁䍁䄰李瑁䑁䅅兏畁䡁䅧䅢穂䝁䄰兘乂䕁䅫䅉䕂䝁䅅䅤桂䍁䅁䅋塂䙁䅁克湁䍁䅅䅊䑂䍁䅑李㙁䍁䅑睑歁䑁䅧兏䅁䙁䅯䅁杂䅁䅁睊扂䙁䅉睔䙂䍁䅁督あ䡁䅕䅚㕂䙁䄸兏瑁䑁䅙兌硁䑁䅫杌㑂䝁䅷督瑂䙁䄰兔䩂䍁䅁䅒桂䡁䅑兙杁䍁䅧睖兂䍁䅫睊桁䍁䅑䅒歁䑁䅍杏歁䕁䅙䅊穁䅁䅁睗䅁䑁䄴䅁湁䙁䅳杕偂䕁䅕杌㑂䝁䅷督瑂䙁䄰睕佂䕁䅷䅉䕂䝁䅅䅤桂䍁䅁䅋塂䙁䅁克湁䍁䅅䅊䉂䍁䅑免䅁䍁䅉䅁䭂䅁䅁睊扂䙁䅉睔䙂䍁䄴䅥獂䡁䅍兢摂䙁䅍杔䵂䍁䅁䅒桂䡁䅑兙杁䍁䅧睖兂䍁䅫睊桁䍁䅑兑歁䑁䅙杏歁䕁䅅䅊ㅁ䑁䅁䅁橁䅁䅁材䅁䍁䅣睗卂䕁䄸兒畁䡁䅧䅢穂䝁䄰兘呂䕁䄴䅔杁䕁䅑兙あ䝁䅅䅉潁䙁䅣䅕灁䍁䅣光歁䕁䅉䅊硁䅁䅁䅊䅁䕁䅯䅁湁䙁䅳杕偂䕁䅕杌㑂䝁䅷督瑂䙁䄰睕佂䕁䅷䅉䕂䝁䅅䅤桂䍁䅁䅋塂䙁䅁克湁䍁䅅䅊䑂䍁䅑李㙁䍁䅑睑歁䑁䅙兎䅁䍁䅕䅁䥂䅁䅁睊扂䙁䅉睔䙂䍁䄴䅥獂䡁䅍兢摂䙁䅍杔䵂䍁䅁䅒桂䡁䅑兙杁䍁䅧睖兂䍁䅫睊桁䍁䅑䅒歁䑁䅍杏歁䕁䅙䅊穁䅁䅁杊䅁䝁䅑䅁湁䙁䅳杕偂䕁䅕杍杁䍁䄰䅉䑂䝁䅧党穂䝁䅅䅣求䝁䅅睡求䍁䅁免睁䑁䅉免㑁䍁䄴䅥獂䡁䅍兢摂䕁䅍睢瑂䡁䅁兙畂䡁䅫䅉䵂䝁䅫督あ䍁䅣光歁䕁䅉䅊ぁ䅁䅁兆䅁䝁䄴䅁湁䙁䅳杕偂䕁䅕杍杁䍁䄰䅉䑂䝁䅧党穂䝁䅅䅣求䝁䅅睡求䍁䅁免睁䑁䅉免㑁䍁䄴䅥獂䡁䅍兢摂䕁䅍睢瑂䡁䅁兙畂䡁䅫䅉䵂䝁䅫督あ䍁䅣光歁䕁䅑䅊㉁䑁䅯䅊䩂䍁䅑李䅁䉁䅣䅁䵃䅁䅁睊扂䙁䅍睙潂䝁䅕䅚ㅂ䝁䅷党穂䍁䅁睑䑂䙁䅣兌穁䍁䅁兌杁䕁䅍睑塂䍁䄰免睁䍁䅁兙畂䝁䅑䅉䑂䕁䅍睖瑁䑁䅅李瑁䍁䅁睑䑂䙁䅣兌硁䑁䅣杌㑂䝁䅷督瑂䙁䄰兔䩂䍁䅁䅒桂䡁䅑兙杁䍁䅧睖兂䍁䅫睊桁䍁䅑兑歁䑁䅅䅁灂䅁䅁䅭䅁䍁䅣睗呂䝁䅍䅡求䝁䅑兤獂䝁䅕督杁䕁䅍睑塂䍁䄰睍杁䍁䄰䅉䑂䕁䅍睖瑁䑁䅅䅍杁䝁䅅杢歂䍁䅁睑䑂䙁䅣兌硁䑁䅙兌杁䕁䅍睑塂䍁䄰免㍁䍁䄴䅥獂䡁䅍兢摂䕁䄰兓杁䕁䅑兙あ䝁䅅䅉潁䙁䅣䅕灁䍁䅣光歁䕁䅅䅊㉁䑁䅯䅊䉂䍁䅑睎ぁ䅁䅁条䅁䥁䅷䅁湁䙁䅳睕橂䝁䅧党歂䡁䅕䅢求䡁䅍䅉䑂䕁䅍睖瑁䑁䅍䅉瑁䍁䅁睑䑂䙁䅣兌硁䑁䅁䅉桂䝁䄴䅚杁䕁䅍睑塂䍁䄰免㉁䍁䄰䅉䑂䕁䅍睖瑁䑁䅅睎畁䡁䅧䅢穂䝁䄰兘乂䕁䅫䅉䕂䝁䅅䅤桂䍁䅁䅋塂䙁䅁克湁䍁䅅䅊䍂䍁䅑免䅁䝁䅳䅁奃䅁䅁睊扂䙁䅍睙潂䝁䅕䅚ㅂ䝁䅷党穂䍁䅁睑䑂䙁䅣兌穁䍁䅁兌杁䕁䅍睑塂䍁䄰免睁䍁䅁兙畂䝁䅑䅉䑂䕁䅍睖瑁䑁䅅李瑁䍁䅁睑䑂䙁䅣兌硁䑁䅣杌㑂䝁䅷督瑂䙁䄰兔䩂䍁䅁䅒桂䡁䅑兙杁䍁䅧睖兂䍁䅫睊桁䍁䅑睑歁䑁䅙杏歁䕁䅍䅊㑁䑁䅫䅁獂䅁䅁杬䅁䍁䅣睗呂䝁䅍䅡求䝁䅑兤獂䝁䅕督杁䕁䅍睑塂䍁䄰睍杁䍁䄰䅉䑂䕁䅍睖瑁䑁䅅䅍杁䝁䅅杢歂䍁䅁睑䑂䙁䅣兌硁䑁䅙兌杁䕁䅍睑塂䍁䄰免㍁䍁䄴䅥獂䡁䅍兢摂䕁䄰兓杁䕁䅑兙あ䝁䅅䅉潁䙁䅣䅕灁䍁䅣光歁䕁䅑䅊穁䑁䅯䅊䝂䍁䅑睍䅁䝁䄰䅁䥂䅁䅁睊扂䝁䅕䅥潂䝁䅫杙灂䡁䅑督畁䡁䅧䅢穂䡁䅧兘呂䕁䄴䅔杁䕁䅑兙あ䝁䅅䅉潁䙁䅣䅕灁䍁䅣光歁䕁䅉䅊硁䅁䅁免䅁䙁䅙䅁湁䙁䅳党㑂䝁䅧兡楂䝁䅫䅤穂䍁䄴䅥獂䡁䅍䅥摂䙁䅍杔䵂䍁䅁䅒桂䡁䅑兙杁䍁䅧睖兂䍁䅫睊桁䍁䅑睑歁䑁䅙睍㙁䍁䅑睑歁䑁䅙兎䅁䑁䅉䅁卂䅁䅁睊扂䝁䅕䅥潂䝁䅫杙灂䡁䅑督畁䡁䅧䅢穂䡁䅧兘呂䕁䄴䅔杁䕁䅑兙あ䝁䅅䅉潁䙁䅣䅕灁䍁䅣光歁䕁䅑䅊穁䑁䅯䅊䝂䍁䅑睍䅁䑁䅍䅁兂䅁䅁睊扂䝁䄴党㍂䍁䅁䅤求䝁䄰䅣獂䝁䅅䅤求䍁䄴䅥獂䡁䅍兢摂䙁䅍杔䵂䍁䅁䅒桂䡁䅑兙杁䍁䅧睖兂䍁䅫睊桁䍁䅑兑歁䑁䅅䅁㕁䅁䅁䅘䅁䍁䅣睗畂䝁䅕睤杁䡁䅑党瑂䡁䅁䅢桂䡁䅑党畁䡁䅧䅢穂䝁䄰兘呂䕁䄴䅔杁䕁䅑兙あ䝁䅅䅉潁䙁䅣䅕灁䍁䅣光歁䕁䅅䅊㉁䑁䅯䅊䉂䍁䅑兎睁䅁䅁杏䅁䙁䅁䅁湁䙁䅳杢求䡁䅣䅉あ䝁䅕兢睂䝁䅷兙あ䝁䅕杌㑂䝁䅷督瑂䙁䄰睕佂䕁䅷䅉䕂䝁䅅䅤桂䍁䅁䅋塂䙁䅁克湁䍁䅅䅊䍂䍁䅑免䅁䑁䅳䅁捂䅁䅁睊扂䝁䄴党㍂䍁䅁䅤求䝁䄰䅣獂䝁䅅䅤求䍁䄴䅥獂䡁䅍兢摂䙁䅍杔䵂䍁䅁䅒桂䡁䅑兙杁䍁䅧睖兂䍁䅫睊桁䍁䅑睑歁䑁䅙杏歁䕁䅍䅊㉁䑁䅕䅁㡁䅁䅁杗䅁䍁䅣睗畂䝁䅕睤杁䡁䅑党瑂䡁䅁䅢桂䡁䅑党畁䡁䅧䅢穂䝁䄰兘呂䕁䄴䅔杁䕁䅑兙あ䝁䅅䅉潁䙁䅣䅕灁䍁䅣光歁䕁䅑䅊穁䑁䅯䅊䝂䍁䅑睍䅁䑁䄰䅁䭂䅁䅁睊扂䡁䅉睢求䍁䅁督あ䡁䅕䅚㕂䍁䄴䅥獂䡁䅍兢摂䙁䅍杔䵂䍁䅁䅒桂䡁䅑兙杁䍁䅧睖兂䍁䅫睊桁䍁䅑兑歁䑁䅅䅁䩁䅁䅁杖䅁䍁䅣睗祂䝁䄸党杁䡁䅍䅤ㅂ䝁䅑入畁䡁䅧䅢穂䝁䄰兘呂䕁䄴䅔杁䕁䅑兙あ䝁䅅䅉潁䙁䅣䅕灁䍁䅣光歁䕁䅅䅊㉁䑁䅯䅊䉂䍁䅑兎㍁䅁䅁权䅁䕁䅯䅁湁䙁䅳杣療䝁䅕䅉穂䡁䅑兤歂䡁䅫杌㑂䝁䅷督瑂䙁䄰睕佂䕁䅷䅉䕂䝁䅅䅤桂䍁䅁䅋塂䙁䅁克湁䍁䅅䅊䍂䍁䅑免䅁䅁䅳䅁坂䅁䅁睊扂䡁䅉睢求䍁䅁督あ䡁䅕䅚㕂䍁䄴䅥獂䡁䅍兢摂䙁䅍杔䵂䍁䅁䅒桂䡁䅑兙杁䍁䅧睖兂䍁䅫睊桁䍁䅑睑歁䑁䅙杏歁䕁䅍䅊㉁䑁䅁䅁䵁䅁䅁䅖䅁䍁䅣睗祂䝁䄸党杁䡁䅍䅤ㅂ䝁䅑入畁䡁䅧䅢穂䝁䄰兘呂䕁䄴䅔杁䕁䅑兙あ䝁䅅䅉潁䙁䅣䅕灁䍁䅣光歁䕁䅑䅊穁䑁䅯䅊䝂䍁䅑睍䅁䅁䄰䅁㉁䅁䅁睑療䝁䄰䅣桂䝁䄴入杁䕁䄴兙瑂䝁䅕䅌杁䕁䅅杙楂䡁䅉党㉂䝁䅫兙あ䝁䅕䅚杁䅁䅁杈䅁䍁䅯䅁䑂䝁䄸兢睂䝁䅅杢㕂䍁䅁杔桂䝁䄰党獁䍁䅁睕潂䝁䄸杣あ䍁䅁䅁摁䅁䅁䅉䅁䕁䅕杔䙂䙁䅉睒婂䕁䅍睔乂䙁䅁兑佂䕁䅫兒呂䅁䅁杆䅁䉁䅑䅁䙂䡁䅧睙潂䝁䅅杢湂䝁䅕䅉䅁䉁䅯䅁⭁䅁䅁睔睂䡁䅑兡療䝁䄴督㙁䕁䅍兤祂䡁䅉児獁䕁䄰兙湂䑁䄰䅌䑂䝁䄸杢㉂䕁䄰党あ䝁䅧睢歂䑁䄰䅁䡁䅁䅁杤䅁䕁䄸䅣あ䝁䅫睢畂䡁䅍杏䑂䡁䅕杣祂䑁䄰兖呂䕁䅑䅌乂䝁䅅睚㥁䙁䅍杔䵂䡁䅍䅤桂䝁䄴䅚桂䡁䅉䅚獁䕁䅍睢畂䡁䅙兔求䡁䅑䅡療䝁䅑児呂䕁䄴䅔祂䝁䅕睙療䝁䄰兢求䝁䄴䅚求䝁䅑䅁乂䅁䅁杋䅁䙁䅁兙祂䝁䅕杢あ䍁䅁睑療䝁䄰䅣桂䝁䄴入杁䕁䄴兙瑂䝁䅕䅉䅁䉁䅷䅁十䅁䅁睕佂䕁䅷兕ㅂ䝁䅕杣㕂䅁䅁䅇䅁䉁䅉䅁呂䕁䄴䅔啂䝁䅅杙獂䝁䅕䅁䥁䅁䅁䅆䅁䙁䅍杔䵂䙁䅑兡橂䝁䅳党祂䅁䅁睁䅁䉁䅁䅁啂䝁䅫睙牂䝁䅕杣杁䅁䅁睇䅁䑁䅙䅁啂䡁䅉兙歂䝁䅫杢湂䍁䅁睕㕂䝁䄰杙療䝁䅷䅉流䍁䅁兒㑂䝁䅍䅡桂䝁䄴睚求䍁䅁䅁剂䅁䅁䅐䅁䙁䅕䅢あ䝁䅫兢桂䡁䅑党杁䙁䅁兙祂䝁䅕杢あ䍁䅁睑療䝁䄰䅣桂䝁䄴入杁䕁䄴兙瑂䝁䅕䅉䅁䉁䄸䅁䅁䅁䅁

Sheet MPG-19
A1: Kentucky Utilities Company / Louisville Gas & Electric Company
A4: D'Ascendis' Revised Multi-Stage Growth DCF Model
D8: 60-Day AVG | E8: Annualized | F8: First Stage | G8: Second Stage Growth | L8: Third Stage | M8: Multi-Stage | P8: First Stage | U8: Second Stage | Z8: Third Stage
A9: Line | C9: Company | D9: Stock Price1 | E9: Dividend2 | F9: Growth3 | G9: Year 6 | H9: Year 7 | I9: Year 8 | J9: Year 9 | K9: Year 10 | L9: Growth4 | M9: Growth DCF | O9: Price | P9: Year1 | Q9: Year2 | R9: Year3 | S9: Year4 | T9: Year5 | U9: Year6 | V9: Year7 | W9: Year8 | X9: Year9 | Y9: Year10 | Z9: Year11 | AA9: Year12 | AB9: Year13 | AC9: Year14 | AD9: Year15 | AE9: Year16 | AF9: Year17 | AG9: Year18 | AH9: Year19 | AI9: Year20 | AJ9: Year21 | AK9: Year22 | AL9: Year23 | AM9: Year24 | AN9: Year25 | AO9: Year26 | AP9: Year27 | AQ9: Year28 | AR9: Year29 | AS9: Year30 | AT9: Year31 | AU9: Year32 | AV9: Year33 | AW9: Year34 | AX9: Year35 | AY9: Year36 | AZ9: Year37 | BA9: Year38 | BB9: Year39 | BC9: Year40 | BD9: Year41 | BE9: Year42 | BF9: Year43 | BG9: Year44 | BH9: Year45 | BI9: Year46 | BJ9: Year47 | BK9: Year48 | BL9: Year49 | BM9: Year50 | BN9: Year51 | BO9: Year52 | BP9: Year53 | BQ9: Year54 | BR9: Year55 | BS9: Year56 | BT9: Year57 | BU9: Year58 | BV9: Year59 | BW9: Year60 | BX9: Year61 | BY9: Year62 | BZ9: Year63 | CA9: Year64 | CB9: Year65 | CC9: Year66 | CD9: Year67 | CE9: Year68 | CF9: Year69 | CG9: Year70 | CH9: Year71 | CI9: Year72 | CJ9: Year73 | CK9: Year74 | CL9: Year75 | CM9: Year76 | CN9: Year77 | CO9: Year78 | CP9: Year79 | CQ9: Year80 | CR9: Year81 | CS9: Year82 | CT9: Year83 | CU9: Year84 | CV9: Year85 | CW9: Year86 | CX9: Year87 | CY9: Year88 | CZ9: Year89 | DA9: Year90 | DB9: Year91 | DC9: Year92 | DD9: Year93 | DE9: Year94 | DF9: Year95 | DG9: Year96 | DH9: Year97 | DI9: Year98 | DJ9: Year99 | DK9: Year100 | DL9: Year101 | DM9: Year102 | DN9: Year103 | DO9: Year104 | DP9: Year105 | DQ9: Year106 | DR9: Year107 | DS9: Year108 | DT9: Year109 | DU9: Year110 | DV9: Year111 | DW9: Year112 | DX9: Year113 | DY9: Year114 | DZ9: Year115 | EA9: Year116 | EB9: Year117 | EC9: Year118 | ED9: Year119 | EE9: Year120 | EF9: Year121 | EG9: Year122 | EH9: Year123 | EI9: Year124 | EJ9: Year125 | EK9: Year126 | EL9: Year127 | EM9: Year128 | EN9: Year129 | EO9: Year130 | EP9: Year131 | EQ9: Year132 | ER9: Year133 | ES9: Year134 | ET9: Year135 | EU9: Year136 | EV9: Year137 | EW9: Year138 | EX9: Year139 | EY9: Year140 | EZ9: Year141 | FA9: Year142 | FB9: Year143 | FC9: Year144 | FD9: Year145 | FE9: Year146 | FF9: Year147 | FG9: Year148 | FH9: Year149 | FI9: Year150 | FJ9: Year151 | FK9: Year152 | FL9: Year153 | FM9: Year154 | FN9: Year155 | FO9: Year156 | FP9: Year157 | FQ9: Year158 | FR9: Year159 | FS9: Year160 | FT9: Year161 | FU9: Year162 | FV9: Year163 | FW9: Year164 | FX9: Year165 | FY9: Year166 | FZ9: Year167 | GA9: Year168 | GB9: Year169 | GC9: Year170 | GD9: Year171 | GE9: Year172 | GF9: Year173 | GG9: Year174 | GH9: Year175 | GI9: Year176 | GJ9: Year177 | GK9: Year178 | GL9: Year179 | GM9: Year180 | GN9: Year181 | GO9: Year182 | GP9: Year183 | GQ9: Year184 | GR9: Year185 | GS9: Year186 | GT9: Year187 | GU9: Year188 | GV9: Year189 | GW9: Year190 | GX9: Year191 | GY9: Year192 | GZ9: Year193 | HA9: Year194 | HB9: Year195 | HC9: Year196 | HD9: Year197 | HE9: Year198 | HF9: Year199 | HG9: Year200
D10: -1 | E10: -2 | F10: -3 | G10: -4 | H10: -5 | I10: -6 | J10: -7 | K10: -8 | L10: -9 | M10: -10
B11: Gas
A12: =MAX($A$11:A11)+1 -> 1 | C12: Atmos Energy Corporation | D12: 142.74 | E12: 3.48 | F12: 0.0685 | G12: =IFERROR(F12-($F12-$L12)/6,"N/A") -> 0.06391666667 | H12: 0.05933333333 | I12: 0.05475 | J12: 0.05016666667 | K12: 0.04558333333 | L12: =ROUND(IFERROR((((1+0.02)*(1+0.021)-1)+((1+0.019)*(1+0.021)-1))/2,"N/A"),3) -> 0.041 | M12: =IFERROR(IRR(O12:HG12),"N/A") -> 0.07124704138 | O12: =-D12 -> -142.74 | P12: =E12*(1+$F12) -> 3.71838 | Q12: =P12*(1+$F12) -> 3.97308903 | R12: 4.245245629 | S12: 4.536044954 | T12: 4.846764033 | U12: =T12*(1+G12) -> 5.156553035 | V12: 5.462508515 | W12: 5.761580856 | X12: 6.050620162 | Y12: 6.326427598 | Z12: =Y12*(1+$L12) -> 6.585811129 | AA12: 6.855829386 | AB12: 7.13691839 | AC12: 7.429532044 | AD12: 7.734142858 | AE12: 8.051242715 | AF12: 8.381343667 | AG12: 8.724978757 | AH12: 9.082702886 | AI12: 9.455093705 | AJ12: 9.842752546 | AK12: 10.2463054 | AL12: 10.66640392 | AM12: 11.10372648 | AN12: 11.55897927 | AO12: 12.03289742 | AP12: 12.52624621 | AQ12: 13.03982231 | AR12: 13.57445502 | AS12: 14.13100768 | AT12: 14.71037899 | AU12: 15.31350453 | AV12: 15.94135822 | AW12: 16.5949539 | AX12: 17.27534701 | AY12: 17.98363624 | AZ12: 18.72096533 | BA12: 19.48852491 | BB12: 20.28755443 | BC12: 21.11934416 | BD12: 21.98523727 | BE12: 22.886632 | BF12: 23.82498391 | BG12: 24.80180825 | BH12: 25.81868239 | BI12: 26.87724837 | BJ12: 27.97921555 | BK12: 29.12636339 | BL12: 30.32054429 | BM12: 31.5636866 | BN12: 32.85779775 | BO12: 34.20496746 | BP12: 35.60737113 | BQ12: 37.06727334 | BR12: 38.58703155 | BS12: 40.16909984 | BT12: 41.81603294 | BU12: 43.53049029 | BV12: 45.31524039 | BW12: 47.17316524 | BX12: 49.10726502 | BY12: 51.12066289 | BZ12: 53.21661006 | CA12: 55.39849108 | CB12: 57.66982921 | CC12: 60.03429221 | CD12: 62.49569819 | CE12: 65.05802181 | CF12: 67.72540071 | CG12: 70.50214214 | CH12: 73.39272996 | CI12: 76.40183189 | CJ12: 79.534307 | CK12: 82.79521359 | CL12: =CK12*(1+$L12) -> 86.18981735 | CM12: 89.72359986 | CN12: 93.40226745 | CO12: 97.23176042 | CP12: 101.2182626 | CQ12: 105.3682114 | CR12: 109.688308 | CS12: 114.1855287 | CT12: 118.8671353 | CU12: 123.7406879 | CV12: 128.8140561 | CW12: 134.0954324 | CX12: 139.5933451 | CY12: 145.3166723 | CZ12: 151.2746558 | DA12: 157.4769167 | DB12: 163.9334703 | DC12: 170.6547426 | DD12: 177.651587 | DE12: 184.9353021 | DF12: 192.5176495 | DG12: 200.4108731 | DH12: 208.6277189 | DI12: 217.1814554 | DJ12: 226.085895 | DK12: 235.3554167 | DL12: 245.0049888 | DM12: 255.0501934 | DN12: 265.5072513 | DO12: 276.3930486 | DP12: 287.7251636 | DQ12: 299.5218953 | DR12: 311.802293 | DS12: 324.586187 | DT12: 337.8942207 | DU12: 351.7478837 | DV12: 366.169547 | DW12: 381.1824984 | DX12: 396.8109808 | DY12: 413.080231 | DZ12: 430.0165205 | EA12: 447.6471979 | EB12: 466.000733 | EC12: 485.106763 | ED12: 504.9961403 | EE12: 525.7009821 | EF12: 547.2547223 | EG12: 569.6921659 | EH12: 593.0495447 | EI12: 617.3645761 | EJ12: 642.6765237 | EK12: 669.0262612 | EL12: 696.4563379 | EM12: 725.0110477 | EN12: 754.7365007 | EO12: 785.6806972 | EP12: 817.8936058 | EQ12: 851.4272436 | ER12: 886.3357606 | ES12: 922.6755268 | ET12: 960.5052234 | EU12: 999.8859376 | EV12: 1040.881261 | EW12: 1083.557393 | EX12: =EW12*(1+$L12) -> 1127.983246 | EY12: 1174.230559 | EZ12: 1222.374012 | FA12: 1272.491346 | FB12: 1324.663491 | FC12: 1378.974695 | FD12: 1435.512657 | FE12: 1494.368676 | FF12: 1555.637792 | FG12: 1619.418941 | FH12: 1685.815118 | FI12: 1754.933538 | FJ12: 1826.885813 | FK12: 1901.788131 | FL12: 1979.761444 | FM12: 2060.931664 | FN12: 2145.429862 | FO12: 2233.392486 | FP12: 2324.961578 | FQ12: 2420.285003 | FR12: 2519.516688 | FS12: 2622.816872 | FT12: 2730.352364 | FU12: 2842.296811 | FV12: 2958.83098 | FW12: 3080.14305 | FX12: 3206.428915 | FY12: 3337.892501 | FZ12: 3474.746093 | GA12: 3617.210683 | GB12: 3765.516321 | GC12: 3919.90249 | GD12: 4080.618492 | GE12: 4247.923851 | GF12: 4422.088729 | GG12: 4603.394366 | GH12: 4792.133535 | GI12: 4988.61101 | GJ12: 5193.144062 | GK12: 5406.062968 | GL12: 5627.71155 | GM12: 5858.447724 | GN12: 6098.64408 | GO12: 6348.688488 | GP12: 6608.984716 | GQ12: 6879.953089 | GR12: 7162.031166 | GS12: 7455.674443 | GT12: 7761.357095 | GU12: 8079.572736 | GV12: 8410.835219 | GW12: 8755.679463 | GX12: 9114.66232 | GY12: 9488.363476 | GZ12: 9877.386378 | HA12: 10282.35922 | HB12: 10703.93595 | HC12: 11142.79732 | HD12: 11599.65201 | HE12: 12075.23774 | HF12: 12570.32249 | HG12: 13085.70571
A13: =MAX($A$11:A12)+1 -> 2 | C13: New Jersey Resources Corporation | D13: 47.15 | E13: 1.8 | F13: 0.0545 | G13: 0.05225 | H13: 0.05 | I13: 0.04775 | J13: 0.0455 | K13: 0.04325 | L13: =ROUND(IFERROR((((1+0.02)*(1+0.021)-1)+((1+0.019)*(1+0.021)-1))/2,"N/A"),3) -> 0.041 | M13: 0.08424364186 | O13: -47.15 | P13: 1.8981 | Q13: =P13*(1+$F13) -> 2.00154645 | R13: =Q13*(1+$F13) -> 2.110630732 | S13: =R13*(1+$F13) -> 2.225660106 | T13: =S13*(1+$F13) -> 2.346958582 | U13: =T13*(1+G13) -> 2.469587168 | V13: =U13*(1+H13) -> 2.593066527 | W13: =V13*(1+I13) -> 2.716885453 | X13: =W13*(1+J13) -> 2.840503741 | Y13: =X13*(1+K13) -> 2.963355528 | Z13: =Y13*(1+$L13) -> 3.084853105 | AA13: 3.211332082 | AB13: 3.342996697 | AC13: 3.480059562 | AD13: 3.622742004 | AE13: 3.771274426 | AF13: 3.925896678 | AG13: 4.086858441 | AH13: 4.254419638 | AI13: 4.428850843 | AJ13: 4.610433727 | AK13: 4.79946151 | AL13: 4.996239432 | AM13: 5.201085249 | AN13: 5.414329744 | AO13: 5.636317263 | AP13: =AO13*(1+$L13) -> 5.867406271 | AQ13: 6.107969928 | AR13: 6.358396695 | AS13: 6.61909096 | AT13: 6.890473689 | AU13: 7.17298311 | AV13: 7.467075418 | AW13: 7.77322551 | AX13: 8.091927756 | AY13: 8.423696794 | AZ13: 8.769068363 | BA13: 9.128600165 | BB13: 9.502872772 | BC13: 9.892490556 | BD13: 10.29808267 | BE13: 10.72030406 | BF13: =BE13*(1+$L13) -> 11.15983652 | BG13: 11.61738982 | BH13: 12.0937028 | BI13: 12.58954462 | BJ13: 13.10571595 | BK13: 13.6430503 | BL13: 14.20241537 | BM13: 14.7847144 | BN13: 15.39088769 | BO13: 16.02191408 | BP13: 16.67881256 | BQ13: 17.36264387 | BR13: 18.07451227 | BS13: 18.81556727 | BT13: 19.58700553 | BU13: 20.39007276 | BV13: =BU13*(1+$L13) -> 21.22606574 | BW13: 22.09633444 | BX13: 23.00228415 | BY13: 23.9453778 | BZ13: 24.92713829 | CA13: 25.94915096 | CB13: 27.01306615 | CC13: 28.12060186 | CD13: 29.27354654 | CE13: 30.47376195 | CF13: 31.72318619 | CG13: 33.02383682 | CH13: 34.37781413 | CI13: 35.78730451 | CJ13: 37.25458399 | CK13: 38.78202194 | CL13: =CK13*(1+$L13) -> 40.37208484 | CM13: 42.02734032 | CN13: 43.75046127 | CO13: 45.54423018 | CP13: 47.41154362 | CQ13: 49.35541691 | CR13: 51.378989 | CS13: 53.48552755 | CT13: 55.67843418 | CU13: 57.96124998 | CV13: 60.33766123 | CW13: 62.81150534 | CX13: 65.38677706 | CY13: 68.06763492 | CZ13: 70.85840795 | DA13: 73.76360267 | DB13: =DA13*(1+$L13) -> 76.78791038 | DC13: 79.93621471 | DD13: 83.21359951 | DE13: 86.62535709 | DF13: 90.17699673 | DG13: 93.8742536 | DH13: 97.723098 | DI13: 101.729745 | DJ13: 105.9006646 | DK13: 110.2425918 | DL13: 114.7625381 | DM13: 119.4678021 | DN13: 124.365982 | DO13: 129.4649873 | DP13: 134.7730518 | DQ13: 140.2987469 | DR13: =DQ13*(1+$L13) -> 146.0509955 | DS13: 152.0390863 | DT13: 158.2726889 | DU13: 164.7618691 | DV13: 171.5171057 | DW13: 178.5493071 | DX13: 185.8698287 | DY13: 193.4904916 | DZ13: 201.4236018 | EA13: 209.6819695 | EB13: 218.2789302 | EC13: 227.2283664 | ED13: 236.5447294 | EE13: 246.2430633 | EF13: 256.3390289 | EG13: 266.8489291 | EH13: =EG13*(1+$L13) -> 277.7897351 | EI13: 289.1791143 | EJ13: 301.035458 | EK13: 313.3779118 | EL13: 326.2264061 | EM13: 339.6016888 | EN13: 353.525358 | EO13: 368.0198977 | EP13: 383.1087135 | EQ13: 398.8161708 | ER13: 415.1676338 | ES13: 432.1895068 | ET13: 449.9092765 | EU13: 468.3555569 | EV13: 487.5581347 | EW13: 507.5480182 | EX13: =EW13*(1+$L13) -> 528.357487 | EY13: 550.0201439 | EZ13: 572.5709698 | FA13: 596.0463796 | FB13: 620.4842812 | FC13: 645.9241367 | FD13: 672.4070263 | FE13: 699.9757144 | FF13: 728.6747187 | FG13: 758.5503821 | FH13: 789.6509478 | FI13: 822.0266367 | FJ13: 855.7297288 | FK13: 890.8146476 | FL13: 927.3380482 | FM13: 965.3589082 | FN13: =FM13*(1+$L13) -> 1004.938623 | FO13: 1046.141107 | FP13: 1089.032892 | FQ13: 1133.683241 | FR13: 1180.164254 | FS13: 1228.550988 | FT13: 1278.921579 | FU13: 1331.357363 | FV13: 1385.943015 | FW13: 1442.766679 | FX13: 1501.920113 | FY13: 1563.498837 | FZ13: 1627.60229 | GA13: 1694.333984 | GB13: 1763.801677 | GC13: 1836.117546 | GD13: =GC13*(1+$L13) -> 1911.398365 | GE13: 1989.765698 | GF13: 2071.346092 | GG13: 2156.271281 | GH13: 2244.678404 | GI13: 2336.710219 | GJ13: 2432.515338 | GK13: 2532.248466 | GL13: 2636.070654 | GM13: 2744.14955 | GN13: 2856.659682 | GO13: 2973.782729 | GP13: 3095.707821 | GQ13: 3222.631841 | GR13: 3354.759747 | GS13: 3492.304896 | GT13: =GS13*(1+$L13) -> 3635.489397 | GU13: 3784.544463 | GV13: 3939.710785 | GW13: 4101.238928 | GX13: 4269.389724 | GY13: 4444.434702 | GZ13: 4626.656525 | HA13: 4816.349443 | HB13: 5013.81977 | HC13: 5219.38638 | HD13: 5433.381222 | HE13: 5656.149852 | HF13: 5888.051996 | HG13: 6129.462128
A14: =MAX($A$11:A13)+1 -> 3 | C14: NiSource Inc. | D14: 37.55 | E14: 1.12 | F14: 0.0854 | G14: 0.078 | H14: 0.0706 | I14: 0.0632 | J14: 0.0558 | K14: 0.0484 | L14: 0.041 | M14: 0.08201779758 | O14: -37.55 | P14: 1.215648 | Q14: 1.319464339 | R14: 1.432146594 | S14: 1.554451913 | T14: 1.687202106 | U14: 1.818803871 | V14: 1.947211424 | W14: 2.070275186 | X14: 2.185796541 | Y14: 2.291589094 | Z14: 2.385544247 | AA14: 2.483351561 | AB14: 2.585168975 | AC14: 2.691160903 | AD14: 2.8014985 | AE14: 2.916359938 | AF14: 3.035930696 | AG14: 3.160403854 | AH14: 3.289980412 | AI14: 3.424869609 | AJ14: 3.565289263 | AK14: 3.711466123 | AL14: 3.863636234 | AM14: 4.022045319 | AN14: 4.186949177 | AO14: 4.358614094 | AP14: 4.537317272 | AQ14: 4.72334728 | AR14: 4.917004518 | AS14: 5.118601703 | AT14: 5.328464373 | AU14: 5.546931413 | AV14: 5.774355601 | AW14: 6.01110418 | AX14: 6.257559452 | AY14: 6.514119389 | AZ14: 6.781198284 | BA14: 7.059227414 | BB14: 7.348655738 | BC14: 7.649950623 | BD14: 7.963598598 | BE14: 8.290106141 | BF14: 8.630000493 | BG14: 8.983830513 | BH14: 9.352167564 | BI14: 9.735606434 | BJ14: 10.1347663 | BK14: 10.55029172 | BL14: 10.98285368 | BM14: 11.43315068 | BN14: 11.90190985 | BO14: 12.38988816 | BP14: 12.89787357 | BQ14: 13.42668639 | BR14: 13.97718053 | BS14: 14.55024493 | BT14: 15.14680498 | BU14: 15.76782398 | BV14: 16.41430476 | BW14: 17.08729126 | BX14: 17.7878702 | BY14: 18.51717288 | BZ14: 19.27637697 | CA14: 20.06670842 | CB14: 20.88944347 | CC14: 21.74591065 | CD14: 22.63749299 | CE14: 23.5656302 | CF14: 24.53182104 | CG14: 25.5376257 | CH14: 26.58466835 | CI14: 27.67463976 | CJ14: 28.80929999 | CK14: 29.99048128 | CL14: 31.22009102 | CM14: 32.50011475 | CN14: 33.83261945 | CO14: 35.21975685 | CP14: 36.66376688 | CQ14: 38.16698132 | CR14: 39.73182756 | CS14: 41.36083249 | CT14: 43.05662662 | CU14: 44.82194831 | CV14: 46.65964819 | CW14: 48.57269377 | CX14: 50.56417421 | CY14: 52.63730536 | CZ14: 54.79543488 | DA14: 57.04204771 | DB14: 59.38077166 | DC14: 61.8153833 | DD14: 64.34981401 | DE14: 66.98815639 | DF14: 69.7346708 | DG14: 72.5937923 | DH14: 75.57013779 | DI14: 78.66851344 | DJ14: 81.89392249 | DK14: 85.25157331 | DL14: 88.74688782 | DM14: 92.38551022 | DN14: 96.17331614 | DO14: 100.1164221 | DP14: 104.2211954 | DQ14: 108.4942644 | DR14: 112.9425293 | DS14: 117.573173 | DT14: 122.393673 | DU14: 127.4118136 | DV14: 132.635698 | DW14: 138.0737616 | DX14: 143.7347858 | DY14: 149.6279121 | DZ14: 155.7626565 | EA14: 162.1489254 | EB14: 168.7970313 | EC14: 175.7177096 | ED14: 182.9221357 | EE14: 190.4219433 | EF14: 198.2292429 | EG14: 206.3566419 | EH14: 214.8172642 | EI14: 223.624772 | EJ14: 232.7933877 | EK14: 242.3379166 | EL14: 252.2737712 | EM14: 262.6169958 | EN14: 273.3842926 | EO14: 284.5930486 | EP14: 296.2613636 | EQ14: 308.4080795 | ER14: 321.0528108 | ES14: 334.215976 | ET14: 347.918831 | EU14: 362.1835031 | EV14: 377.0330267 | EW14: 392.4913808 | EX14: 408.5835274 | EY14: 425.3354521 | EZ14: 442.7742056 | FA14: 460.927948 | FB14: 479.8259939 | FC14: 499.4988596 | FD14: 519.9783129 | FE14: 541.2974237 | FF14: 563.4906181 | FG14: 586.5937334 | FH14: 610.6440765 | FI14: 635.6804836 | FJ14: 661.7433835 | FK14: 688.8748622 | FL14: 717.1187315 | FM14: 746.5205995 | FN14: 777.1279441 | FO14: 808.9901898 | FP14: 842.1587876 | FQ14: 876.6872979 | FR14: 912.6314771 | FS14: 950.0493677 | FT14: 989.0013918 | FU14: 1029.550449 | FV14: 1071.762017 | FW14: 1115.70426 | FX14: 1161.448135 | FY14: 1209.067508 | FZ14: 1258.639276 | GA14: 1310.243486 | GB14: 1363.963469 | GC14: 1419.885971 | GD14: 1478.101296 | GE14: 1538.703449 | GF14: 1601.790291 | GG14: 1667.463693 | GH14: 1735.829704 | GI14: 1806.998722 | GJ14: 1881.08567 | GK14: 1958.210182 | GL14: 2038.4968 | GM14: 2122.075168 | GN14: 2209.08025 | GO14: 2299.65254 | GP14: 2393.938295 | GQ14: 2492.089765 | GR14: 2594.265445 | GS14: 2700.630328 | GT14: 2811.356172 | GU14: 2926.621775 | GV14: 3046.613268 | GW14: 3171.524412 | GX14: 3301.556912 | GY14: 3436.920746 | GZ14: 3577.834496 | HA14: 3724.525711 | HB14: 3877.231265 | HC14: 4036.197747 | HD14: 4201.681854 | HE14: 4373.95081 | HF14: 4553.282794 | HG14: 4739.967388
A15: =MAX($A$11:A14)+1 -> 4 | C15: Northwest Natural Holding Company | D15: 40.5 | E15: 1.96 | F15: 0.06 | G15: 0.05683333333 | H15: 0.05366666667 | I15: 0.0505 | J15: 0.04733333333 | K15: 0.04416666667 | L15: 0.041 | M15: 0.09750560194 | O15: -40.5 | P15: 2.0776 | Q15: 2.202256 | R15: 2.33439136 | S15: 2.474454842 | T15: 2.622922132 | U15: 2.77199154 | V15: 2.920755086 | W15: 3.068253218 | X15: 3.21348387 | Y15: 3.355412741 | Z15: 3.492984663 | AA15: 3.636197035 | AB15: 3.785281113 | AC15: 3.940477639 | AD15: 4.102037222 | AE15: 4.270220748 | AF15: 4.445299799 | AG15: 4.62755709 | AH15: 4.817286931 | AI15: 5.014795695 | AJ15: 5.220402319 | AK15: 5.434438814 | AL15: 5.657250805 | AM15: 5.889198088 | AN15: 6.13065521 | AO15: 6.382012073 | AP15: 6.643674568 | AQ15: 6.916065226 | AR15: 7.1996239 | AS15: 7.49480848 | AT15: 7.802095627 | AU15: 8.121981548 | AV15: 8.454982792 | AW15: 8.801637086 | AX15: 9.162504207 | AY15: 9.538166879 | AZ15: 9.929231721 | BA15: 10.33633022 | BB15: 10.76011976 | BC15: 11.20128467 | BD15: 11.66053734 | BE15: 12.13861937 | BF15: 12.63630277 | BG15: 13.15439118 | BH15: 13.69372122 | BI15: 14.25516379 | BJ15: 14.83962551 | BK15: 15.44805015 | BL15: 16.08142021 | BM15: 16.74075844 | BN15: 17.42712953 | BO15: 18.14164184 | BP15: 18.88544916 | BQ15: 19.65975257 | BR15: 20.46580243 | BS15: 21.30490033 | BT15: 22.17840124 | BU15: 23.08771569 | BV15: 24.03431204 | BW15: 25.01971883 | BX15: 26.0455273 | BY15: 27.11339392 | BZ15: 28.22504307 | CA15: 29.38226984 | CB15: 30.5869429 | CC15: 31.84100756 | CD15: 33.14648887 | CE15: 34.50549491 | CF15: 35.9202202 | CG15: 37.39294923 | CH15: 38.92606015 | CI15: 40.52202862 | CJ15: 42.18343179 | CK15: 43.91295249 | CL15: 45.71338355 | CM15: 47.58763227 | CN15: 49.5387252 | CO15: 51.56981293 | CP15: 53.68417526 | CQ15: 55.88522644 | CR15: 58.17652073 | CS15: 60.56175808 | CT15: 63.04479016 | CU15: 65.62962656 | CV15: 68.32044125 | CW15: 71.12157934 | CX15: 74.03756409 | CY15: 77.07310422 | CZ15: 80.23310149 | DA15: 83.52265865 | DB15: 86.94708766 | DC15: 90.51191825 | DD15: 94.2229069 | DE15: 98.08604608 | DF15: 102.107574 | DG15: 106.2939845 | DH15: 110.6520379 | DI15: 115.1887714 | DJ15: 119.911511 | DK15: 124.827883 | DL15: 129.9458262 | DM15: 135.2736051 | DN15: 140.8198229 | DO15: 146.5934356 | DP15: 152.6037665 | DQ15: 158.8605209 | DR15: 165.3738023 | DS15: 172.1541282 | DT15: 179.2124474 | DU15: 186.5601578 | DV15: 194.2091242 | DW15: 202.1716983 | DX15: 210.460738 | DY15: 219.0896282 | DZ15: 228.072303 | EA15: 237.4232674 | EB15: 247.1576214 | EC15: 257.2910838 | ED15: 267.8400183 | EE15: 278.821459 | EF15: 290.2531388 | EG15: 302.1535175 | EH15: 314.5418117 | EI15: 327.438026 | EJ15: 340.8629851 | EK15: 354.8383675 | EL15: 369.3867405 | EM15: 384.5315969 | EN15: 400.2973924 | EO15: 416.7095855 | EP15: 433.7946785 | EQ15: 451.5802603 | ER15: 470.095051 | ES15: 489.3689481 | ET15: 509.4330749 | EU15: 530.319831 | EV15: 552.0629441 | EW15: 574.6975248 | EX15: 598.2601233 | EY15: 622.7887883 | EZ15: 648.3231287 | FA15: 674.9043769 | FB15: 702.5754564 | FC15: 731.3810501 | FD15: 761.3676732 | FE15: 792.5837478 | FF15: 825.0796814 | FG15: 858.9079484 | FH15: 894.1231742 | FI15: 930.7822244 | FJ15: 968.9442956 | FK15: 1008.671012 | FL15: 1050.026523 | FM15: 1093.077611 | FN15: 1137.893793 | FO15: 1184.547438 | FP15: 1233.113883 | FQ15: 1283.671552 | FR15: 1336.302086 | FS15: 1391.090472 | FT15: 1448.125181 | FU15: 1507.498313 | FV15: 1569.305744 | FW15: 1633.64728 | FX15: 1700.626818 | FY15: 1770.352518 | FZ15: 1842.936971 | GA15: 1918.497387 | GB15: 1997.155779 | GC15: 2079.039166 | GD15: 2164.279772 | GE15: 2253.015243 | GF15: 2345.388868 | GG15: 2441.549811 | GH15: 2541.653354 | GI15: 2645.861141 | GJ15: 2754.341448 | GK15: 2867.269447 | GL15: 2984.827495 | GM15: 3107.205422 | GN15: 3234.600844 | GO15: 3367.219479 | GP15: 3505.275478 | GQ15: 3648.991772 | GR15: 3798.600435 | GS15: 3954.343053 | GT15: 4116.471118 | GU15: 4285.246434 | GV15: 4460.941537 | GW15: 4643.84014 | GX15: 4834.237586 | GY15: 5032.441327 | GZ15: 5238.771422 | HA15: 5453.56105 | HB15: 5677.157053 | HC15: 5909.920492 | HD15: 6152.227232 | HE15: 6404.468549 | HF15: 6667.051759 | HG15: 6940.400882
A16: =MAX($A$11:A15)+1 -> 5 | C16: ONE Gas, Inc. | D16: 71.04 | E16: 2.68 | F16: 0.0378 | G16: 0.03833333333 | H16: 0.03886666667 | I16: 0.0394 | J16: 0.03993333333 | K16: 0.04046666667 | L16: 0.041 | M16: =IFERROR(IRR(O16:HG16),"N/A") -> 0.07945025174 | O16: -71.04 | P16: 2.781304 | Q16: 2.886437291 | R16: 2.995544621 | S16: 3.108776207 | T16: 3.226287948 | U16: 3.349962319 | V16: 3.480164188 | W16: 3.617282657 | X16: 3.761732811 | Y16: 3.913957599 | Z16: 4.074429861 | AA16: 4.241481485 | AB16: 4.415382226 | AC16: 4.596412897 | AD16: 4.784865826 | AE16: 4.981045325 | AF16: 5.185268183 | AG16: 5.397864179 | AH16: 5.61917661 | AI16: 5.849562851 | AJ16: 6.089394928 | AK16: 6.33906012 | AL16: 6.598961585 | AM16: 6.86951901 | AN16: 7.151169289 | AO16: 7.44436723 | AP16: 7.749586287 | AQ16: 8.067319324 | AR16: 8.398079417 | AS16: 8.742400673 | AT16: 9.1008391 | AU16: 9.473973503 | AV16: 9.862406417 | AW16: 10.26676508 | AX16: 10.68770245 | AY16: 11.12589825 | AZ16: 11.58206008 | BA16: 12.05692454 | BB16: 12.55125845 | BC16: 13.06586004 | BD16: 13.6015603 | BE16: 14.15922428 | BF16: 14.73975247 | BG16: 15.34408232 | BH16: 15.9731897 | BI16: 16.62809048 | BJ16: 17.30984219 | BK16: 18.01954572 | BL16: 18.75834709 | BM16: 19.52743932 | BN16: 20.32806433 | BO16: 21.16151497 | BP16: 22.02913708 | BQ16: 22.9323317 | BR16: 23.8725573 | BS16: 24.85133215 | BT16: 25.87023677 | BU16: 26.93091648 | BV16: 28.03508406 | BW16: 29.1845225 | BX16: 30.38108792 | BY16: 31.62671253 | BZ16: 32.92340774 | CA16: 34.27326746 | CB16: 35.67847143 | CC16: 37.14128875 | CD16: 38.66408159 | CE16: 40.24930894 | CF16: 41.89953061 | CG16: 43.61741136 | CH16: 45.40572523 | CI16: 47.26735996 | CJ16: 49.20532172 | CK16: 51.22273991 | CL16: 53.32287225 | CM16: 55.50911001 | CN16: 57.78498352 | CO16: 60.15416784 | CP16: 62.62048872 | CQ16: 65.18792876 | CR16: 67.86063384 | CS16: 70.64291983 | CT16: 73.53927954 | CU16: 76.55439 | CV16: 79.69311999 | CW16: 82.96053791 | CX16: 86.36191997 | CY16: 89.90275869 | CZ16: 93.58877179 | DA16: 97.42591143 | DB16: 101.4203738 | DC16: 105.5786091 | DD16: 109.9073321 | DE16: 114.4135327 | DF16: 119.1044876 | DG16: 123.9877716 | DH16: 129.0712702 | DI16: 134.3631923 | DJ16: 139.8720831 | DK16: 145.6068386 | DL16: 151.5767189 | DM16: 157.7913644 | DN16: 164.2608104 | DO16: 170.9955036 | DP16: 178.0063192 | DQ16: 185.3045783 | DR16: 192.902066 | DS16: 200.8110507 | DT16: 209.0443038 | DU16: 217.6151203 | DV16: 226.5373402 | DW16: 235.8253711 | DX16: 245.4942114 | DY16: 255.559474 | DZ16: 266.0374125 | EA16: 276.9449464 | EB16: 288.2996892 | EC16: 300.1199764 | ED16: 312.4248955 | EE16: 325.2343162 | EF16: 338.5689231 | EG16: 352.450249 | EH16: 366.9007092 | EI16: 381.9436383 | EJ16: 397.6033274 | EK16: 413.9050639 | EL16: 430.8751715 | EM16: 448.5410535 | EN16: 466.9312367 | EO16: 486.0754174 | EP16: 506.0045095 | EQ16: 526.7506944 | ER16: 548.3474729 | ES16: 570.8297193 | ET16: 594.2337378 | EU16: 618.597321 | EV16: 643.9598112 | EW16: 670.3621634 | EX16: 697.8470121 | EY16: 726.4587396 | EZ16: 756.243548 | FA16: 787.2495334 | FB16: 819.5267643 | FC16: 853.1273616 | FD16: 888.1055835 | FE16: 924.5179124 | FF16: 962.4231468 | FG16: 1001.882496 | FH16: 1042.959678 | FI16: 1085.721025 | FJ16: 1130.235587 | FK16: 1176.575246 | FL16: 1224.814831 | FM16: 1275.032239 | FN16: 1327.308561 | FO16: 1381.728212 | FP16: 1438.379069 | FQ16: 1497.352611 | FR16: 1558.744068 | FS16: 1622.652574 | FT16: 1689.18133 | FU16: 1758.437764 | FV16: 1830.533713 | FW16: 1905.585595 | FX16: 1983.714604 | FY16: 2065.046903 | FZ16: 2149.713826 | GA16: 2237.852093 | GB16: 2329.604029 | GC16: 2425.117794 | GD16: 2524.547624 | GE16: 2628.054076 | GF16: 2735.804293 | GG16: 2847.972269 | GH16: 2964.739132 | GI16: 3086.293437 | GJ16: 3212.831468 | GK16: 3344.557558 | GL16: 3481.684418 | GM16: 3624.433479 | GN16: 3773.035251 | GO16: 3927.729697 | GP16: 4088.766614 | GQ16: 4256.406046 | GR16: 4430.918693 | GS16: 4612.58636 | GT16: 4801.702401 | GU16: 4998.572199 | GV16: 5203.513659 | GW16: 5416.857719 | GX16: 5638.948886 | GY16: 5870.14579 | GZ16: 6110.821767 | HA16: 6361.36546 | HB16: 6622.181444 | HC16: 6893.690883 | HD16: 7176.332209 | HE16: 7470.56183 | HF16: 7776.854865 | HG16: 8095.705914
A17: =MAX($A$11:A16)+1 -> 6 | C17: Southwest Gas Holdings, Inc. | D17: 73.67 | E17: 2.48 | F17: 0.0905 | G17: 0.08225 | H17: 0.074 | I17: 0.06575 | J17: 0.0575 | K17: 0.04925 | L17: 0.041 | M17: 0.0885391649 | O17: -73.67 | P17: 2.70444 | Q17: 2.94919182 | R17: 3.21609368 | S17: 3.507150158 | T17: 3.824547247 | U17: 4.139116258 | V17: 4.445410861 | W17: 4.737696625 | X17: 5.010114181 | Y17: 5.256862305 | Z17: 5.472393659 | AA17: 5.696761799 | AB17: 5.930329033 | AC17: 6.173472523 | AD17: 6.426584897 | AE17: 6.690074878 | AF17: 6.964367947 | AG17: 7.249907033 | AH17: 7.547153222 | AI17: 7.856586504 | AJ17: 8.17870655 | AK17: 8.514033519 | AL17: 8.863108893 | AM17: 9.226496358 | AN17: 9.604782709 | AO17: 9.9985788 | AP17: 10.40852053 | AQ17: 10.83526987 | AR17: 11.27951594 | AS17: 11.74197609 | AT17: 12.22339711 | AU17: 12.72455639 | AV17: 13.2462632 | AW17: 13.78935999 | AX17: 14.35472375 | AY17: 14.94326743 | AZ17: 15.55594139 | BA17: 16.19373499 | BB17: 16.85767813 | BC17: 17.54884293 | BD17: 18.26834549 | BE17: 19.01734765 | BF17: 19.79705891 | BG17: 20.60873832 | BH17: 21.45369659 | BI17: 22.33329815 | BJ17: 23.24896338 | BK17: 24.20217088 | BL17: 25.19445988 | BM17: 26.22743274 | BN17: 27.30275748 | BO17: 28.42217054 | BP17: 29.58747953 | BQ17: 30.80056619 | BR17: 32.0633894 | BS17: 33.37798837 | BT17: 34.74648589 | BU17: 36.17109181 | BV17: 37.65410658 | BW17: 39.19792495 | BX17: 40.80503987 | BY17: 42.4780465 | BZ17: 44.21964641 | CA17: 46.03265191 | CB17: 47.91999064 | CC17: 49.88471026 | CD17: 51.92998338 | CE17: 54.0591127 | CF17: 56.27553632 | CG17: 58.58283331 | CH17: 60.98472947 | CI17: 63.48510338 | CJ17: 66.08799262 | CK17: 68.79760032 | CL17: 71.61830193 | CM17: 74.55465231 | CN17: 77.61139306 | CO17: 80.79346017 | CP17: 84.10599204 | CQ17: 87.55433771 | CR17: 91.14406556 | CS17: 94.88097224 | CT17: 98.77109211 | CU17: 102.8207069 | CV17: 107.0363559 | CW17: 111.4248465 | CX17: 115.9932652 | CY17: 120.748989 | CZ17: 125.6996976 | DA17: 130.8533852 | DB17: 136.218374 | DC17: 141.8033273 | DD17: 147.6172637 | DE17: 153.6695715 | DF17: 159.970024 | DG17: 166.528795 | DH17: 173.3564756 | DI17: 180.464091 | DJ17: 187.8631188 | DK17: 195.5655067 | DL17: 203.5836924 | DM17: 211.9306238 | DN17: 220.6197794 | DO17: 229.6651903 | DP17: 239.0814631 | DQ17: 248.8838031 | DR17: 259.0880391 | DS17: 269.7106487 | DT17: 280.7687853 | DU17: 292.2803055 | DV17: 304.263798 | DW17: 316.7386137 | DX17: 329.7248969 | DY17: 343.2436176 | DZ17: 357.316606 | EA17: 371.9665868 | EB17: 387.2172169 | EC17: 403.0931228 | ED17: 419.6199408 | EE17: 436.8243584 | EF17: 454.734157 | EG17: 473.3782575 | EH17: 492.786766 | EI17: 512.9910235 | EJ17: 534.0236554 | EK17: 555.9186253 | EL17: 578.7112889 | EM17: 602.4384518 | EN17: 627.1384283 | EO17: 652.8511039 | EP17: 679.6179991 | EQ17: 707.4823371 | ER17: 736.4891129 | ES17: 766.6851665 | ET17: 798.1192584 | EU17: 830.8421479 | EV17: 864.906676 | EW17: 900.3678497 | EX17: 937.2829316 | EY17: 975.7115318 | EZ17: 1015.715705 | FA17: 1057.360048 | FB17: 1100.71181 | FC17: 1145.840995 | FD17: 1192.820475 | FE17: 1241.726115 | FF17: 1292.636886 | FG17: 1345.634998 | FH17: 1400.806033 | FI17: 1458.23908 | FJ17: 1518.026883 | FK17: 1580.265985 | FL17: 1645.05689 | FM17: 1712.504223 | FN17: 1782.716896 | FO17: 1855.808288 | FP17: 1931.896428 | FQ17: 2011.104182 | FR17: 2093.559453 | FS17: 2179.395391 | FT17: 2268.750602 | FU17: 2361.769377 | FV17: 2458.601921 | FW17: 2559.4046 | FX17: 2664.340188 | FY17: 2773.578136 | FZ17: 2887.29484 | GA17: 3005.673928 | GB17: 3128.906559 | GC17: 3257.191728 | GD17: 3390.736589 | GE17: 3529.756789 | GF17: 3674.476817 | GG17: 3825.130367 | GH17: 3981.960712 | GI17: 4145.221101 | GJ17: 4315.175166 | GK17: 4492.097348 | GL17: 4676.273339 | GM17: 4868.000546 | GN17: 5067.588569 | GO17: 5275.3597 | GP17: 5491.649448 | GQ17: 5716.807075 | GR17: 5951.196165 | GS17: 6195.195208 | GT17: 6449.198211 | GU17: 6713.615338 | GV17: 6988.873567 | GW17: 7275.417383 | GX17: 7573.709496 | GY17: 7884.231585 | GZ17: 8207.48508 | HA17: 8543.991968 | HB17: 8894.295639 | HC17: 9258.96176 | HD17: 9638.579193 | HE17: 10033.76094 | HF17: 10445.14514 | HG17: 10873.39609
A18: =MAX($A$11:A17)+1 -> 7 | C18: Spire Inc. | D18: 70.27 | E18: 3.14 | F18: 0.0571 | G18: 0.05441666667 | H18: 0.05173333333 | I18: 0.04905 | J18: 0.04636666667 | K18: 0.04368333333 | L18: 0.041 | M18: 0.09234008175 | O18: -70.27 | P18: 3.319294 | Q18: 3.508825687 | R18: 3.709179634 | S18: 3.920973791 | T18: 4.144861395 | U18: 4.370410936 | V18: 4.596506861 | W18: 4.821965523 | X18: 5.045543991 | Y18: 5.265950171 | Z18: 5.481854128 | AA18: 5.706610147 | AB18: 5.940581163 | AC18: 6.184144991 | AD18: 6.437694936 | AE18: 6.701640428 | AF18: 6.976407686 | AG18: 7.262440401 | AH18: 7.560200457 | AI18: 7.870168676 | AJ18: 8.192845592 | AK18: 8.528752261 | AL18: 8.878431103 | AM18: 9.242446779 | AN18: 9.621387097 | AO18: 10.01586397 | AP18: 10.42651439 | AQ18: 10.85400148 | AR18: 11.29901554 | AS18: 11.76227518 | AT18: 12.24452846 | AU18: 12.74655413 | AV18: 13.26916285 | AW18: 13.81319852 | AX18: 14.37953966 | AY18: 14.96910079 | AZ18: 15.58283392 | BA18: 16.22173011 | BB18: 16.88682105 | BC18: 17.57918071 | BD18: 18.29992712 | BE18: 19.05022413 | BF18: 19.83128332 | BG18: 20.64436594 | BH18: 21.49078494 | BI18: 22.37190712 | BJ18: 23.28915531 | BK18: 24.24401068 | BL18: 25.23801512 | BM18: 26.27277374 | BN18: 27.34995746 | BO18: 28.47130572 | BP18: 29.63862925 | BQ18: 30.85381305 | BR18: 32.11881939 | BS18: 33.43569098 | BT18: 34.80655431 | BU18: 36.23362304 | BV18: 37.71920158 | BW18: 39.26568885 | BX18: 40.87558209 | BY18: 42.55148096 | BZ18: 44.29609168 | CA18: 46.11223144 | CB18: 48.00283293 | CC18: 49.97094907 | CD18: 52.01975799 | CE18: 54.15256806 | CF18: 56.37282336 | CG18: 58.68410911 | CH18: 61.09015759 | CI18: 63.59485405 | CJ18: 66.20224306 | CK18: 68.91653503 | CL18: 71.74211297 | CM18: 74.6835396 | CN18: 77.74556472 | CO18: 80.93313287 | CP18: 84.25139132 | CQ18: 87.70569837 | CR18: 91.301632 | CS18: 95.04499891 | CT18: 98.94184387 | CU18: 102.9984595 | CV18: 107.2213963 | CW18: 111.6174736 | CX18: 116.19379 | CY18: 120.9577354 | CZ18: 125.9170025 | DA18: 131.0795996 | DB18: 136.4538632 | DC18: 142.0484716 | DD18: 147.8724589 | DE18: 153.9352297 | DF18: 160.2465742 | DG18: 166.8166837 | DH18: 173.6561677 | DI18: 180.7760706 | DJ18: 188.1878895 | DK18: 195.903593 | DL18: 203.9356403 | DM18: 212.2970015 | DN18: 221.0011786 | DO18: 230.0622269 | DP18: 239.4947782 | DQ18: 249.3140641 | DR18: 259.5359408 | DS18: 270.1769143 | DT18: 281.2541678 | DU18: 292.7855887 | DV18: 304.7897978 | DW18: 317.2861795 | DX18: 330.2949129 | DY18: 343.8370043 | DZ18: 357.9343215 | EA18: 372.6096287 | EB18: 387.8866235 | EC18: 403.789975 | ED18: 420.345364 | EE18: 437.5795239 | EF18: 455.5202844 | EG18: 474.1966161 | EH18: 493.6386773 | EI18: 513.8778631 | EJ18: 534.9468555 | EK18: 556.8796766 | EL18: 579.7117433 | EM18: 603.4799248 | EN18: 628.2226017 | EO18: 653.9797284 | EP18: 680.7928972 | EQ18: 708.705406 | ER18: 737.7623276 | ES18: 768.0105831 | ET18: 799.499017 | EU18: 832.2784767 | EV18: 866.4018942 | EW18: 901.9243719 | EX18: 938.9032711 | EY18: 977.3983053 | EZ18: 1017.471636 | FA18: 1059.187973 | FB18: 1102.61468 | FC18: 1147.821882 | FD18: 1194.882579 | FE18: 1243.872764 | FF18: 1294.871548 | FG18: 1347.961281 | FH18: 1403.227694 | FI18: 1460.760029 | FJ18: 1520.65119 | FK18: 1582.997889 | FL18: 1647.900803 | FM18: 1715.464736 | FN18: 1785.79879 | FO18: 1859.01654 | FP18: 1935.236218 | FQ18: 2014.580903 | FR18: 2097.17872 | FS18: 2183.163048 | FT18: 2272.672733 | FU18: 2365.852315 | FV18: 2462.85226 | FW18: 2563.829202 | FX18: 2668.9462 | FY18: 2778.372994 | FZ18: 2892.286287 | GA18: 3010.870024 | GB18: 3134.315695 | GC18: 3262.822639 | GD18: 3396.598367 | GE18: 3535.8589 | GF18: 3680.829115 | GG18: 3831.743109 | GH18: 3988.844576 | GI18: 4152.387204 | GJ18: 4322.635079 | GK18: 4499.863117 | GL18: 4684.357505 | GM18: 4876.416163 | GN18: 5076.349226 | GO18: 5284.479544 | GP18: 5501.143205 | GQ18: 5726.690077 | GR18: 5961.48437 | GS18: 6205.905229 | GT18: 6460.347343 | GU18: 6725.221584 | GV18: 7000.955669 | GW18: 7287.994852 | GX18: 7586.802641 | GY18: 7897.861549 | GZ18: 8221.673872 | HA18: 8558.762501 | HB18: 8909.671764 | HC18: 9274.968306 | HD18: 9655.242007 | HE18: 10051.10693 | HF18: 10463.20231 | HG18: 10892.19361
A20: =MAX($A$11:A19)+1 -> 8 | C20: Average | D20: =AVERAGE(D12:D18) -> 68.98857143 | E20: =AVERAGE(E12:E18) -> 2.38 | F20: 0.06482857143 | G20: 0.06085714286 | H20: 0.05688571429 | I20: 0.05291428571 | J20: 0.04894285714 | K20: 0.04497142857 | L20: 0.041 | M20: 0.08504908302
A21: =MAX($A$11:A20)+1 -> 9 | C21: Median | D21: =MEDIAN(D12:D18) -> 70.27 | E21: =MEDIAN(E12:E18) -> 2.48 | F21: 0.06 | G21: 0.05683333333 | H21: 0.05366666667 | I21: 0.0505 | J21: 0.04733333333 | K21: 0.04416666667 | L21: 0.041 | M21: 0.08424364186
B23: Electric
A24: =MAX($A$11:A23)+1 -> 10 | C24: Alliant Energy Corporation | D24: 60.07 | E24: 2.03 | F24: 0.0638 | G24: =IFERROR(F24-($F24-$L24)/6,"N/A") -> 0.06 | H24: 0.0562 | I24: 0.0524 | J24: 0.0486 | K24: 0.0448 | L24: 0.041 | M24: 0.0816078965 | O24: =-D24 -> -60.07 | P24: =E24*(1+$F24) -> 2.159514 | Q24: 2.297290993 | R24: 2.443858159 | S24: 2.599776309 | T24: 2.765642038 | U24: 2.93158056 | V24: 3.096335387 | W24: 3.258583362 | X24: 3.416950513 | Y24: 3.570029896 | Z24: 3.716401122 | AA24: 3.868773568 | AB24: 4.027393284 | AC24: 4.192516409 | AD24: 4.364409581 | AE24: 4.543350374 | AF24: 4.72962774 | AG24: 4.923542477 | AH24: 5.125407718 | AI24: 5.335549435 | AJ24: 5.554306962 | AK24: 5.782033547 | AL24: 6.019096923 | AM24: 6.265879896 | AN24: 6.522780972 | AO24: 6.790214992 | AP24: 7.068613807 | AQ24: 7.358426973 | AR24: 7.660122479 | AS24: 7.9741875 | AT24: 8.301129188 | AU24: 8.641475484 | AV24: 8.995775979 | AW24: 9.364602794 | AX24: 9.748551509 | AY24: 10.14824212 | AZ24: 10.56432005 | BA24: 10.99745717 | BB24: 11.44835291 | BC24: 11.91773538 | BD24: 12.40636253 | BE24: 12.9150234 | BF24: 13.44453936 | BG24: 13.99576547 | BH24: 14.56959186 | BI24: 15.16694512 | BJ24: 15.78878987 | BK24: 16.43613026 | BL24: 17.1100116 | BM24: 17.81152207 | BN24: 18.54179448 | BO24: 19.30200805 | BP24: 20.09339038 | BQ24: 20.91721939 | BR24: 21.77482538 | BS24: 22.66759322 | BT24: 23.59696454 | BU24: 24.56444009 | BV24: 25.57158213 | BW24: 26.620017 | BX24: 27.7114377 | BY24: 28.84760664 | BZ24: 30.03035852 | CA24: 31.26160322 | CB24: 32.54332895 | CC24: 33.87760543 | CD24: 35.26658726 | CE24: 36.71251733 | CF24: 38.21773054 | CG24: 39.7846575 | CH24: 41.41582845 | CI24: 43.11387742 | CJ24: 44.8815464 | CK24: 46.7216898 | CL24: 48.63727908 | CM24: 50.63140752 | CN24: 52.70729523 | CO24: 54.86829433 | CP24: 57.1178944 | CQ24: 59.45972807 | CR24: 61.89757692 | CS24: 64.43537758 | CT24: 67.07722806 | CU24: 69.82739441 | CV24: 72.69031758 | CW24: 75.6706206 | CX24: 78.77311604 | CY24: 82.0028138 | CZ24: 85.36492917 | DA24: 88.86489126 | DB24: 92.50835181 | DC24: 96.30119423 | DD24: 100.2495432 | DE24: 104.3597745 | DF24: 108.6385252 | DG24: 113.0927048 | DH24: 117.7295056 | DI24: 122.5564154 | DJ24: 127.5812284 | DK24: 132.8120588 | DL24: 138.2573532 | DM24: 143.9259047 | DN24: 149.8268668 | DO24: 155.9697683 | DP24: 162.3645288 | DQ24: 169.0214745 | DR24: 175.9513549 | DS24: 183.1653605 | DT24: 190.6751403 | DU24: 198.492821 | DV24: 206.6310267 | DW24: 215.1028988 | DX24: 223.9221176 | DY24: 233.1029244 | DZ24: 242.6601443 | EA24: 252.6092103 | EB24: 262.9661879 | EC24: 273.7478016 | ED24: 284.9714614 | EE24: 296.6552914 | EF24: 308.8181583 | EG24: 321.4797028 | EH24: 334.6603706 | EI24: 348.3814458 | EJ24: 362.6650851 | EK24: 377.5343536 | EL24: 393.0132621 | EM24: 409.1268058 | EN24: 425.9010049 | EO24: 443.3629461 | EP24: 461.5408268 | EQ24: 480.4640007 | ER24: 500.1630248 | ES24: 520.6697088 | ET24: 542.0171668 | EU24: 564.2398707 | EV24: 587.3737054 | EW24: 611.4560273 | EX24: 636.5257244 | EY24: 662.6232791 | EZ24: 689.7908336 | FA24: 718.0722577 | FB24: 747.5132203 | FC24: 778.1612623 | FD24: 810.0658741 | FE24: 843.2785749 | FF24: 877.8529965 | FG24: 913.8449694 | FH24: 951.3126131 | FI24: 990.3164303 | FJ24: 1030.919404 | FK24: 1073.187099 | FL24: 1117.187771 | FM24: 1162.992469 | FN24: 1210.67516 | FO24: 1260.312842 | FP24: 1311.985668 | FQ24: 1365.777081 | FR24: 1421.773941 | FS24: 1480.066673 | FT24: 1540.749406 | FU24: 1603.920132 | FV24: 1669.680857 | FW24: 1738.137773 | FX24: 1809.401421 | FY24: 1883.58688 | FZ24: 1960.813942 | GA24: 2041.207313 | GB24: 2124.896813 | GC24: 2212.017582 | GD24: 2302.710303 | GE24: 2397.121426 | GF24: 2495.403404 | GG24: 2597.714944 | GH24: 2704.221256 | GI24: 2815.094328 | GJ24: 2930.513195 | GK24: 3050.664236 | GL24: 3175.74147 | GM24: 3305.94687 | GN24: 3441.490692 | GO24: 3582.59181 | GP24: 3729.478075 | GQ24: 3882.386676 | GR24: 4041.564529 | GS24: 4207.268675 | GT24: 4379.766691 | GU24: 4559.337125 | GV24: 4746.269947 | GW24: 4940.867015 | GX24: 5143.442563 | GY24: 5354.323708 | GZ24: 5573.85098 | HA24: 5802.37887 | HB24: 6040.276404 | HC24: 6287.927736 | HD24: 6545.732773 | HE24: 6814.107817 | HF24: 7093.486237 | HG24: 7384.319173
A25: =MAX($A$11:A24)+1 -> 11 | C25: Ameren Corporation | D25: 93.16 | E25: 2.84 | F25: 0.0666 | G25: 0.06233333333 | H25: 0.05806666667 | I25: 0.0538 | J25: 0.04953333333 | K25: 0.04526666667 | L25: 0.041 | M25: 0.07832415625 | O25: -93.16 | P25: 3.029144 | Q25: 3.23088499 | R25: 3.446061931 | S25: 3.675569655 | T25: 3.920362594 | U25: 4.164731863 | V25: 4.40656396 | W25: 4.643637101 | X25: 4.873651925 | Y25: 5.094265902 | Z25: 5.303130804 | AA25: 5.520559167 | AB25: 5.746902093 | AC25: 5.982525079 | AD25: 6.227808607 | AE25: 6.48314876 | AF25: 6.748957859 | AG25: 7.025665131 | AH25: 7.313717402 | AI25: 7.613579815 | AJ25: 7.925736588 | AK25: 8.250691788 | AL25: 8.588970151 | AM25: 8.941117927 | AN25: 9.307703762 | AO25: 9.689319616 | AP25: 10.08658172 | AQ25: 10.50013157 | AR25: 10.93063697 | AS25: 11.37879308 | AT25: 11.8453236 | AU25: 12.33098187 | AV25: 12.83655212 | AW25: 13.36285076 | AX25: 13.91072764 | AY25: 14.48106747 | AZ25: 15.07479124 | BA25: 15.69285768 | BB25: 16.33626484 | BC25: 17.0060517 | BD25: 17.70329982 | BE25: 18.42913512 | BF25: 19.18472966 | BG25: 19.97130357 | BH25: 20.79012702 | BI25: 21.64252223 | BJ25: 22.52986564 | BK25: 23.45359013 | BL25: 24.41518732 | BM25: 25.41621 | BN25: 26.45827461 | BO25: 27.54306387 | BP25: 28.67232949 | BQ25: 29.847895 | BR25: 31.0716587 | BS25: 32.3455967 | BT25: 33.67176617 | BU25: 35.05230858 | BV25: 36.48945323 | BW25: 37.98552081 | BX25: 39.54292717 | BY25: 41.16418718 | BZ25: 42.85191886 | CA25: 44.60884753 | CB25: 46.43781028 | CC25: 48.3417605 | CD25: 50.32377268 | CE25: 52.38704736 | CF25: 54.5349163 | CG25: 56.77084787 | CH25: 59.09845263 | CI25: 61.52148919 | CJ25: 64.04387025 | CK25: 66.66966893 | CL25: 69.40312535 | CM25: 72.24865349 | CN25: 75.21084829 | CO25: 78.29449307 | CP25: 81.50456728 | CQ25: 84.84625454 | CR25: 88.32495098 | CS25: 91.94627397 | CT25: 95.7160712 | CU25: 99.64043012 | CV25: 103.7256878 | CW25: 107.978441 | CX25: 112.405557 | CY25: 117.0141849 | CZ25: 121.8117664 | DA25: 126.8060489 | DB25: 132.0050969 | DC25: 137.4173058 | DD25: 143.0514154 | DE25: 148.9165234 | DF25: 155.0221009 | DG25: 161.378007 | DH25: 167.9945053 | DI25: 174.88228 | DJ25: 182.0524535 | DK25: 189.5166041 | DL25: 197.2867849 | DM25: 205.375543 | DN25: 213.7959403 | DO25: 222.5615739 | DP25: 231.6865984 | DQ25: 241.1857489 | DR25: 251.0743646 | DS25: 261.3684136 | DT25: 272.0845185 | DU25: 283.2399838 | DV25: 294.8528231 | DW25: 306.9417889 | DX25: 319.5264022 | DY25: 332.6269847 | DZ25: 346.2646911 | EA25: 360.4615434 | EB25: 375.2404667 | EC25: 390.6253258 | ED25: 406.6409642 | EE25: 423.3132437 | EF25: 440.6690867 | EG25: 458.7365193 | EH25: 477.5447166 | EI25: 497.1240499 | EJ25: 517.506136 | EK25: 538.7238876 | EL25: 560.811567 | EM25: 583.8048412 | EN25: 607.7408397 | EO25: 632.6582141 | EP25: 658.5972009 | EQ25: 685.5996861 | ER25: 713.7092733 | ES25: 742.9713535 | ET25: 773.433179 | EU25: 805.1439393 | EV25: 838.1548408 | EW25: 872.5191893 | EX25: 908.292476 | EY25: 945.5324676 | EZ25: 984.2992987 | FA25: 1024.65557 | FB25: 1066.666448 | FC25: 1110.399773 | FD25: 1155.926163 | FE25: 1203.319136 | FF25: 1252.655221 | FG25: 1304.014085 | FH25: 1357.478662 | FI25: 1413.135287 | FJ25: 1471.073834 | FK25: 1531.387861 | FL25: 1594.174764 | FM25: 1659.535929 | FN25: 1727.576902 | FO25: 1798.407555 | FP25: 1872.142265 | FQ25: 1948.900098 | FR25: 2028.805002 | FS25: 2111.986007 | FT25: 2198.577433 | FU25: 2288.719108 | FV25: 2382.556591 | FW25: 2480.241411 | FX25: 2581.931309 | FY25: 2687.790493 | FZ25: 2797.989903 | GA25: 2912.707489 | GB25: 3032.128496 | GC25: 3156.445765 | GD25: 3285.860041 | GE25: 3420.580303 | GF25: 3560.824095 | GG25: 3706.817883 | GH25: 3858.797416 | GI25: 4017.00811 | GJ25: 4181.705443 | GK25: 4353.155366 | GL25: 4531.634736 | GM25: 4717.43176 | GN25: 4910.846462 | GO25: 5112.191167 | GP25: 5321.791005 | GQ25: 5539.984436 | GR25: 5767.123798 | GS25: 6003.575874 | GT25: 6249.722485 | GU25: 6505.961107 | GV25: 6772.705512 | GW25: 7050.386438 | GX25: 7339.452282 | GY25: 7640.369825 | GZ25: 7953.624988 | HA25: 8279.723613 | HB25: 8619.192281 | HC25: 8972.579164 | HD25: 9340.45491 | HE25: 9723.413562 | HF25: 10122.07352 | HG25: 10537.07853
A26: =MAX($A$11:A25)+1 -> 12 | C26: American Electric Power Company, Inc. | D26: 97.27 | E26: 3.72 | F26: 0.0636 | G26: 0.05983333333 | H26: 0.05606666667 | I26: 0.0523 | J26: 0.04853333333 | K26: 0.04476666667 | L26: 0.041 | M26: 0.08681473773 | O26: -97.27 | P26: 3.956592 | Q26: 4.208231251 | R26: 4.475874759 | S26: 4.760540393 | T26: 5.063310762 | U26: 5.366265523 | V26: 5.667134143 | W26: 5.963525259 | X26: 6.252955018 | Y26: 6.532878971 | Z26: 6.800727009 | AA26: 7.079556817 | AB26: 7.369818646 | AC26: 7.67198121 | AD26: 7.98653244 | AE26: 8.31398027 | AF26: 8.654853461 | AG26: 9.009702453 | AH26: 9.379100254 | AI26: 9.763643364 | AJ26: 10.16395274 | AK26: 10.5806748 | AL26: 11.01448247 | AM26: 11.46607625 | AN26: 11.93618538 | AO26: 12.42556898 | AP26: 12.93501731 | AQ26: 13.46535302 | AR26: 14.01743249 | AS26: 14.59214722 | AT26: 15.19042526 | AU26: 15.8132327 | AV26: 16.46157524 | AW26: 17.13649982 | AX26: 17.83909631 | AY26: 18.57049926 | AZ26: 19.33188973 | BA26: 20.12449721 | BB26: 20.9496016 | BC26: 21.80853526 | BD26: 22.70268521 | BE26: 23.6334953 | BF26: 24.60246861 | BG26: 25.61116982 | BH26: 26.66122778 | BI26: 27.75433812 | BJ26: 28.89226599 | BK26: 30.07684889 | BL26: 31.3099997 | BM26: 32.59370968 | BN26: 33.93005178 | BO26: 35.3211839 | BP26: 36.76935244 | BQ26: 38.27689589 | BR26: 39.84624863 | BS26: 41.47994482 | BT26: 43.18062256 | BU26: 44.95102808 | BV26: 46.79402023 | BW26: 48.71257506 | BX26: 50.70979064 | BY26: 52.78889206 | BZ26: 54.95323663 | CA26: 57.20631933 | CB26: 59.55177842 | CC26: 61.99340134 | CD26: 64.5351308 | CE26: 67.18107116 | CF26: 69.93549508 | CG26: 72.80285037 | CH26: 75.78776724 | CI26: 78.8950657 | CJ26: 82.12976339 | CK26: 85.49708369 | CL26: 89.00246412 | CM26: 92.65156515 | CN26: 96.45027932 | CO26: 100.4047408 | CP26: 104.5213351 | CQ26: 108.8067099 | CR26: 113.267785 | CS26: 117.9117642 | CT26: 122.7461465 | CU26: 127.7787385 | CV26: 133.0176668 | CW26: 138.4713911 | CX26: 144.1487182 | CY26: 150.0588156 | CZ26: 156.211227 | DA26: 162.6158874 | DB26: 169.2831387 | DC26: 176.2237474 | DD26: 183.4489211 | DE26: 190.9703268 | DF26: 198.8001102 | DG26: 206.9509148 | DH26: 215.4359023 | DI26: 224.2687743 | DJ26: 233.463794 | DK26: 243.0358096 | DL26: 253.0002777 | DM26: 263.3732891 | DN26: 274.171594 | DO26: 285.4126293 | DP26: 297.1145471 | DQ26: 309.2962436 | DR26: 321.9773896 | DS26: 335.1784625 | DT26: 348.9207795 | DU26: 363.2265315 | DV26: 378.1188192 | DW26: 393.6216908 | DX26: 409.7601802 | DY26: 426.5603475 | DZ26: 444.0493218 | EA26: 462.255344 | EB26: 481.2078131 | EC26: 500.9373334 | ED26: 521.4757641 | EE26: 542.8562704 | EF26: 565.1133775 | EG26: 588.283026 | EH26: 612.4026301 | EI26: 637.5111379 | EJ26: 663.6490945 | EK26: 690.8587074 | EL26: 719.1839144 | EM26: 748.6704549 | EN26: 779.3659436 | EO26: 811.3199473 | EP26: 844.5840651 | EQ26: 879.2120118 | ER26: 915.2597042 | ES26: 952.7853521 | ET26: 991.8495516 | EU26: 1032.515383 | EV26: 1074.848514 | EW26: 1118.917303 | EX26: 1164.792912 | EY26: 1212.549422 | EZ26: 1262.263948 | FA26: 1314.01677 | FB26: 1367.891458 | FC26: 1423.975007 | FD26: 1482.357983 | FE26: 1543.13466 | FF26: 1606.403181 | FG26: 1672.265711 | FH26: 1740.828605 | FI26: 1812.202578 | FJ26: 1886.502884 | FK26: 1963.849502 | FL26: 2044.367332 | FM26: 2128.186392 | FN26: 2215.442035 | FO26: 2306.275158 | FP26: 2400.832439 | FQ26: 2499.266569 | FR26: 2601.736499 | FS26: 2708.407695 | FT26: 2819.452411 | FU26: 2935.04996 | FV26: 3055.387008 | FW26: 3180.657875 | FX26: 3311.064848 | FY26: 3446.818507 | FZ26: 3588.138066 | GA26: 3735.251726 | GB26: 3888.397047 | GC26: 4047.821326 | GD26: 4213.782001 | GE26: 4386.547063 | GF26: 4566.395492 | GG26: 4753.617707 | GH26: 4948.516033 | GI26: 5151.405191 | GJ26: 5362.612803 | GK26: 5582.479928 | GL26: 5811.361605 | GM26: 6049.627431 | GN26: 6297.662156 | GO26: 6555.866304 | GP26: 6824.656823 | GQ26: 7104.467753 | GR26: 7395.75093 | GS26: 7698.976719 | GT26: 8014.634764 | GU26: 8343.234789 | GV26: 8685.307416 | GW26: 9041.40502 | GX26: 9412.102626 | GY26: 9797.998833 | GZ26: 10199.71679 | HA26: 10617.90517 | HB26: 11053.23929 | HC26: 11506.4221 | HD26: 11978.1854 | HE26: 12469.291 | HF26: 12980.53194 | HG26: 13512.73374
A27: =MAX($A$11:A26)+1 -> 13 | C27: Duke Energy Corporation | D27: 111.01 | E27: 4.18 | F27: 0.0621 | G27: 0.05858333333 | H27: 0.05506666667 | I27: 0.05155 | J27: 0.04803333333 | K27: 0.04451666667 | L27: 0.041 | M27: 0.08570732588 | O27: -111.01 | P27: 4.439578 | Q27: 4.715275794 | R27: 5.008094421 | S27: 5.319097084 | T27: 5.649413013 | U27: 5.980374459 | V27: 6.309693746 | W27: 6.634958458 | X27: 6.953657629 | Y27: 7.263211288 | Z27: 7.561002951 | AA27: 7.871004072 | AB27: 8.193715239 | AC27: 8.529657564 | AD27: 8.879373524 | AE27: 9.243427838 | AF27: 9.62240838 | AG27: 10.01692712 | AH27: 10.42762114 | AI27: 10.8551536 | AJ27: 11.3002149 | AK27: 11.76352371 | AL27: 12.24582818 | AM27: 12.74790714 | AN27: 13.27057133 | AO27: 13.81466476 | AP27: 14.38106601 | AQ27: 14.97068972 | AR27: 15.584488 | AS27: 16.223452 | AT27: 16.88861354 | AU27: 17.58104669 | AV27: 18.3018696 | AW27: 19.05224626 | AX27: 19.83338835 | AY27: 20.64655728 | AZ27: 21.49306613 | BA27: 22.37428184 | BB27: 23.29162739 | BC27: 24.24658412 | BD27: 25.24069406 | BE27: 26.27556252 | BF27: 27.35286058 | BG27: 28.47432787 | BH27: 29.64177531 | BI27: 30.8570881 | BJ27: 32.12222871 | BK27: 33.43924009 | BL27: 34.81024893 | BM27: 36.23746914 | BN27: 37.72320537 | BO27: 39.26985679 | BP27: 40.87992092 | BQ27: 42.55599768 | BR27: 44.30079358 | BS27: 46.11712612 | BT27: 48.00792829 | BU27: 49.97625335 | BV27: 52.02527974 | BW27: 54.15831621 | BX27: 56.37880717 | BY27: 58.69033827 | BZ27: 61.09664213 | CA27: 63.60160446 | CB27: 66.20927024 | CC27: 68.92385032 | CD27: 71.74972819 | CE27: 74.69146704 | CF27: 77.75381719 | CG27: 80.9417237 | CH27: 84.26033437 | CI27: 87.71500808 | CJ27: 91.31132341 | CK27: 95.05508767 | CL27: 98.95234626 | CM27: 103.0093925 | CN27: 107.2327776 | CO27: 111.6293214 | CP27: 116.2061236 | CQ27: 120.9705747 | CR27: 125.9303682 | CS27: 131.0935133 | CT27: 136.4683474 | CU27: 142.0635496 | CV27: 147.8881552 | CW27: 153.9515695 | CX27: 160.2635839 | CY27: 166.8343908 | CZ27: 173.6746008 | DA27: 180.7952595 | DB27: 188.2078651 | DC27: 195.9243876 | DD27: 203.9572875 | DE27: 212.3195363 | DF27: 221.0246372 | DG27: 230.0866474 | DH27: 239.5201999 | DI27: 249.3405281 | DJ27: 259.5634898 | DK27: 270.2055928 | DL27: 281.2840221 | DM27: 292.8166671 | DN27: 304.8221504 | DO27: 317.3198586 | DP27: 330.3299728 | DQ27: 343.8735017 | DR27: 357.9723152 | DS27: 372.6491801 | DT27: 387.9277965 | DU27: 403.8328362 | DV27: 420.3899825 | DW27: 437.6259718 | DX27: 455.5686366 | DY27: 474.2469507 | DZ27: 493.6910757 | EA27: 513.9324098 | EB27: 535.0036386 | EC27: 556.9387878 | ED27: 579.7732781 | EE27: 603.5439825 | EF27: 628.2892857 | EG27: 654.0491465 | EH27: 680.8651615 | EI27: 708.7806331 | EJ27: 737.840639 | EK27: 768.0921052 | EL27: 799.5838816 | EM27: 832.3668207 | EN27: 866.4938603 | EO27: 902.0201086 | EP27: 939.0029331 | EQ27: 977.5020533 | ER27: 1017.579638 | ES27: 1059.300403 | ET27: 1102.731719 | EU27: 1147.94372 | EV27: 1195.009412 | EW27: 1244.004798 | EX27: 1295.008995 | EY27: 1348.104364 | EZ27: 1403.376642 | FA27: 1460.915085 | FB27: 1520.812603 | FC27: 1583.16592 | FD27: 1648.075723 | FE27: 1715.646827 | FF27: 1785.988347 | FG27: 1859.21387 | FH27: 1935.441638 | FI27: 2014.794745 | FJ27: 2097.40133 | FK27: 2183.394784 | FL27: 2272.913971 | FM27: 2366.103443 | FN27: 2463.113685 | FO27: 2564.101346 | FP27: 2669.229501 | FQ27: 2778.66791 | FR27: 2892.593295 | FS27: 3011.18962 | FT27: 3134.648394 | FU27: 3263.168978 | FV27: 3396.958906 | FW27: 3536.234222 | FX27: 3681.219825 | FY27: 3832.149837 | FZ27: 3989.267981 | GA27: 4152.827968 | GB27: 4323.093915 | GC27: 4500.340765 | GD27: 4684.854737 | GE27: 4876.933781 | GF27: 5076.888066 | GG27: 5285.040477 | GH27: 5501.727136 | GI27: 5727.297949 | GJ27: 5962.117165 | GK27: 6206.563968 | GL27: 6461.033091 | GM27: 6725.935448 | GN27: 7001.698801 | GO27: 7288.768452 | GP27: 7587.607958 | GQ27: 7898.699885 | GR27: 8222.54658 | GS27: 8559.67099 | GT27: 8910.6175 | GU27: 9275.952818 | GV27: 9656.266883 | GW27: 10052.17383 | GX27: 10464.31295 | GY27: 10893.34978 | GZ27: 11339.97712 | HA27: 11804.91619 | HB27: 12288.91775 | HC27: 12792.76338 | HD27: 13317.26668 | HE27: 13863.27461 | HF27: 14431.66887 | HG27: 15023.36729
A28: =MAX($A$11:A27)+1 -> 14 | C28: Edison International | D28: 66.01 | E28: 3.31 | F28: 0.0775 | G28: 0.07141666667 | H28: 0.06533333333 | I28: 0.05925 | J28: 0.05316666667 | K28: 0.04708333333 | L28: 0.041 | M28: 0.1057326467 | O28: -66.01 | P28: 3.566525 | Q28: 3.842930687 | R28: 4.140757816 | S28: 4.461666547 | T28: 4.807445704 | U28: 5.150777451 | V28: 5.487294911 | W28: 5.812417135 | X28: 6.121443979 | Y28: 6.409661967 | Z28: 6.672458107 | AA28: 6.94602889 | AB28: 7.230816074 | AC28: 7.527279533 | AD28: 7.835897994 | AE28: 8.157169812 | AF28: 8.491613774 | AG28: 8.839769939 | AH28: 9.202200506 | AI28: 9.579490727 | AJ28: 9.972249847 | AK28: 10.38111209 | AL28: 10.80673769 | AM28: 11.24981393 | AN28: 11.7110563 | AO28: 12.19120961 | AP28: 12.6910492 | AQ28: 13.21138222 | AR28: 13.75304889 | AS28: 14.3169239 | AT28: 14.90391778 | AU28: 15.51497841 | AV28: 16.15109252 | AW28: 16.81328731 | AX28: 17.50263209 | AY28: 18.22024001 | AZ28: 18.96726985 | BA28: 19.74492791 | BB28: 20.55446996 | BC28: 21.39720323 | BD28: 22.27448856 | BE28: 23.18774259 | BF28: 24.13844004 | BG28: 25.12811608 | BH28: 26.15836884 | BI28: 27.23086196 | BJ28: 28.3473273 | BK28: 29.50956772 | BL28: 30.71946 | BM28: 31.97895786 | BN28: 33.29009513 | BO28: 34.65498903 | BP28: 36.07584358 | BQ28: 37.55495317 | BR28: 39.09470625 | BS28: 40.6975892 | BT28: 42.36619036 | BU28: 44.10320416 | BV28: 45.91143553 | BW28: 47.79380439 | BX28: 49.75335037 | BY28: 51.79323774 | BZ28: 53.91676048 | CA28: 56.12734766 | CB28: 58.42856892 | CC28: 60.82414024 | CD28: 63.31792999 | CE28: 65.91396512 | CF28: 68.61643769 | CG28: 71.42971164 | CH28: 74.35832982 | CI28: 77.40702134 | CJ28: 80.58070921 | CK28: 83.88451829 | CL28: 87.32378354 | CM28: 90.90405867 | CN28: 94.63112507 | CO28: 98.5110012 | CP28: 102.5499522 | CQ28: 106.7545003 | CR28: 111.1314348 | CS28: 115.6878236 | CT28: 120.4310244 | CU28: 125.3686964 | CV28: 130.508813 | CW28: 135.8596743 | CX28: 141.4299209 | CY28: 147.2285477 | CZ28: 153.2649181 | DA28: 159.5487798 | DB28: 166.0902798 | DC28: 172.8999812 | DD28: 179.9888805 | DE28: 187.3684246 | DF28: 195.05053 | DG28: 203.0476017 | DH28: 211.3725534 | DI28: 220.038828 | DJ28: 229.06042 | DK28: 238.4518972 | DL28: 248.228425 | DM28: 258.4057904 | DN28: 269.0004278 | DO28: 280.0294454 | DP28: 291.5106526 | DQ28: 303.4625894 | DR28: 315.9045556 | DS28: 328.8566423 | DT28: 342.3397647 | DU28: 356.375695 | DV28: 370.9870985 | DW28: 386.1975696 | DX28: 402.0316699 | DY28: 418.5149684 | DZ28: 435.6740821 | EA28: 453.5367194 | EB28: 472.1317249 | EC28: 491.4891257 | ED28: 511.6401798 | EE28: 532.6174272 | EF28: 554.4547417 | EG28: 577.1873861 | EH28: 600.8520689 | EI28: 625.4870038 | EJ28: 651.1319709 | EK28: 677.8283817 | EL28: 705.6193454 | EM28: 734.5497386 | EN28: 764.6662778 | EO28: 796.0175952 | EP28: 828.6543166 | EQ28: 862.6291436 | ER28: 897.9969385 | ES28: 934.814813 | ET28: 973.1422203 | EU28: 1013.041051 | EV28: 1054.575734 | EW28: 1097.81334 | EX28: 1142.823686 | EY28: 1189.679458 | EZ28: 1238.456315 | FA28: 1289.233024 | FB28: 1342.091578 | FC28: 1397.117333 | FD28: 1454.399144 | FE28: 1514.029509 | FF28: 1576.104718 | FG28: 1640.725012 | FH28: 1707.994737 | FI28: 1778.022522 | FJ28: 1850.921445 | FK28: 1926.809224 | FL28: 2005.808402 | FM28: 2088.046547 | FN28: 2173.656455 | FO28: 2262.77637 | FP28: 2355.550201 | FQ28: 2452.127759 | FR28: 2552.664998 | FS28: 2657.324262 | FT28: 2766.274557 | FU28: 2879.691814 | FV28: 2997.759178 | FW28: 3120.667305 | FX28: 3248.614664 | FY28: 3381.807866 | FZ28: 3520.461988 | GA28: 3664.800929 | GB28: 3815.057768 | GC28: 3971.475136 | GD28: 4134.305617 | GE28: 4303.812147 | GF28: 4480.268445 | GG28: 4663.959451 | GH28: 4855.181789 | GI28: 5054.244242 | GJ28: 5261.468256 | GK28: 5477.188454 | GL28: 5701.753181 | GM28: 5935.525062 | GN28: 6178.881589 | GO28: 6432.215734 | GP28: 6695.936579 | GQ28: 6970.469979 | GR28: 7256.259248 | GS28: 7553.765877 | GT28: 7863.470278 | GU28: 8185.87256 | GV28: 8521.493335 | GW28: 8870.874561 | GX28: 9234.580418 | GY28: 9613.198216 | GZ28: 10007.33934 | HA28: 10417.64026 | HB28: 10844.76351 | HC28: 11289.39881 | HD28: 11752.26416 | HE28: 12234.10699 | HF28: 12735.70538 | HG28: 13257.8693
A29: =MAX($A$11:A28)+1 -> 15 | C29: Entergy Corporation | D29: 79.33 | E29: 2.4 | F29: 0.0613 | G29: 0.05791666667 | H29: 0.05453333333 | I29: 0.05115 | J29: 0.04776666667 | K29: 0.04438333333 | L29: 0.041 | M29: 0.07682581757 | O29: -79.33 | P29: 2.54712 | Q29: 2.703258456 | R29: 2.868968199 | S29: 3.04483595 | T29: 3.231484394 | U29: 3.418641198 | V29: 3.605071098 | W29: 3.789470485 | X29: 3.970480858 | Y29: 4.146704034 | Z29: 4.316718899 | AA29: 4.493704374 | AB29: 4.677946253 | AC29: 4.86974205 | AD29: 5.069401474 | AE29: 5.277246934 | AF29: 5.493614059 | AG29: 5.718852235 | AH29: 5.953325177 | AI29: 6.197411509 | AJ29: 6.451505381 | AK29: 6.716017101 | AL29: 6.991373802 | AM29: 7.278020128 | AN29: 7.576418954 | AO29: 7.887052131 | AP29: 8.210421268 | AQ29: 8.54704854 | AR29: 8.89747753 | AS29: 9.262274109 | AT29: 9.642027347 | AU29: 10.03735047 | AV29: 10.44888184 | AW29: 10.87728599 | AX29: 11.32325472 | AY29: 11.78750816 | AZ29: 12.270796 | BA29: 12.77389863 | BB29: 13.29762848 | BC29: 13.84283124 | BD29: 14.41038733 | BE29: 15.00121321 | BF29: 15.61626295 | BG29: 16.25652973 | BH29: 16.92304745 | BI29: 17.61689239 | BJ29: 18.33918498 | BK29: 19.09109156 | BL29: 19.87382632 | BM29: 20.6886532 | BN29: 21.53688798 | BO29: 22.41990039 | BP29: 23.3391163 | BQ29: 24.29602007 | BR29: 25.29215689 | BS29: 26.32913533 | BT29: 27.40862987 | BU29: 28.5323837 | BV29: 29.70221143 | BW29: 30.9200021 | BX29: 32.18772219 | BY29: 33.50741879 | BZ29: 34.88122297 | CA29: 36.31135311 | CB29: 37.80011858 | CC29: 39.34992345 | CD29: 40.96327031 | CE29: 42.64276439 | CF29: 44.39111773 | CG29: 46.21115356 | CH29: 48.10581085 | CI29: 50.0781491 | CJ29: 52.13135321 | CK29: 54.26873869 | CL29: 56.49375698 | CM29: 58.81000101 | CN29: 61.22121106 | CO29: 63.73128071 | CP29: 66.34426322 | CQ29: 69.06437801 | CR29: 71.89601751 | CS29: 74.84375423 | CT29: 77.91234815 | CU29: 81.10675442 | CV29: 84.43213136 | CW29: 87.89384874 | CX29: 91.49749654 | CY29: 95.2488939 | CZ29: 99.15409855 | DA29: 103.2194166 | DB29: 107.4514127 | DC29: 111.8569206 | DD29: 116.4430543 | DE29: 121.2172196 | DF29: 126.1871256 | DG29: 131.3607977 | DH29: 136.7465904 | DI29: 142.3532006 | DJ29: 148.1896818 | DK29: 154.2654588 | DL29: 160.5903426 | DM29: 167.1745467 | DN29: 174.0287031 | DO29: 181.1638799 | DP29: 188.591599 | DQ29: 196.3238545 | DR29: 204.3731326 | DS29: 212.752431 | DT29: 221.4752807 | DU29: 230.5557672 | DV29: 240.0085536 | DW29: 249.8489043 | DX29: 260.0927094 | DY29: 270.7565105 | DZ29: 281.8575274 | EA29: 293.4136861 | EB29: 305.4436472 | EC29: 317.9668367 | ED29: 331.003477 | EE29: 344.5746196 | EF29: 358.702179 | EG29: 373.4089683 | EH29: 388.718736 | EI29: 404.6562042 | EJ29: 421.2471086 | EK29: 438.51824 | EL29: 456.4974879 | EM29: 475.2138849 | EN29: 494.6976542 | EO29: 514.980258 | EP29: 536.0944486 | EQ29: 558.0743209 | ER29: 580.9553681 | ES29: 604.7745382 | ET29: 629.5702943 | EU29: 655.3826763 | EV29: 682.2533661 | EW29: 710.2257541 | EX29: 739.34501 | EY29: 769.6581554 | EZ29: 801.2141398 | FA29: 834.0639195 | FB29: 868.2605402 | FC29: 903.8592223 | FD29: 940.9174505 | FE29: 979.4950659 | FF29: 1019.654364 | FG29: 1061.460193 | FH29: 1104.98006 | FI29: 1150.284243 | FJ29: 1197.445897 | FK29: 1246.541179 | FL29: 1297.649367 | FM29: 1350.852991 | FN29: 1406.237964 | FO29: 1463.89372 | FP29: 1523.913363 | FQ29: 1586.393811 | FR29: 1651.435957 | FS29: 1719.144831 | FT29: 1789.629769 | FU29: 1863.00459 | FV29: 1939.387778 | FW29: 2018.902677 | FX29: 2101.677686 | FY29: 2187.846472 | FZ29: 2277.548177 | GA29: 2370.927652 | GB29: 2468.135686 | GC29: 2569.329249 | GD29: 2674.671748 | GE29: 2784.33329 | GF29: 2898.490955 | GG29: 3017.329084 | GH29: 3141.039576 | GI29: 3269.822199 | GJ29: 3403.884909 | GK29: 3543.44419 | GL29: 3688.725402 | GM29: 3839.963144 | GN29: 3997.401633 | GO29: 4161.2951 | GP29: 4331.908199 | GQ29: 4509.516435 | GR29: 4694.406609 | GS29: 4886.87728 | GT29: 5087.239248 | GU29: 5295.816057 | GV29: 5512.944516 | GW29: 5738.975241 | GX29: 5974.273226 | GY29: 6219.218428 | GZ29: 6474.206383 | HA29: 6739.648845 | HB29: 7015.974448 | HC29: 7303.6294 | HD29: 7603.078205 | HE29: 7914.804412 | HF29: 8239.311393 | HG29: 8577.12316
A30: =MAX($A$11:A29)+1 -> 16 | C30: Evergy, Inc. | D30: 63.65 | E30: 2.67 | F30: 0.0636 | G30: 0.05983333333 | H30: 0.05606666667 | I30: 0.0523 | J30: 0.04853333333 | K30: 0.04476666667 | L30: 0.041 | M30: 0.0911709332 | O30: -63.65 | P30: 2.839812 | Q30: 3.020424043 | R30: 3.212523012 | S30: 3.416839476 | T30: 3.634150467 | U30: 3.851593803 | V30: 4.067539829 | W30: 4.280272162 | X30: 4.488008037 | Y30: 4.688921197 | Z30: 4.881166966 | AA30: 5.081294812 | AB30: 5.289627899 | AC30: 5.506502643 | AD30: 5.732269251 | AE30: 5.967292291 | AF30: 6.211951275 | AG30: 6.466641277 | AH30: 6.731773569 | AI30: 7.007776286 | AJ30: 7.295095113 | AK30: 7.594194013 | AL30: 7.905555967 | AM30: 8.229683762 | AN30: 8.567100796 | AO30: 8.918351929 | AP30: 9.284004358 | AQ30: 9.664648537 | AR30: 10.06089913 | AS30: 10.47339599 | AT30: 10.90280523 | AU30: 11.34982024 | AV30: 11.81516287 | AW30: 12.29958455 | AX30: 12.80386751 | AY30: 13.32882608 | AZ30: 13.87530795 | BA30: 14.44419558 | BB30: 15.0364076 | BC30: 15.65290031 | BD30: 16.29466922 | BE30: 16.96275066 | BF30: 17.65822344 | BG30: 18.3822106 | BH30: 19.13588123 | BI30: 19.92045236 | BJ30: 20.73719091 | BK30: 21.58741574 | BL30: 22.47249978 | BM30: 23.39387227 | BN30: 24.35302104 | BO30: 25.3514949 | BP30: 26.39090619 | BQ30: 27.47293334 | BR30: 28.59932361 | BS30: 29.77189588 | BT30: 30.99254361 | BU30: 32.2632379 | BV30: 33.58603065 | BW30: 34.96305791 | BX30: 36.39654328 | BY30: 37.88880156 | BZ30: 39.44224242 | CA30: 41.05937436 | CB30: 42.74280871 | CC30: 44.49526387 | CD30: 46.31956968 | CE30: 48.21867204 | CF30: 50.19563759 | CG30: 52.25365874 | CH30: 54.39605874 | CI30: 56.62629715 | CJ30: 58.94797534 | CK30: 61.36484232 | CL30: 63.88080086 | CM30: 66.49991369 | CN30: 69.22641016 | CO30: 72.06469297 | CP30: 75.01934538 | CQ30: 78.09513855 | CR30: 81.29703923 | CS30: 84.63021783 | CT30: 88.10005677 | CU30: 91.71215909 | CV30: 95.47235762 | CW30: 99.38672428 | CX30: 103.46158 | CY30: 107.7035048 | CZ30: 112.1193484 | DA30: 116.7162417 | DB30: 121.5016076 | DC30: 126.4831736 | DD30: 131.6689837 | DE30: 137.067412 | DF30: 142.6871759 | DG30: 148.5373501 | DH30: 154.6273815 | DI30: 160.9671041 | DJ30: 167.5667554 | DK30: 174.4369923 | DL30: 181.588909 | DM30: 189.0340543 | DN30: 196.7844505 | DO30: 204.852613 | DP30: 213.2515701 | DQ30: 221.9948845 | DR30: 231.0966748 | DS30: 240.5716384 | DT30: 250.4350756 | DU30: 260.7029137 | DV30: 271.3917332 | DW30: 282.5187942 | DX30: 294.1020648 | DY30: 306.1602495 | DZ30: 318.7128197 | EA30: 331.7800453 | EB30: 345.3830271 | EC30: 359.5437313 | ED30: 374.2850242 | EE30: 389.6307102 | EF30: 405.6055693 | EG30: 422.2353977 | EH30: 439.547049 | EI30: 457.568478 | EJ30: 476.3287856 | EK30: 495.8582658 | EL30: 516.1884547 | EM30: 537.3521814 | EN30: 559.3836208 | EO30: 582.3183492 | EP30: 606.1934016 | EQ30: 631.047331 | ER30: 656.9202716 | ES30: 683.8540027 | ET30: 711.8920168 | EU30: 741.0795895 | EV30: 771.4638527 | EW30: 803.0938707 | EX30: 836.0207194 | EY30: 870.2975689 | EZ30: 905.9797692 | FA30: 943.1249397 | FB30: 981.7930622 | FC30: 1022.046578 | FD30: 1063.950487 | FE30: 1107.572457 | FF30: 1152.982928 | FG30: 1200.255228 | FH30: 1249.465693 | FI30: 1300.693786 | FJ30: 1354.022231 | FK30: 1409.537143 | FL30: 1467.328166 | FM30: 1527.48862 | FN30: 1590.115654 | FO30: 1655.310396 | FP30: 1723.178122 | FQ30: 1793.828425 | FR30: 1867.37539 | FS30: 1943.937781 | FT30: 2023.63923 | FU30: 2106.608439 | FV30: 2192.979385 | FW30: 2282.89154 | FX30: 2376.490093 | FY30: 2473.926186 | FZ30: 2575.35716 | GA30: 2680.946804 | GB30: 2790.865623 | GC30: 2905.291113 | GD30: 3024.408049 | GE30: 3148.408779 | GF30: 3277.493539 | GG30: 3411.870774 | GH30: 3551.757476 | GI30: 3697.379532 | GJ30: 3848.972093 | GK30: 4006.779949 | GL30: 4171.057927 | GM30: 4342.071302 | GN30: 4520.096225 | GO30: 4705.42017 | GP30: 4898.342397 | GQ30: 5099.174435 | GR30: 5308.240587 | GS30: 5525.878451 | GT30: 5752.439468 | GU30: 5988.289486 | GV30: 6233.809355 | GW30: 6489.395538 | GX30: 6755.460755 | GY30: 7032.434646 | GZ30: 7320.764467 | HA30: 7620.91581 | HB30: 7933.373358 | HC30: 8258.641666 | HD30: 8597.245974 | HE30: 8949.733059 | HF30: 9316.672115 | HG30: 9698.655671
A31: =MAX($A$11:A30)+1 -> 17 | C31: IDACORP, Inc. | D31: 111.15 | E31: 3.44 | F31: 0.0713 | G31: 0.06625 | H31: 0.0612 | I31: 0.05615 | J31: 0.0511 | K31: 0.04605 | L31: 0.041 | M31: 0.08000968914 | O31: -111.15 | P31: 3.685272 | Q31: 3.948031894 | R31: 4.229526568 | S31: 4.531091812 | T31: 4.854158658 | U31: 5.175746669 | V31: 5.492502365 | W31: 5.800906373 | X31: 6.097332689 | Y31: 6.378114859 | Z31: 6.639617568 | AA31: 6.911841889 | AB31: 7.195227406 | AC31: 7.49023173 | AD31: 7.797331231 | AE31: 8.117021811 | AF31: 8.449819705 | AG31: 8.796262313 | AH31: 9.156909068 | AI31: 9.53234234 | AJ31: 9.923168376 | AK31: 10.33001828 | AL31: 10.75354903 | AM31: 11.19444454 | AN31: 11.65341676 | AO31: 12.13120685 | AP31: 12.62858633 | AQ31: 13.14635837 | AR31: 13.68535907 | AS31: 14.24645879 | AT31: 14.8305636 | AU31: 15.43861671 | AV31: 16.07159999 | AW31: 16.73053559 | AX31: 17.41648755 | AY31: 18.13056354 | AZ31: 18.87391664 | BA31: 19.64774723 | BB31: 20.45330486 | BC31: 21.29189036 | BD31: 22.16485787 | BE31: 23.07361704 | BF31: 24.01963534 | BG31: 25.00444039 | BH31: 26.02962244 | BI31: 27.09683696 | BJ31: 28.20780728 | BK31: 29.36432738 | BL31: 30.5682648 | BM31: 31.82156366 | BN31: 33.12624777 | BO31: 34.48442392 | BP31: 35.89828531 | BQ31: 37.370115 | BR31: 38.90228972 | BS31: 40.4972836 | BT31: 42.15767222 | BU31: 43.88613679 | BV31: 45.68546839 | BW31: 47.5585726 | BX31: 49.50847407 | BY31: 51.53832151 | BZ31: 53.65139269 | CA31: 55.85109979 | CB31: 58.14099489 | CC31: 60.52477568 | CD31: 63.00629148 | CE31: 65.58954943 | CF31: 68.27872096 | CG31: 71.07814851 | CH31: 73.9923526 | CI31: 77.02603906 | CJ31: 80.18410666 | CK31: 83.47165504 | CL31: 86.89399289 | CM31: 90.4566466 | CN31: 94.16536911 | CO31: 98.02614924 | CP31: 102.0452214 | CQ31: 106.2290754 | CR31: 110.5844675 | CS31: 115.1184307 | CT31: 119.8382864 | CU31: 124.7516561 | CV31: 129.866474 | CW31: 135.1909994 | CX31: 140.7338304 | CY31: 146.5039175 | CZ31: 152.5105781 | DA31: 158.7635118 | DB31: 165.2728158 | DC31: 172.0490012 | DD31: 179.1030103 | DE31: 186.4462337 | DF31: 194.0905293 | DG31: 202.048241 | DH31: 210.3322188 | DI31: 218.9558398 | DJ31: 227.9330292 | DK31: 237.2782834 | DL31: 247.0066931 | DM31: 257.1339675 | DN31: 267.6764601 | DO31: 278.651195 | DP31: 290.075894 | DQ31: 301.9690057 | DR31: 314.3497349 | DS31: 327.238074 | DT31: 340.654835 | DU31: 354.6216833 | DV31: 369.1611723 | DW31: 384.2967804 | DX31: 400.0529484 | DY31: 416.4551192 | DZ31: 433.5297791 | EA31: 451.3045001 | EB31: 469.8079846 | EC31: 489.0701119 | ED31: 509.1219865 | EE31: 529.995988 | EF31: 551.7258235 | EG31: 574.3465823 | EH31: 597.8947921 | EI31: 622.4084786 | EJ31: 647.9272262 | EK31: 674.4922425 | EL31: 702.1464244 | EM31: 730.9344278 | EN31: 760.9027394 | EO31: 792.0997517 | EP31: 824.5758415 | EQ31: 858.383451 | ER31: 893.5771725 | ES31: 930.2138366 | ET31: 968.3526039 | EU31: 1008.055061 | EV31: 1049.385318 | EW31: 1092.410116 | EX31: 1137.198931 | EY31: 1183.824087 | EZ31: 1232.360875 | FA31: 1282.887671 | FB31: 1335.486065 | FC31: 1390.240994 | FD31: 1447.240874 | FE31: 1506.57775 | FF31: 1568.347438 | FG31: 1632.649683 | FH31: 1699.58832 | FI31: 1769.271441 | FJ31: 1841.81157 | FK31: 1917.325845 | FL31: 1995.936204 | FM31: 2077.769589 | FN31: 2162.958142 | FO31: 2251.639426 | FP31: 2343.956642 | FQ31: 2440.058864 | FR31: 2540.101278 | FS31: 2644.24543 | FT31: 2752.659493 | FU31: 2865.518532 | FV31: 2983.004792 | FW31: 3105.307988 | FX31: 3232.625616 | FY31: 3365.163266 | FZ31: 3503.13496 | GA31: 3646.763493 | GB31: 3796.280797 | GC31: 3951.928309 | GD31: 4113.95737 | GE31: 4282.629622 | GF31: 4458.217437 | GG31: 4641.004351 | GH31: 4831.28553 | GI31: 5029.368237 | GJ31: 5235.572334 | GK31: 5450.2308 | GL31: 5673.690263 | GM31: 5906.311564 | GN31: 6148.470338 | GO31: 6400.557622 | GP31: 6662.980484 | GQ31: 6936.162684 | GR31: 7220.545354 | GS31: 7516.587713 | GT31: 7824.76781 | GU31: 8145.58329 | GV31: 8479.552205 | GW31: 8827.213845 | GX31: 9189.129613 | GY31: 9565.883927 | GZ31: 9958.085168 | HA31: 10366.36666 | HB31: 10791.38769 | HC31: 11233.83459 | HD31: 11694.42181 | HE31: 12173.8931 | HF31: 12673.02272 | HG31: 13192.61665
A32: =MAX($A$11:A31)+1 -> 18 | C32: NorthWestern Corporation | D32: 53.3 | E32: 2.64 | F32: 0.0544 | G32: 0.05216666667 | H32: 0.04993333333 | I32: 0.0477 | J32: 0.04546666667 | K32: 0.04323333333 | L32: 0.041 | M32: 0.09691851127 | O32: -53.3 | P32: 2.783616 | Q32: 2.93504471 | R32: 3.094711143 | S32: 3.263063429 | T32: 3.440574079 | U32: 3.62005736 | V32: 3.800818891 | W32: 3.982117952 | X32: 4.163171582 | Y32: 4.343159367 | Z32: 4.521228901 | AA32: 4.706599286 | AB32: 4.899569856 | AC32: 5.100452221 | AD32: 5.309570762 | AE32: 5.527263163 | AF32: 5.753880952 | AG32: 5.989790072 | AH32: 6.235371464 | AI32: 6.491021695 | AJ32: 6.757153584 | AK32: 7.034196881 | AL32: 7.322598953 | AM32: 7.62282551 | AN32: 7.935361356 | AO32: 8.260711172 | AP32: 8.59940033 | AQ32: 8.951975743 | AR32: 9.319006749 | AS32: 9.701086025 | AT32: 10.09883055 | AU32: 10.51288261 | AV32: 10.94391079 | AW32: 11.39261113 | AX32: 11.85970819 | AY32: 12.34595623 | AZ32: 12.85214043 | BA32: 13.37907819 | BB32: 13.9276204 | BC32: 14.49865283 | BD32: 15.0930976 | BE32: 15.7119146 | BF32: 16.3561031 | BG32: 17.02670332 | BH32: 17.72479816 | BI32: 18.45151489 | BJ32: 19.208027 | BK32: 19.9955561 | BL32: 20.8153739 | BM32: 21.66880423 | BN32: 22.55722521 | BO32: 23.48207144 | BP32: 24.44483637 | BQ32: 25.44707466 | BR32: 26.49040472 | BS32: 27.57651132 | BT32: 28.70714828 | BU32: 29.88414136 | BV32: 31.10939115 | BW32: 32.38487619 | BX32: 33.71265612 | BY32: 35.09487502 | BZ32: 36.53376489 | CA32: 38.03164925 | CB32: 39.59094687 | CC32: 41.21417569 | CD32: 42.9039569 | CE32: 44.66301913 | CF32: 46.49420291 | CG32: 48.40046523 | CH32: 50.38488431 | CI32: 52.45066456 | CJ32: 54.60114181 | CK32: 56.83978863 | CL32: 59.17021996 | CM32: 61.59619898 | CN32: 64.12164314 | CO32: 66.7506305 | CP32: 69.48740636 | CQ32: 72.33639002 | CR32: 75.30218201 | CS32: 78.38957147 | CT32: 81.6035439 | CU32: 84.9492892 | CV32: 88.43221006 | CW32: 92.05793067 | CX32: 95.83230583 | CY32: 99.76143036 | CZ32: 103.851649 | DA32: 108.1095666 | DB32: 112.5420589 | DC32: 117.1562833 | DD32: 121.9596909 | DE32: 126.9600382 | DF32: 132.1653998 | DG32: 137.5841812 | DH32: 143.2251326 | DI32: 149.097363 | DJ32: 155.2103549 | DK32: 161.5739795 | DL32: 168.1985126 | DM32: 175.0946516 | DN32: 182.2735324 | DO32: 189.7467472 | DP32: 197.5263638 | DQ32: 205.6249447 | DR32: 214.0555675 | DS32: 222.8318457 | DT32: 231.9679514 | DU32: 241.4786374 | DV32: 251.3792615 | DW32: 261.6858113 | DX32: 272.4149295 | DY32: 283.5839416 | DZ32: 295.2108832 | EA32: 307.3145295 | EB32: 319.9144252 | EC32: 333.0309166 | ED32: 346.6851842 | EE32: 360.8992767 | EF32: 375.6961471 | EG32: 391.0996891 | EH32: 407.1347764 | EI32: 423.8273022 | EJ32: 441.2042216 | EK32: 459.2935947 | EL32: 478.124632 | EM32: 497.727742 | EN32: 518.1345794 | EO32: 539.3780971 | EP32: 561.4925991 | EQ32: 584.5137957 | ER32: 608.4788613 | ES32: 633.4264946 | ET32: 659.3969809 | EU32: 686.4322571 | EV32: 714.5759797 | EW32: 743.8735948 | EX32: 774.3724122 | EY32: 806.1216811 | EZ32: 839.17267 | FA32: 873.5787495 | FB32: 909.3954782 | FC32: 946.6806928 | FD32: 985.4946013 | FE32: 1025.89988 | FF32: 1067.961775 | FG32: 1111.748208 | FH32: 1157.329884 | FI32: 1204.78041 | FJ32: 1254.176406 | FK32: 1305.597639 | FL32: 1359.127142 | FM32: 1414.851355 | FN32: 1472.860261 | FO32: 1533.247531 | FP32: 1596.11068 | FQ32: 1661.551218 | FR32: 1729.674818 | FS32: 1800.591485 | FT32: 1874.415736 | FU32: 1951.266781 | FV32: 2031.268719 | FW32: 2114.550737 | FX32: 2201.247317 | FY32: 2291.498457 | FZ32: 2385.449894 | GA32: 2483.25334 | GB32: 2585.066727 | GC32: 2691.054462 | GD32: 2801.387695 | GE32: 2916.244591 | GF32: 3035.810619 | GG32: 3160.278854 | GH32: 3289.850287 | GI32: 3424.734149 | GJ32: 3565.148249 | GK32: 3711.319328 | GL32: 3863.48342 | GM32: 4021.88624 | GN32: 4186.783576 | GO32: 4358.441703 | GP32: 4537.137812 | GQ32: 4723.160463 | GR32: 4916.810042 | GS32: 5118.399253 | GT32: 5328.253623 | GU32: 5546.712021 | GV32: 5774.127214 | GW32: 6010.86643 | GX32: 6257.311954 | GY32: 6513.861744 | GZ32: 6780.930075 | HA32: 7058.948208 | HB32: 7348.365085 | HC32: 7649.648053 | HD32: 7963.283624 | HE32: 8289.778252 | HF32: 8629.659161 | HG32: 8983.475186
A33: =MAX($A$11:A32)+1 -> 19 | C33: OGE Energy Corp. | D33: 42.46 | E33: 1.685 | F33: 0.0623 | G33: 0.05875 | H33: 0.0552 | I33: 0.05165 | J33: 0.0481 | K33: 0.04455 | L33: 0.041 | M33: =IFERROR(IRR(O33:HG33),"N/A") -> 0.08813709669 | O33: -42.46 | P33: 1.7899755 | Q33: =P33*(1+$F33) -> 1.901490974 | R33: =Q33*(1+$F33) -> 2.019953861 | S33: =R33*(1+$F33) -> 2.145796987 | T33: =S33*(1+$F33) -> 2.279480139 | U33: =T33*(1+G33) -> 2.413399597 | V33: =U33*(1+H33) -> 2.546619255 | W33: =V33*(1+I33) -> 2.67815214 | X33: =W33*(1+J33) -> 2.806971258 | Y33: =X33*(1+K33) -> 2.932021827 | Z33: =Y33*(1+$L33) -> 3.052234722 | AA33: =Z33*(1+$L33) -> 3.177376346 | AB33: =AA33*(1+$L33) -> 3.307648776 | AC33: =AB33*(1+$L33) -> 3.443262376 | AD33: =AC33*(1+$L33) -> 3.584436133 | AE33: =AD33*(1+$L33) -> 3.731398014 | AF33: =AE33*(1+$L33) -> 3.884385333 | AG33: =AF33*(1+$L33) -> 4.043645132 | AH33: =AG33*(1+$L33) -> 4.209434582 | AI33: =AH33*(1+$L33) -> 4.3820214 | AJ33: =AI33*(1+$L33) -> 4.561684277 | AK33: =AJ33*(1+$L33) -> 4.748713333 | AL33: =AK33*(1+$L33) -> 4.943410579 | AM33: =AL33*(1+$L33) -> 5.146090413 | AN33: =AM33*(1+$L33) -> 5.35708012 | AO33: =AN33*(1+$L33) -> 5.576720405 | AP33: =AO33*(1+$L33) -> 5.805365942 | AQ33: =AP33*(1+$L33) -> 6.043385945 | AR33: =AQ33*(1+$L33) -> 6.291164769 | AS33: =AR33*(1+$L33) -> 6.549102524 | AT33: =AS33*(1+$L33) -> 6.817615728 | AU33: =AT33*(1+$L33) -> 7.097137973 | AV33: =AU33*(1+$L33) -> 7.38812063 | AW33: =AV33*(1+$L33) -> 7.691033575 | AX33: =AW33*(1+$L33) -> 8.006365952 | AY33: =AX33*(1+$L33) -> 8.334626956 | AZ33: =AY33*(1+$L33) -> 8.676346661 | BA33: =AZ33*(1+$L33) -> 9.032076874 | BB33: =BA33*(1+$L33) -> 9.402392026 | BC33: =BB33*(1+$L33) -> 9.787890099 | BD33: =BC33*(1+$L33) -> 10.18919359 | BE33: =BD33*(1+$L33) -> 10.60695053 | BF33: =BE33*(1+$L33) -> 11.0418355 | BG33: =BF33*(1+$L33) -> 11.49455076 | BH33: =BG33*(1+$L33) -> 11.96582734 | BI33: =BH33*(1+$L33) -> 12.45642626 | BJ33: =BI33*(1+$L33) -> 12.96713974 | BK33: =BJ33*(1+$L33) -> 13.49879247 | BL33: =BK33*(1+$L33) -> 14.05224296 | BM33: =BL33*(1+$L33) -> 14.62838492 | BN33: =BM33*(1+$L33) -> 15.2281487 | BO33: =BN33*(1+$L33) -> 15.8525028 | BP33: =BO33*(1+$L33) -> 16.50245541 | BQ33: =BP33*(1+$L33) -> 17.17905608 | BR33: =BQ33*(1+$L33) -> 17.88339738 | BS33: =BR33*(1+$L33) -> 18.61661668 | BT33: =BS33*(1+$L33) -> 19.37989796 | BU33: =BT33*(1+$L33) -> 20.17447378 | BV33: =BU33*(1+$L33) -> 21.0016272 | BW33: =BV33*(1+$L33) -> 21.86269392 | BX33: =BW33*(1+$L33) -> 22.75906437 | BY33: =BX33*(1+$L33) -> 23.692186 | BZ33: =BY33*(1+$L33) -> 24.66356563 | CA33: =BZ33*(1+$L33) -> 25.67477182 | CB33: =CA33*(1+$L33) -> 26.72743747 | CC33: =CB33*(1+$L33) -> 27.8232624 | CD33: =CC33*(1+$L33) -> 28.96401616 | CE33: =CD33*(1+$L33) -> 30.15154082 | CF33: =CE33*(1+$L33) -> 31.387754 | CG33: =CF33*(1+$L33) -> 32.67465191 | CH33: =CG33*(1+$L33) -> 34.01431264 | CI33: =CH33*(1+$L33) -> 35.40889946 | CJ33: =CI33*(1+$L33) -> 36.86066434 | CK33: =CJ33*(1+$L33) -> 38.37195157 | CL33: =CK33*(1+$L33) -> 39.94520159 | CM33: =CL33*(1+$L33) -> 41.58295485 | CN33: =CM33*(1+$L33) -> 43.287856 | CO33: =CN33*(1+$L33) -> 45.0626581 | CP33: =CO33*(1+$L33) -> 46.91022708 | CQ33: =CP33*(1+$L33) -> 48.83354639 | CR33: =CQ33*(1+$L33) -> 50.83572179 | CS33: =CR33*(1+$L33) -> 52.91998639 | CT33: =CS33*(1+$L33) -> 55.08970583 | CU33: =CT33*(1+$L33) -> 57.34838377 | CV33: =CU33*(1+$L33) -> 59.6996675 | CW33: =CV33*(1+$L33) -> 62.14735387 | CX33: =CW33*(1+$L33) -> 64.69539538 | CY33: =CX33*(1+$L33) -> 67.34790659 | CZ33: =CY33*(1+$L33) -> 70.10917076 | DA33: =CZ33*(1+$L33) -> 72.98364676 | DB33: =DA33*(1+$L33) -> 75.97597628 | DC33: =DB33*(1+$L33) -> 79.0909913 | DD33: =DC33*(1+$L33) -> 82.33372195 | DE33: =DD33*(1+$L33) -> 85.70940455 | DF33: =DE33*(1+$L33) -> 89.22349013 | DG33: =DF33*(1+$L33) -> 92.88165323 | DH33: =DG33*(1+$L33) -> 96.68980101 | DI33: =DH33*(1+$L33) -> 100.6540829 | DJ33: =DI33*(1+$L33) -> 104.7809002 | DK33: =DJ33*(1+$L33) -> 109.0769172 | DL33: =DK33*(1+$L33) -> 113.5490708 | DM33: =DL33*(1+$L33) -> 118.2045827 | DN33: =DM33*(1+$L33) -> 123.0509706 | DO33: =DN33*(1+$L33) -> 128.0960603 | DP33: =DO33*(1+$L33) -> 133.3479988 | DQ33: =DP33*(1+$L33) -> 138.8152668 | DR33: =DQ33*(1+$L33) -> 144.5066927 | DS33: =DR33*(1+$L33) -> 150.4314671 | DT33: =DS33*(1+$L33) -> 156.5991573 | DU33: =DT33*(1+$L33) -> 163.0197227 | DV33: =DU33*(1+$L33) -> 169.7035313 | DW33: =DV33*(1+$L33) -> 176.6613761 | DX33: =DW33*(1+$L33) -> 183.9044925 | DY33: =DX33*(1+$L33) -> 191.4445767 | DZ33: =DY33*(1+$L33) -> 199.2938044 | EA33: =DZ33*(1+$L33) -> 207.4648504 | EB33: =EA33*(1+$L33) -> 215.9709092 | EC33: =EB33*(1+$L33) -> 224.8257165 | ED33: =EC33*(1+$L33) -> 234.0435709 | EE33: =ED33*(1+$L33) -> 243.6393573 | EF33: =EE33*(1+$L33) -> 253.6285709 | EG33: =EF33*(1+$L33) -> 264.0273424 | EH33: =EG33*(1+$L33) -> 274.8524634 | EI33: =EH33*(1+$L33) -> 286.1214144 | EJ33: =EI33*(1+$L33) -> 297.8523924 | EK33: =EJ33*(1+$L33) -> 310.0643405 | EL33: =EK33*(1+$L33) -> 322.7769784 | EM33: =EL33*(1+$L33) -> 336.0108345 | EN33: =EM33*(1+$L33) -> 349.7872788 | EO33: =EN33*(1+$L33) -> 364.1285572 | EP33: =EO33*(1+$L33) -> 379.057828 | EQ33: =EP33*(1+$L33) -> 394.599199 | ER33: =EQ33*(1+$L33) -> 410.7777661 | ES33: =ER33*(1+$L33) -> 427.6196545 | ET33: =ES33*(1+$L33) -> 445.1520604 | EU33: =ET33*(1+$L33) -> 463.4032949 | EV33: =EU33*(1+$L33) -> 482.40283 | EW33: =EV33*(1+$L33) -> 502.181346 | EX33: =EW33*(1+$L33) -> 522.7707812 | EY33: =EX33*(1+$L33) -> 544.2043832 | EZ33: =EY33*(1+$L33) -> 566.5167629 | FA33: =EZ33*(1+$L33) -> 589.7439502 | FB33: =FA33*(1+$L33) -> 613.9234521 | FC33: =FB33*(1+$L33) -> 639.0943137 | FD33: =FC33*(1+$L33) -> 665.2971805 | FE33: =FD33*(1+$L33) -> 692.5743649 | FF33: =FE33*(1+$L33) -> 720.9699139 | FG33: =FF33*(1+$L33) -> 750.5296804 | FH33: =FG33*(1+$L33) -> 781.3013973 | FI33: =FH33*(1+$L33) -> 813.3347546 | FJ33: =FI33*(1+$L33) -> 846.6814795 | FK33: =FJ33*(1+$L33) -> 881.3954202 | FL33: =FK33*(1+$L33) -> 917.5326324 | FM33: =FL33*(1+$L33) -> 955.1514703 | FN33: =FM33*(1+$L33) -> 994.3126806 | FO33: =FN33*(1+$L33) -> 1035.0795 | FP33: =FO33*(1+$L33) -> 1077.51776 | FQ33: =FP33*(1+$L33) -> 1121.695988 | FR33: =FQ33*(1+$L33) -> 1167.685524 | FS33: =FR33*(1+$L33) -> 1215.56063 | FT33: =FS33*(1+$L33) -> 1265.398616 | FU33: =FT33*(1+$L33) -> 1317.279959 | FV33: =FU33*(1+$L33) -> 1371.288438 | FW33: =FV33*(1+$L33) -> 1427.511264 | FX33: =FW33*(1+$L33) -> 1486.039225 | FY33: =FX33*(1+$L33) -> 1546.966834 | FZ33: =FY33*(1+$L33) -> 1610.392474 | GA33: =FZ33*(1+$L33) -> 1676.418565 | GB33: =GA33*(1+$L33) -> 1745.151726 | GC33: =GB33*(1+$L33) -> 1816.702947 | GD33: =GC33*(1+$L33) -> 1891.187768 | GE33: =GD33*(1+$L33) -> 1968.726466 | GF33: =GE33*(1+$L33) -> 2049.444252 | GG33: =GF33*(1+$L33) -> 2133.471466 | GH33: =GG33*(1+$L33) -> 2220.943796 | GI33: =GH33*(1+$L33) -> 2312.002492 | GJ33: =GI33*(1+$L33) -> 2406.794594 | GK33: =GJ33*(1+$L33) -> 2505.473172 | GL33: =GK33*(1+$L33) -> 2608.197572 | GM33: =GL33*(1+$L33) -> 2715.133673 | GN33: =GM33*(1+$L33) -> 2826.454153 | GO33: =GN33*(1+$L33) -> 2942.338773 | GP33: =GO33*(1+$L33) -> 3062.974663 | GQ33: =GP33*(1+$L33) -> 3188.556624 | GR33: =GQ33*(1+$L33) -> 3319.287446 | GS33: =GR33*(1+$L33) -> 3455.378231 | GT33: =GS33*(1+$L33) -> 3597.048739 | GU33: =GT33*(1+$L33) -> 3744.527737 | GV33: =GU33*(1+$L33) -> 3898.053374 | GW33: =GV33*(1+$L33) -> 4057.873563 | GX33: =GW33*(1+$L33) -> 4224.246379 | GY33: =GX33*(1+$L33) -> 4397.44048 | GZ33: =GY33*(1+$L33) -> 4577.73554 | HA33: =GZ33*(1+$L33) -> 4765.422697 | HB33: =HA33*(1+$L33) -> 4960.805028 | HC33: =HB33*(1+$L33) -> 5164.198034 | HD33: =HC33*(1+$L33) -> 5375.930153 | HE33: =HD33*(1+$L33) -> 5596.343289 | HF33: =HE33*(1+$L33) -> 5825.793364 | HG33: =HF33*(1+$L33) -> 6064.650892
A34: =MAX($A$11:A33)+1 -> 20 | C34: Pinnacle West Capital Corporation | D34: 87.48 | E34: 3.58 | F34: 0.0533 | G34: 0.05125 | H34: 0.0492 | I34: 0.04715 | J34: 0.0451 | K34: 0.04305 | L34: 0.041 | M34: 0.08698615782 | O34: -87.48 | P34: 3.770814 | Q34: 3.971798386 | R34: 4.18349524 | S34: 4.406475536 | T34: 4.641340683 | U34: 4.879209393 | V34: 5.119266495 | W34: 5.36063991 | X34: 5.60240477 | Y34: 5.843588295 | Z34: 6.083175415 | AA34: 6.332585607 | AB34: 6.592221617 | AC34: 6.862502704 | AD34: 7.143865314 | AE34: 7.436763792 | AF34: 7.741671108 | AG34: 8.059079623 | AH34: 8.389501888 | AI34: 8.733471465 | AJ34: 9.091543795 | AK34: 9.464297091 | AL34: 9.852333271 | AM34: 10.25627894 | AN34: 10.67678637 | AO34: 11.11453461 | AP34: 11.57023053 | AQ34: 12.04460998 | AR34: 12.53843899 | AS34: 13.05251499 | AT34: 13.58766811 | AU34: 14.1447625 | AV34: 14.72469776 | AW34: 15.32841037 | AX34: 15.9568752 | AY34: 16.61110708 | AZ34: 17.29216247 | BA34: 18.00114113 | BB34: 18.73918792 | BC34: 19.50749462 | BD34: 20.3073019 | BE34: 21.13990128 | BF34: 22.00663723 | BG34: 22.90890936 | BH34: 23.84817464 | BI34: 24.8259498 | BJ34: 25.84381374 | BK34: 26.90341011 | BL34: 28.00644992 | BM34: 29.15471437 | BN34: 30.35005766 | BO34: 31.59441002 | BP34: 32.88978083 | BQ34: 34.23826184 | BR34: 35.64203058 | BS34: 37.10335383 | BT34: 38.62459134 | BU34: 40.20819959 | BV34: 41.85673577 | BW34: 43.57286194 | BX34: 45.35934928 | BY34: 47.2190826 | BZ34: 49.15506498 | CA34: 51.17042265 | CB34: 53.26840997 | CC34: 55.45241478 | CD34: 57.72596379 | CE34: 60.09272831 | CF34: 62.55653017 | CG34: 65.1213479 | CH34: 67.79132317 | CI34: 70.57076742 | CJ34: 73.46416888 | CK34: 76.4761998 | CL34: 79.611724 | CM34: 82.87580468 | CN34: 86.27371267 | CO34: 89.81093489 | CP34: 93.49318322 | CQ34: 97.32640373 | CR34: 101.3167863 | CS34: 105.4707745 | CT34: 109.7950763 | CU34: 114.2966744 | CV34: 118.9828381 | CW34: 123.8611344 | CX34: 128.9394409 | CY34: 134.225958 | CZ34: 139.7292223 | DA34: 145.4581204 | DB34: 151.4219033 | DC34: 157.6302014 | DD34: 164.0930396 | DE34: 170.8208543 | DF34: 177.8245093 | DG34: 185.1153142 | DH34: 192.705042 | DI34: 200.6059488 | DJ34: 208.8307927 | DK34: 217.3928552 | DL34: 226.3059622 | DM34: 235.5845067 | DN34: 245.2434715 | DO34: 255.2984538 | DP34: 265.7656904 | DQ34: 276.6620837 | DR34: 288.0052291 | DS34: 299.8134435 | DT34: 312.1057947 | DU34: 324.9021323 | DV34: 338.2231197 | DW34: 352.0902676 | DX34: 366.5259686 | DY34: 381.5535333 | DZ34: 397.1972282 | EA34: 413.4823145 | EB34: 430.4350894 | EC34: 448.0829281 | ED34: 466.4543281 | EE34: 485.5789556 | EF34: 505.4876928 | EG34: 526.2126882 | EH34: 547.7874084 | EI34: 570.2466921 | EJ34: 593.6268065 | EK34: 617.9655056 | EL34: 643.3020913 | EM34: 669.677477 | EN34: 697.1342536 | EO34: 725.716758 | EP34: 755.4711451 | EQ34: 786.445462 | ER34: 818.689726 | ES34: 852.2560047 | ET34: 887.1985009 | EU34: 923.5736395 | EV34: 961.4401587 | EW34: 1000.859205 | EX34: 1041.894433 | EY34: 1084.612104 | EZ34: 1129.081201 | FA34: 1175.37353 | FB34: 1223.563845 | FC34: 1273.729962 | FD34: 1325.952891 | FE34: 1380.316959 | FF34: 1436.909954 | FG34: 1495.823263 | FH34: 1557.152016 | FI34: 1620.995249 | FJ34: 1687.456054 | FK34: 1756.641752 | FL34: 1828.664064 | FM34: 1903.639291 | FN34: 1981.688502 | FO34: 2062.93773 | FP34: 2147.518177 | FQ34: 2235.566423 | FR34: 2327.224646 | FS34: 2422.640857 | FT34: 2521.969132 | FU34: 2625.369866 | FV34: 2733.010031 | FW34: 2845.063442 | FX34: 2961.711043 | FY34: 3083.141196 | FZ34: 3209.549985 | GA34: 3341.141534 | GB34: 3478.128337 | GC34: 3620.731599 | GD34: 3769.181594 | GE34: 3923.71804 | GF34: 4084.590479 | GG34: 4252.058689 | GH34: 4426.393095 | GI34: 4607.875212 | GJ34: 4796.798096 | GK34: 4993.466818 | GL34: 5198.198957 | GM34: 5411.325115 | GN34: 5633.189444 | GO34: 5864.150211 | GP34: 6104.58037 | GQ34: 6354.868165 | GR34: 6615.41776 | GS34: 6886.649888 | GT34: 7169.002534 | GU34: 7462.931638 | GV34: 7768.911835 | GW34: 8087.43722 | GX34: 8419.022146 | GY34: 8764.202054 | GZ34: 9123.534338 | HA34: 9497.599246 | HB34: 9887.000815 | HC34: 10292.36785 | HD34: 10714.35493 | HE34: 11153.64348 | HF34: 11610.94287 | HG34: 12086.99152
A35: =MAX($A$11:A34)+1 -> 21 | C35: Portland General Electric Company | D35: 43.12 | E35: 2 | F35: 0.0854 | G35: 0.078 | H35: 0.0706 | I35: 0.0632 | J35: 0.0558 | K35: 0.0484 | L35: 0.041 | M35: 0.1038010063 | O35: -43.12 | P35: 2.1708 | Q35: 2.35618632 | R35: 2.557404632 | S35: 2.775806987 | T35: 3.012860904 | U35: 3.247864055 | V35: 3.477163257 | W35: 3.696919975 | X35: 3.903208109 | Y35: 4.092123382 | Z35: 4.25990044 | AA35: 4.434556358 | AB35: 4.616373169 | AC35: 4.805644469 | AD35: 5.002675892 | AE35: 5.207785604 | AF35: 5.421304814 | AG35: 5.643578311 | AH35: 5.874965022 | AI35: 6.115838588 | AJ35: 6.36658797 | AK35: 6.627618076 | AL35: 6.899350417 | AM35: 7.182223785 | AN35: 7.47669496 | AO35: 7.783239453 | AP35: 8.102352271 | AQ35: 8.434548714 | AR35: 8.780365211 | AS35: 9.140360185 | AT35: 9.515114952 | AU35: 9.905234665 | AV35: 10.31134929 | AW35: 10.73411461 | AX35: 11.17421331 | AY35: 11.63235605 | AZ35: 12.10928265 | BA35: 12.60576324 | BB35: 13.12259953 | BC35: 13.66062611 | BD35: 14.22071178 | BE35: 14.80376097 | BF35: 15.41071517 | BG35: 16.04255449 | BH35: 16.70029922 | BI35: 17.38501149 | BJ35: 18.09779696 | BK35: 18.83980664 | BL35: 19.61223871 | BM35: 20.41634049 | BN35: 21.25341046 | BO35: 22.12480028 | BP35: 23.0319171 | BQ35: 23.9762257 | BR35: 24.95925095 | BS35: 25.98258024 | BT35: 27.04786603 | BU35: 28.15682854 | BV35: 29.31125851 | BW35: 30.5130201 | BX35: 31.76405393 | BY35: 33.06638014 | BZ35: 34.42210173 | CA35: 35.8334079 | CB35: 37.30257762 | CC35: 38.8319833 | CD35: 40.42409462 | CE35: 42.0814825 | CF35: 43.80682328 | CG35: 45.60290303 | CH35: 47.47262206 | CI35: 49.41899956 | CJ35: 51.44517854 | CK35: 53.55443087 | CL35: 55.75016253 | CM35: 58.03591919 | CN35: 60.41539188 | CO35: 62.89242295 | CP35: 65.47101229 | CQ35: 68.15532379 | CR35: 70.94969207 | CS35: 73.85862944 | CT35: 76.88683325 | CU35: 80.03919341 | CV35: 83.32080034 | CW35: 86.73695316 | CX35: 90.29316824 | CY35: 93.99518814 | CZ35: 97.84899085 | DA35: 101.8607995 | DB35: 106.0370923 | DC35: 110.384613 | DD35: 114.9103822 | DE35: 119.6217078 | DF35: 124.5261979 | DG35: 129.631772 | DH35: 134.9466746 | DI35: 140.4794883 | DJ35: 146.2391473 | DK35: 152.2349523 | DL35: 158.4765854 | DM35: 164.9741254 | DN35: 171.7380645 | DO35: 178.7793252 | DP35: 186.1092775 | DQ35: 193.7397579 | DR35: 201.683088 | DS35: 209.9520946 | DT35: 218.5601304 | DU35: 227.5210958 | DV35: 236.8494607 | DW35: 246.5602886 | DX35: 256.6692604 | DY35: 267.1927001 | DZ35: 278.1476008 | EA35: 289.5516525 | EB35: 301.4232702 | EC35: 313.7816243 | ED35: 326.6466709 | EE35: 340.0391844 | EF35: 353.9807909 | EG35: 368.4940034 | EH35: 383.6022575 | EI35: 399.3299501 | EJ35: 415.702478 | EK35: 432.7462796 | EL35: 450.4888771 | EM35: 468.958921 | EN35: 488.1862368 | EO35: 508.2018725 | EP35: 529.0381493 | EQ35: 550.7287134 | ER35: 573.3085907 | ES35: 596.8142429 | ET35: 621.2836268 | EU35: 646.7562555 | EV35: 673.273262 | EW35: 700.8774658 | EX35: 729.6134419 | EY35: 759.527593 | EZ35: 790.6682243 | FA35: 823.0856215 | FB35: 856.832132 | FC35: 891.9622494 | FD35: 928.5327016 | FE35: 966.6025424 | FF35: 1006.233247 | FG35: 1047.48881 | FH35: 1090.435851 | FI35: 1135.143721 | FJ35: 1181.684613 | FK35: 1230.133682 | FL35: 1280.569163 | FM35: 1333.072499 | FN35: 1387.728472 | FO35: 1444.625339 | FP35: 1503.854978 | FQ35: 1565.513032 | FR35: 1629.699066 | FS35: 1696.516728 | FT35: 1766.073914 | FU35: 1838.482944 | FV35: 1913.860745 | FW35: 1992.329036 | FX35: 2074.014526 | FY35: 2159.049122 | FZ35: 2247.570136 | GA35: 2339.720511 | GB35: 2435.649052 | GC35: 2535.510663 | GD35: 2639.4666 | GE35: 2747.684731 | GF35: 2860.339805 | GG35: 2977.613737 | GH35: 3099.6959 | GI35: 3226.783432 | GJ35: 3359.081553 | GK35: 3496.803897 | GL35: 3640.172856 | GM35: 3789.419943 | GN35: 3944.786161 | GO35: 4106.522394 | GP35: 4274.889812 | GQ35: 4450.160294 | GR35: 4632.616866 | GS35: 4822.554158 | GT35: 5020.278878 | GU35: 5226.110312 | GV35: 5440.380835 | GW35: 5663.436449 | GX35: 5895.637344 | GY35: 6137.358475 | GZ35: 6388.990172 | HA35: 6650.938769 | HB35: 6923.627259 | HC35: 7207.495976 | HD35: 7503.003311 | HE35: 7810.626447 | HF35: 8130.862132 | HG35: 8464.227479
A36: =MAX($A$11:A35)+1 -> 22 | C36: The Southern Company | D36: 84.36 | E36: 2.88 | F36: 0.0664 | G36: 0.06216666667 | H36: 0.05793333333 | I36: 0.0537 | J36: 0.04946666667 | K36: 0.04523333333 | L36: 0.041 | M36: 0.08268190628 | O36: -84.36 | P36: 3.071232 | Q36: 3.275161805 | R36: 3.492632549 | S36: 3.72454335 | T36: 3.971853028 | U36: 4.218769892 | V36: 4.463177294 | W36: 4.702849915 | X36: 4.935484224 | Y36: 5.158732627 | Z36: 5.370240664 | AA36: 5.590420532 | AB36: 5.819627774 | AC36: 6.058232512 | AD36: 6.306620045 | AE36: 6.565191467 | AF36: 6.834364317 | AG36: 7.114573254 | AH36: 7.406270758 | AI36: 7.709927859 | AJ36: 8.026034901 | AK36: 8.355102332 | AL36: 8.697661528 | AM36: 9.05426565 | AN36: 9.425490542 | AO36: 9.811935654 | AP36: 10.21422502 | AQ36: 10.63300824 | AR36: 11.06896158 | AS36: 11.522789 | AT36: 11.99522335 | AU36: 12.48702751 | AV36: 12.99899564 | AW36: 13.53195446 | AX36: 14.08676459 | AY36: 14.66432194 | AZ36: 15.26555914 | BA36: 15.89144707 | BB36: 16.5429964 | BC36: 17.22125925 | BD36: 17.92733088 | BE36: 18.66235144 | BF36: 19.42750785 | BG36: 20.22403567 | BH36: 21.05322114 | BI36: 21.9164032 | BJ36: 22.81497573 | BK36: 23.75038974 | BL36: 24.72415572 | BM36: 25.7378461 | BN36: 26.79309779 | BO36: 27.8916148 | BP36: 29.03517101 | BQ36: 30.22561302 | BR36: 31.46486315 | BS36: 32.75492254 | BT36: 34.09787437 | BU36: 35.49588722 | BV36: 36.95121859 | BW36: 38.46621856 | BX36: 40.04333352 | BY36: 41.68511019 | BZ36: 43.39419971 | CA36: 45.1733619 | CB36: 47.02546973 | CC36: 48.95351399 | CD36: 50.96060807 | CE36: 53.049993 | CF36: 55.22504271 | CG36: 57.48926946 | CH36: 59.84632951 | CI36: 62.30002902 | CJ36: 64.85433021 | CK36: 67.51335775 | CL36: 70.28140542 | CM36: 73.16294304 | CN36: 76.1626237 | CO36: 79.28529127 | CP36: 82.53598822 | CQ36: 85.91996373 | CR36: 89.44268225 | CS36: 93.10983222 | CT36: 96.92733534 | CU36: 100.9013561 | CV36: 105.0383117 | CW36: 109.3448825 | CX36: 113.8280226 | CY36: 118.4949716 | CZ36: 123.3532654 | DA36: 128.4107493 | DB36: 133.67559 | DC36: 139.1562892 | DD36: 144.8616971 | DE36: 150.8010266 | DF36: 156.9838687 | DG36: 163.4202074 | DH36: 170.1204359 | DI36: 177.0953737 | DJ36: 184.356284 | DK36: 191.9148917 | DL36: 199.7834023 | DM36: 207.9745217 | DN36: 216.5014771 | DO36: 225.3780377 | DP36: 234.6185372 | DQ36: 244.2378973 | DR36: 254.2516511 | DS36: 264.6759688 | DT36: 275.5276835 | DU36: 286.8243185 | DV36: 298.5841156 | DW36: 310.8260643 | DX36: 323.5699329 | DY36: 336.8363002 | DZ36: 350.6465885 | EA36: 365.0230986 | EB36: 379.9890457 | EC36: 395.5685965 | ED36: 411.786909 | EE36: 428.6701723 | EF36: 446.2456493 | EG36: 464.5417209 | EH36: 483.5879315 | EI36: 503.4150367 | EJ36: 524.0550532 | EK36: 545.5413104 | EL36: 567.9085041 | EM36: 591.1927528 | EN36: 615.4316556 | EO36: 640.6643535 | EP36: 666.931592 | EQ36: 694.2757873 | ER36: 722.7410945 | ES36: 752.3734794 | ET36: 783.2207921 | EU36: 815.3328446 | EV36: 848.7614912 | EW36: 883.5607123 | EX36: 919.7867015 | EY36: 957.4979563 | EZ36: 996.7553725 | FA36: 1037.622343 | FB36: 1080.164859 | FC36: 1124.451618 | FD36: 1170.554134 | FE36: 1218.546854 | FF36: 1268.507275 | FG36: 1320.516073 | FH36: 1374.657232 | FI36: 1431.018179 | FJ36: 1489.689924 | FK36: 1550.767211 | FL36: 1614.348667 | FM36: 1680.536962 | FN36: 1749.438977 | FO36: 1821.165975 | FP36: 1895.83378 | FQ36: 1973.562965 | FR36: 2054.479047 | FS36: 2138.712688 | FT36: 2226.399908 | FU36: 2317.682304 | FV36: 2412.707279 | FW36: 2511.628277 | FX36: 2614.605037 | FY36: 2721.803843 | FZ36: 2833.397801 | GA36: 2949.56711 | GB36: 3070.499362 | GC36: 3196.389836 | GD36: 3327.441819 | GE36: 3463.866934 | GF36: 3605.885478 | GG36: 3753.726783 | GH36: 3907.629581 | GI36: 4067.842393 | GJ36: 4234.623932 | GK36: 4408.243513 | GL36: 4588.981497 | GM36: 4777.129738 | GN36: 4972.992057 | GO36: 5176.884732 | GP36: 5389.137006 | GQ36: 5610.091623 | GR36: 5840.10538 | GS36: 6079.5497 | GT36: 6328.811238 | GU36: 6588.292499 | GV36: 6858.412491 | GW36: 7139.607403 | GX36: 7432.331307 | GY36: 7737.05689 | GZ36: 8054.276223 | HA36: 8384.501548 | HB36: 8728.266111 | HC36: 9086.125022 | HD36: 9458.656148 | HE36: 9846.46105 | HF36: 10250.16595 | HG36: 10670.42276
A37: =MAX($A$11:A36)+1 -> 23 | C37: TXNM Energy | D37: 48.96 | E37: 1.63 | F37: 0.0423 | G37: 0.04208333333 | H37: 0.04186666667 | I37: 0.04165 | J37: 0.04143333333 | K37: 0.04121666667 | L37: 0.041 | M37: =IFERROR(IRR(O37:HG37),"N/A") -> 0.07590149753 | O37: -48.96 | P37: 1.698949 | Q37: =P37*(1+$F37) -> 1.770814543 | R37: =Q37*(1+$F37) -> 1.845719998 | S37: =R37*(1+$F37) -> 1.923793954 | T37: =S37*(1+$F37) -> 2.005170438 | U37: =T37*(1+G37) -> 2.089554694 | V37: =U37*(1+H37) -> 2.177037384 | W37: =V37*(1+I37) -> 2.267710991 | X37: =W37*(1+J37) -> 2.361669816 | Y37: =X37*(1+K37) -> 2.459009974 | Z37: =Y37*(1+$L37) -> 2.559829383 | AA37: =Z37*(1+$L37) -> 2.664782387 | AB37: =AA37*(1+$L37) -> 2.774038465 | AC37: =AB37*(1+$L37) -> 2.887774042 | AD37: =AC37*(1+$L37) -> 3.006172778 | AE37: =AD37*(1+$L37) -> 3.129425862 | AF37: =AE37*(1+$L37) -> 3.257732322 | AG37: =AF37*(1+$L37) -> 3.391299348 | AH37: =AG37*(1+$L37) -> 3.530342621 | AI37: =AH37*(1+$L37) -> 3.675086668 | AJ37: =AI37*(1+$L37) -> 3.825765222 | AK37: =AJ37*(1+$L37) -> 3.982621596 | AL37: =AK37*(1+$L37) -> 4.145909081 | AM37: =AL37*(1+$L37) -> 4.315891354 | AN37: =AM37*(1+$L37) -> 4.492842899 | AO37: =AN37*(1+$L37) -> 4.677049458 | AP37: =AO37*(1+$L37) -> 4.868808486 | AQ37: =AP37*(1+$L37) -> 5.068429634 | AR37: =AQ37*(1+$L37) -> 5.276235249 | AS37: =AR37*(1+$L37) -> 5.492560894 | AT37: =AS37*(1+$L37) -> 5.71775589 | AU37: =AT37*(1+$L37) -> 5.952183882 | AV37: =AU37*(1+$L37) -> 6.196223421 | AW37: =AV37*(1+$L37) -> 6.450268581 | AX37: =AW37*(1+$L37) -> 6.714729593 | AY37: =AX37*(1+$L37) -> 6.990033506 | AZ37: =AY37*(1+$L37) -> 7.27662488 | BA37: =AZ37*(1+$L37) -> 7.5749665 | BB37: =BA37*(1+$L37) -> 7.885540127 | BC37: =BB37*(1+$L37) -> 8.208847272 | BD37: =BC37*(1+$L37) -> 8.54541001 | BE37: =BD37*(1+$L37) -> 8.895771821 | BF37: =BE37*(1+$L37) -> 9.260498465 | BG37: =BF37*(1+$L37) -> 9.640178902 | BH37: =BG37*(1+$L37) -> 10.03542624 | BI37: =BH37*(1+$L37) -> 10.44687871 | BJ37: =BI37*(1+$L37) -> 10.87520074 | BK37: =BJ37*(1+$L37) -> 11.32108397 | BL37: =BK37*(1+$L37) -> 11.78524841 | BM37: =BL37*(1+$L37) -> 12.2684436 | BN37: =BM37*(1+$L37) -> 12.77144979 | BO37: =BN37*(1+$L37) -> 13.29507923 | BP37: =BO37*(1+$L37) -> 13.84017748 | BQ37: =BP37*(1+$L37) -> 14.40762475 | BR37: =BQ37*(1+$L37) -> 14.99833737 | BS37: =BR37*(1+$L37) -> 15.6132692 | BT37: =BS37*(1+$L37) -> 16.25341324 | BU37: =BT37*(1+$L37) -> 16.91980318 | BV37: =BU37*(1+$L37) -> 17.61351511 | BW37: =BV37*(1+$L37) -> 18.33566923 | BX37: =BW37*(1+$L37) -> 19.08743167 | BY37: =BX37*(1+$L37) -> 19.87001637 | BZ37: =BY37*(1+$L37) -> 20.68468704 | CA37: =BZ37*(1+$L37) -> 21.5327592 | CB37: =CA37*(1+$L37) -> 22.41560233 | CC37: =CB37*(1+$L37) -> 23.33464203 | CD37: =CC37*(1+$L37) -> 24.29136235 | CE37: =CD37*(1+$L37) -> 25.28730821 | CF37: =CE37*(1+$L37) -> 26.32408784 | CG37: =CF37*(1+$L37) -> 27.40337545 | CH37: =CG37*(1+$L37) -> 28.52691384 | CI37: =CH37*(1+$L37) -> 29.69651731 | CJ37: =CI37*(1+$L37) -> 30.91407452 | CK37: =CJ37*(1+$L37) -> 32.18155157 | CL37: =CK37*(1+$L37) -> 33.50099518 | CM37: =CL37*(1+$L37) -> 34.87453599 | CN37: =CM37*(1+$L37) -> 36.30439196 | CO37: =CN37*(1+$L37) -> 37.79287203 | CP37: =CO37*(1+$L37) -> 39.34237979 | CQ37: =CP37*(1+$L37) -> 40.95541736 | CR37: =CQ37*(1+$L37) -> 42.63458947 | CS37: =CR37*(1+$L37) -> 44.38260764 | CT37: =CS37*(1+$L37) -> 46.20229455 | CU37: =CT37*(1+$L37) -> 48.09658863 | CV37: =CU37*(1+$L37) -> 50.06854876 | CW37: =CV37*(1+$L37) -> 52.12135926 | CX37: =CW37*(1+$L37) -> 54.25833499 | CY37: =CX37*(1+$L37) -> 56.48292673 | CZ37: =CY37*(1+$L37) -> 58.79872672 | DA37: =CZ37*(1+$L37) -> 61.20947452 | DB37: =DA37*(1+$L37) -> 63.71906297 | DC37: =DB37*(1+$L37) -> 66.33154455 | DD37: =DC37*(1+$L37) -> 69.05113788 | DE37: =DD37*(1+$L37) -> 71.88223453 | DF37: =DE37*(1+$L37) -> 74.82940615 | DG37: =DF37*(1+$L37) -> 77.8974118 | DH37: =DG37*(1+$L37) -> 81.09120568 | DI37: =DH37*(1+$L37) -> 84.41594512 | DJ37: =DI37*(1+$L37) -> 87.87699887 | DK37: =DJ37*(1+$L37) -> 91.47995582 | DL37: =DK37*(1+$L37) -> 95.23063401 | DM37: =DL37*(1+$L37) -> 99.13509 | DN37: =DM37*(1+$L37) -> 103.1996287 | DO37: =DN37*(1+$L37) -> 107.4308135 | DP37: =DO37*(1+$L37) -> 111.8354768 | DQ37: =DP37*(1+$L37) -> 116.4207314 | DR37: =DQ37*(1+$L37) -> 121.1939814 | DS37: =DR37*(1+$L37) -> 126.1629346 | DT37: =DS37*(1+$L37) -> 131.3356149 | DU37: =DT37*(1+$L37) -> 136.7203751 | DV37: =DU37*(1+$L37) -> 142.3259105 | DW37: =DV37*(1+$L37) -> 148.1612728 | DX37: =DW37*(1+$L37) -> 154.235885 | DY37: =DX37*(1+$L37) -> 160.5595563 | DZ37: =DY37*(1+$L37) -> 167.1424981 | EA37: =DZ37*(1+$L37) -> 173.9953405 | EB37: =EA37*(1+$L37) -> 181.1291495 | EC37: =EB37*(1+$L37) -> 188.5554446 | ED37: =EC37*(1+$L37) -> 196.2862179 | EE37: =ED37*(1+$L37) -> 204.3339528 | EF37: =EE37*(1+$L37) -> 212.7116449 | EG37: =EF37*(1+$L37) -> 221.4328223 | EH37: =EG37*(1+$L37) -> 230.511568 | EI37: =EH37*(1+$L37) -> 239.9625423 | EJ37: =EI37*(1+$L37) -> 249.8010065 | EK37: =EJ37*(1+$L37) -> 260.0428478 | EL37: =EK37*(1+$L37) -> 270.7046046 | EM37: =EL37*(1+$L37) -> 281.8034933 | EN37: =EM37*(1+$L37) -> 293.3574366 | EO37: =EN37*(1+$L37) -> 305.3850915 | EP37: =EO37*(1+$L37) -> 317.9058802 | EQ37: =EP37*(1+$L37) -> 330.9400213 | ER37: =EQ37*(1+$L37) -> 344.5085622 | ES37: =ER37*(1+$L37) -> 358.6334132 | ET37: =ES37*(1+$L37) -> 373.3373832 | EU37: =ET37*(1+$L37) -> 388.6442159 | EV37: =EU37*(1+$L37) -> 404.5786287 | EW37: =EV37*(1+$L37) -> 421.1663525 | EX37: =EW37*(1+$L37) -> 438.434173 | EY37: =EX37*(1+$L37) -> 456.4099741 | EZ37: =EY37*(1+$L37) -> 475.122783 | FA37: =EZ37*(1+$L37) -> 494.6028171 | FB37: =FA37*(1+$L37) -> 514.8815326 | FC37: =FB37*(1+$L37) -> 535.9916754 | FD37: =FC37*(1+$L37) -> 557.9673341 | FE37: =FD37*(1+$L37) -> 580.8439948 | FF37: =FE37*(1+$L37) -> 604.6585986 | FG37: =FF37*(1+$L37) -> 629.4496012 | FH37: =FG37*(1+$L37) -> 655.2570348 | FI37: =FH37*(1+$L37) -> 682.1225732 | FJ37: =FI37*(1+$L37) -> 710.0895988 | FK37: =FJ37*(1+$L37) -> 739.2032723 | FL37: =FK37*(1+$L37) -> 769.5106065 | FM37: =FL37*(1+$L37) -> 801.0605413 | FN37: =FM37*(1+$L37) -> 833.9040235 | FO37: =FN37*(1+$L37) -> 868.0940885 | FP37: =FO37*(1+$L37) -> 903.6859461 | FQ37: =FP37*(1+$L37) -> 940.7370699 | FR37: =FQ37*(1+$L37) -> 979.3072898 | FS37: =FR37*(1+$L37) -> 1019.458889 | FT37: =FS37*(1+$L37) -> 1061.256703 | FU37: =FT37*(1+$L37) -> 1104.768228 | FV37: =FU37*(1+$L37) -> 1150.063725 | FW37: =FV37*(1+$L37) -> 1197.216338 | FX37: =FW37*(1+$L37) -> 1246.302208 | FY37: =FX37*(1+$L37) -> 1297.400598 | FZ37: =FY37*(1+$L37) -> 1350.594023 | GA37: =FZ37*(1+$L37) -> 1405.968378 | GB37: =GA37*(1+$L37) -> 1463.613081 | GC37: =GB37*(1+$L37) -> 1523.621218 | GD37: =GC37*(1+$L37) -> 1586.089688 | GE37: =GD37*(1+$L37) -> 1651.119365 | GF37: =GE37*(1+$L37) -> 1718.815259 | GG37: =GF37*(1+$L37) -> 1789.286684 | GH37: =GG37*(1+$L37) -> 1862.647438 | GI37: =GH37*(1+$L37) -> 1939.015983 | GJ37: =GI37*(1+$L37) -> 2018.515639 | GK37: =GJ37*(1+$L37) -> 2101.27478 | GL37: =GK37*(1+$L37) -> 2187.427046 | GM37: =GL37*(1+$L37) -> 2277.111555 | GN37: =GM37*(1+$L37) -> 2370.473128 | GO37: =GN37*(1+$L37) -> 2467.662527 | GP37: =GO37*(1+$L37) -> 2568.83669 | GQ37: =GP37*(1+$L37) -> 2674.158995 | GR37: =GQ37*(1+$L37) -> 2783.799513 | GS37: =GR37*(1+$L37) -> 2897.935294 | GT37: =GS37*(1+$L37) -> 3016.750641 | GU37: =GT37*(1+$L37) -> 3140.437417 | GV37: =GU37*(1+$L37) -> 3269.195351 | GW37: =GV37*(1+$L37) -> 3403.23236 | GX37: =GW37*(1+$L37) -> 3542.764887 | GY37: =GX37*(1+$L37) -> 3688.018247 | GZ37: =GY37*(1+$L37) -> 3839.226996 | HA37: =GZ37*(1+$L37) -> 3996.635302 | HB37: =HA37*(1+$L37) -> 4160.49735 | HC37: =HB37*(1+$L37) -> 4331.077741 | HD37: =HC37*(1+$L37) -> 4508.651928 | HE37: =HD37*(1+$L37) -> 4693.506658 | HF37: =HE37*(1+$L37) -> 4885.940431 | HG37: =HF37*(1+$L37) -> 5086.263988
A38: =MAX($A$11:A37)+1 -> 24 | C38: Xcel Energy Inc. | D38: 67.8 | E38: 2.28 | F38: 0.0692 | G38: 0.0645 | H38: 0.0598 | I38: 0.0551 | J38: 0.0504 | K38: 0.0457 | L38: 0.041 | M38: 0.08278190609 | O38: -67.8 | P38: 2.437776 | Q38: 2.606470099 | R38: 2.78683783 | S38: 2.979687008 | T38: 3.185881349 | U38: 3.391370696 | V38: 3.594174663 | W38: 3.792213687 | X38: 3.983341257 | Y38: 4.165379953 | Z38: 4.336160531 | AA38: 4.513943113 | AB38: 4.69901478 | AC38: 4.891674386 | AD38: 5.092233036 | AE38: 5.30101459 | AF38: 5.518356189 | AG38: 5.744608792 | AH38: 5.980137753 | AI38: 6.225323401 | AJ38: 6.48056166 | AK38: 6.746264688 | AL38: 7.02286154 | AM38: 7.310798864 | AN38: 7.610541617 | AO38: 7.922573823 | AP38: 8.24739935 | AQ38: 8.585542723 | AR38: 8.937549975 | AS38: 9.303989524 | AT38: 9.685453095 | AU38: 10.08255667 | AV38: 10.49594149 | AW38: 10.9262751 | AX38: 11.37425238 | AY38: 11.84059672 | AZ38: 12.32606119 | BA38: 12.8314297 | BB38: 13.35751831 | BC38: 13.90517657 | BD38: 14.4752888 | BE38: 15.06877565 | BF38: 15.68659545 | BG38: 16.32974586 | BH38: 16.99926544 | BI38: 17.69623532 | BJ38: 18.42178097 | BK38: 19.17707399 | BL38: 19.96333403 | BM38: 20.78183072 | BN38: 21.63388578 | BO38: 22.5208751 | BP38: 23.44423098 | BQ38: 24.40544445 | BR38: 25.40606767 | BS38: 26.44771644 | BT38: 27.53207282 | BU38: 28.6608878 | BV38: 29.8359842 | BW38: 31.05925955 | BX38: 32.3326892 | BY38: 33.65832945 | BZ38: 35.03832096 | CA38: 36.47489212 | CB38: 37.9703627 | CC38: 39.52714757 | CD38: 41.14776062 | CE38: 42.8348188 | CF38: 44.59104637 | CG38: 46.41927928 | CH38: 48.32246973 | CI38: 50.30369099 | CJ38: 52.36614232 | CK38: 54.51315415 | CL38: 56.74819347 | CM38: 59.0748694 | CN38: 61.49693905 | CO38: 64.01831355 | CP38: 66.6430644 | CQ38: 69.37543005 | CR38: 72.21982268 | CS38: 75.18083541 | CT38: 78.26324966 | CU38: 81.47204289 | CV38: 84.81239665 | CW38: 88.28970492 | CX38: 91.90958282 | CY38: 95.67787571 | CZ38: 99.60066862 | DA38: 103.684296 | DB38: 107.9353522 | DC38: 112.3607016 | DD38: 116.9674904 | DE38: 121.7631575 | DF38: 126.7554469 | DG38: 131.9524203 | DH38: 137.3624695 | DI38: 142.9943307 | DJ38: 148.8570983 | DK38: 154.9602393 | DL38: 161.3136091 | DM38: 167.9274671 | DN38: 174.8124933 | DO38: 181.9798055 | DP38: 189.4409775 | DQ38: 197.2080576 | DR38: 205.293588 | DS38: 213.7106251 | DT38: 222.4727607 | DU38: 231.5941439 | DV38: 241.0895038 | DW38: 250.9741734 | DX38: 261.2641145 | DY38: 271.9759432 | DZ38: 283.1269569 | EA38: 294.7351621 | EB38: 306.8193038 | EC38: 319.3988953 | ED38: 332.49425 | EE38: 346.1265142 | EF38: 360.3177013 | EG38: 375.090727 | EH38: 390.4694468 | EI38: 406.4786942 | EJ38: 423.1443206 | EK38: 440.4932378 | EL38: 458.5534605 | EM38: 477.3541524 | EN38: 496.9256727 | EO38: 517.2996252 | EP38: 538.5089099 | EQ38: 560.5877752 | ER38: 583.571874 | ES38: 607.4983208 | ET38: 632.4057519 | EU38: 658.3343878 | EV38: 685.3260977 | EW38: 713.4244677 | EX38: 742.6748708 | EY38: 773.1245406 | EZ38: 804.8226467 | FA38: 837.8203752 | FB38: 872.1710106 | FC38: 907.930022 | FD38: 945.155153 | FE38: 983.9065142 | FF38: 1024.246681 | FG38: 1066.240795 | FH38: 1109.956668 | FI38: 1155.464891 | FJ38: 1202.838952 | FK38: 1252.155349 | FL38: 1303.493718 | FM38: 1356.936961 | FN38: 1412.571376 | FO38: 1470.486802 | FP38: 1530.776761 | FQ38: 1593.538608 | FR38: 1658.873691 | FS38: 1726.887513 | FT38: 1797.689901 | FU38: 1871.395187 | FV38: 1948.122389 | FW38: 2027.995407 | FX38: 2111.143219 | FY38: 2197.700091 | FZ38: 2287.805795 | GA38: 2381.605832 | GB38: 2479.251671 | GC38: 2580.90099 | GD38: 2686.717931 | GE38: 2796.873366 | GF38: 2911.545174 | GG38: 3030.918526 | GH38: 3155.186185 | GI38: 3284.548819 | GJ38: 3419.215321 | GK38: 3559.403149 | GL38: 3705.338678 | GM38: 3857.257564 | GN38: 4015.405124 | GO38: 4180.036734 | GP38: 4351.41824 | GQ38: 4529.826388 | GR38: 4715.54927 | GS38: 4908.88679 | GT38: 5110.151148 | GU38: 5319.667345 | GV38: 5537.773706 | GW38: 5764.822428 | GX38: 6001.180148 | GY38: 6247.228534 | GZ38: 6503.364904 | HA38: 6770.002865 | HB38: 7047.572982 | HC38: 7336.523474 | HD38: 7637.320937 | HE38: 7950.451095 | HF38: 8276.41959 | HG38: 8615.752793
A40: =MAX($A$11:A39)+1 -> 25 | C40: Average | D40: =AVERAGE(D24:D39) -> 73.942 | E40: =AVERAGE(E24:E39) -> 2.752333333 | F40: 0.06420666667 | G40: 0.06033888889 | H40: 0.05647111111 | I40: 0.05260333333 | J40: 0.04873555556 | K40: 0.04486777778 | L40: 0.041 | M40: 0.086893419
A41: =MAX($A$11:A40)+1 -> 26 | C41: Median | D41: =MEDIAN(D24:D39) -> 67.8 | E41: =MEDIAN(E24:E39) -> 2.67 | F41: 0.0636 | G41: 0.05983333333 | H41: 0.05606666667 | I41: 0.0523 | J41: 0.04853333333 | K41: 0.04476666667 | L41: 0.041 | M41: 0.08570732588
B44: Sources:
B45: =+A45+1 -> 1 | C45: 2025 PSC DR1 KU LGE Attach to Q54 - D'Ascendis Direct Testimony Exhibits and Workpapers, Proxy Prices tab.
B46: =+B45+1 -> 2 | C46: 2025 PSC DR1 KU LGE Attach to Q54 - D'Ascendis Direct Testimony Exhibits and Workpapers, Proxy Prices tab.
B47: =+B46+1 -> 3 | C47: Exhibit DWD-3, column 6, page 1 of 23.
B48: 4 | C48: Blue Chip Financial Forecasts, June 2, 2025 at page 14.

Sheet ___snlqueryparms (hidden)

Sheet ___snlqueryparms2 (hidden)
A2: ENERGYCOMPANIES | B2: 130500 | C2: 3

Sheet ___snlofficequeries (hidden)
